Workbook

Sheet DYN_cyclist
A1: CyclistID | B1: Last name | C1: First name | D1: Flat | E1: Mountain | F1: Hill | G1: TT | H1: Stamina | I1: Resistance | J1: Recovery | K1: Cobbles | L1: Sprint | M1: Acceleration | N1: Fighter | O1: Downhill | P1: Prologue | Q1: 2021 Team | R1: 2020 Team | S1: Division | T1: Country | U1: Continent | V1: XP Level | W1: XP Points | X1: Day | Y1: Month | Z1: Year | AA1: Age | AB1: Potential | AC1: OVL | AD1: Wage | AE1: PT RD | AF1: PCT RD | AG1: CT RD | AH1: Training eligible? | AI1: Stagiare | AJ1: Avenir | AK1: Height | AL1: Weight | AM1: National Champion | AN1: National TT Champion | AO1: World Champion | AP1: World TT Champion | AQ1: Former National Champion | AR1: Former National TT Champion | AS1: Former World Champion | AT1: Former World Champion TT | AU1: On Loan? | AV1: Loan In Team | AW1: Wage paid by loaning team (If different from Wage) | AX1: Clause | AY1: Loaned From?
A2: 1 | B2: Kleiven | C2: Njal Eivind | D2: 67 | E2: 65 | F2: 63 | G2: 66 | H2: 65 | I2: 66 | J2: 62 | K2: 57 | L2: 58 | M2: 65 | N2: 72 | O2: 61 | P2: 63 | Q2: Free Agent | R2: Free Agent | S2: - | T2: NOR | U2: EU | V2: 1 | W2: 0 | X2: 1 | Y2: 5 | Z2: 1994 | AA2: 27 | AB2: 4 | AC2: 65.09226422 | AD2: 0 | AE2: =ROUND(IF($AC2>79,44-(($AC2-79)*(14/4)),IF($AC2>76,67-(($AC2-76)*(23/3)),IF(110-(($AC2-70.4)*(43/5.6))>119,119,110-(($AC2-70.4)*(43/5.6))))),0) -> 119 | AF2: =ROUND(IF($AC2>79,37-(($AC2-79)*(9/4)),IF($AC2>76,54-(($AC2-76)*(17/3)),IF(93-(($AC2-70.4)*(39/5.6))>100,100,93-(($AC2-70.4)*(39/5.6))))),0) -> 100 | AG2: =ROUND(IF($AC2>79,32-(($AC2-79)*(8/4)),IF($AC2>76,48-(($AC2-76)*(16/3)),IF(86-(($AC2-70.4)*(38/5.6))>95,95,86-(($AC2-70.4)*(38/5.6))))),0) -> 95 | AH2: - | AK2: 0 | AL2: 0 | AM2: - | AN2: - | AO2: - | AP2: - | AQ2: - | AR2: - | AS2: - | AT2: -
A3: 2 | B3: Meeusen | C3: Tom | D3: 72 | E3: 55 | F3: 66 | G3: 67 | H3: 66 | I3: 68 | J3: 67 | K3: 70 | L3: 72 | M3: 68 | N3: 69 | O3: 72 | P3: 69 | Q3: Free Agent | R3: Free Agent | S3: - | T3: BEL | U3: EU | V3: 4 | W3: 100 | X3: 7 | Y3: 11 | Z3: 1988 | AA3: 33 | AB3: 5 | AC3: 70.2331931 | AD3: 0 | AE3: 111 | AF3: 94 | AG3: 87 | AH3: - | AK3: 0 | AL3: 0 | AM3: - | AN3: - | AO3: - | AP3: - | AQ3: - | AR3: - | AS3: - | AT3: -
A4: 3 | B4: Imhof | C4: Claudio | D4: 70 | E4: 59 | F4: 62 | G4: 74 | H4: 72 | I4: 67 | J4: 68 | K4: 56 | L4: 64 | M4: 67 | N4: 62 | O4: 65 | P4: 74 | Q4: Free Agent | R4: Free Agent | S4: - | T4: SWI | U4: EU | V4: 4 | W4: 100 | X4: 26 | Y4: 9 | Z4: 1990 | AA4: 31 | AB4: 4 | AC4: 68.90165789 | AD4: 0 | AE4: 119 | AF4: 100 | AG4: 95 | AH4: - | AK4: 0 | AL4: 0 | AM4: - | AN4: - | AO4: - | AP4: - | AQ4: - | AR4: - | AS4: - | AT4: -
A5: 4 | B5: Riutort | C5: Juan Carlos | D5: 69 | E5: 65 | F5: 66 | G5: 62 | H5: 70 | I5: 68 | J5: 65 | K5: 64 | L5: 71 | M5: 71 | N5: 65 | O5: 69 | P5: 66 | Q5: Free Agent | R5: Free Agent | S5: - | T5: ESP | U5: EU | V5: 3 | W5: 2 | X5: 27 | Y5: 8 | Z5: 1991 | AA5: 30 | AB5: 4 | AC5: 69.33197913 | AD5: 0 | AE5: 118 | AF5: 100 | AG5: 93 | AH5: - | AK5: 0 | AL5: 0 | AM5: - | AN5: - | AO5: - | AP5: - | AQ5: - | AR5: - | AS5: - | AT5: -
A6: 5 | B6: Wang | C6: Yin Chih | D6: 66 | E6: 73 | F6: 70 | G6: 71 | H6: 71 | I6: 68 | J6: 66 | K6: 55 | L6: 58 | M6: 63 | N6: 64 | O6: 65 | P6: 71 | Q6: Free Agent | R6: Free Agent | S6: - | T6: TPE | U6: AS | V6: 4 | W6: 100 | X6: 12 | Y6: 10 | Z6: 1988 | AA6: 33 | AB6: 4 | AC6: 71.1459557 | AD6: 0 | AE6: 104 | AF6: 88 | AG6: 81 | AH6: - | AK6: 175 | AL6: 70 | AM6: - | AN6: - | AO6: - | AP6: - | AQ6: - | AR6: - | AS6: - | AT6: -
A7: 6 | B7: Guzman Perez | C7: William | D7: 70 | E7: 60 | F7: 67 | G7: 68 | H7: 64 | I7: 65 | J7: 66 | K7: 61 | L7: 69 | M7: 70 | N7: 67 | O7: 67 | P7: 71 | Q7: Free Agent | R7: Free Agent | S7: - | T7: PUR | U7: NA | V7: 2 | W7: 0 | X7: 19 | Y7: 2 | Z7: 1996 | AA7: 25 | AB7: 3 | AC7: 68.57866989 | AD7: 0 | AE7: 119 | AF7: 100 | AG7: 95 | AH7: - | AK7: 170 | AL7: 58 | AM7: - | AN7: - | AO7: - | AP7: - | AQ7: - | AR7: - | AS7: - | AT7: -
A8: 7 | B8: Morey | C8: Drew | D8: 66 | E8: 67 | F8: 69 | G8: 61 | H8: 66 | I8: 68 | J8: 67 | K8: 60 | L8: 62 | M8: 63 | N8: 76 | O8: 62 | P8: 61 | Q8: Free Agent | R8: Free Agent | S8: - | T8: AUS | U8: OC | V8: 3 | W8: 35 | X8: 27 | Y8: 11 | Z8: 1996 | AA8: 25 | AB8: 6 | AC8: 68.09453375 | AD8: 0 | AE8: 119 | AF8: 100 | AG8: 95 | AH8: - | AK8: 0 | AL8: 0 | AM8: - | AN8: - | AO8: - | AP8: - | AQ8: - | AR8: - | AS8: - | AT8: -
A9: 8 | B9: Dyball | C9: Benjamin | D9: 71 | E9: 76 | F9: 73 | G9: 75 | H9: 75 | I9: 71 | J9: 72 | K9: 54 | L9: 61 | M9: 72 | N9: 69 | O9: 64 | P9: 73 | Q9: Generali | R9: Generali | S9: PT | T9: AUS | U9: OC | V9: 4 | W9: 100 | X9: 20 | Y9: 4 | Z9: 1989 | AA9: 32 | AB9: 5 | AC9: 74.66696231 | AD9: 65000 | AE9: 77 | AF9: 63 | AG9: 57 | AH9: - | AK9: 182 | AL9: 59 | AM9: - | AN9: - | AO9: - | AP9: - | AQ9: - | AR9: - | AS9: - | AT9: -
A10: 9 | B10: Stauff | C10: Andreas | D10: 71 | E10: 50 | F10: 62 | G10: 58 | H10: 69 | I10: 64 | J10: 71 | K10: 62 | L10: 77 | M10: 76 | N10: 56 | O10: 61 | P10: 71 | Q10: BWT Hyundai N Cycling | R10: Adastra N Hell Energy Cycling | S10: CT | T10: GER | U10: EU | V10: 4 | W10: 100 | X10: 22 | Y10: 1 | Z10: 1987 | AA10: 34 | AB10: 5 | AC10: 72.64317075 | AD10: 85000 | AE10: 93 | AF10: 77 | AG10: 71 | AH10: - | AK10: 192 | AL10: 82 | AM10: - | AN10: - | AO10: - | AP10: - | AQ10: - | AR10: - | AS10: - | AT10: -
A11: 10 | B11: Silva | C11: Nihal | D11: 75 | E11: 62 | F11: 68 | G11: 62 | H11: 69 | I11: 70 | J11: 77 | K11: 72 | L11: 77 | M11: 78 | N11: 56 | O11: 60 | P11: 62 | Q11: Aker - MOT | R11: Aker - MOT | S11: PCT | T11: SRI | U11: AS | V11: 4 | W11: 100 | X11: 3 | Y11: 12 | Z11: 1994 | AA11: 27 | AB11: 4 | AC11: 74.73541042 | AD11: 110000 | AE11: 77 | AF11: 63 | AG11: 57 | AH11: - | AK11: 165 | AL11: 60 | AM11: - | AN11: - | AO11: - | AP11: - | AQ11: - | AR11: - | AS11: - | AT11: -
A12: 11 | B12: Noppe | C12: Christophe | D12: 75 | E12: 61 | F12: 69 | G12: 62 | H12: 74 | I12: 73 | J12: 68 | K12: 73 | L12: 75 | M12: 73 | N12: 66 | O12: 68 | P12: 63 | Q12: Free Agent | R12: Fablok - Chocolate Jacques | S12: - | T12: BEL | U12: EU | V12: 4 | W12: 100 | X12: 29 | Y12: 11 | Z12: 1994 | AA12: 27 | AB12: 4 | AC12: 72.56573838 | AD12: 50000 | AE12: 93 | AF12: 78 | AG12: 71 | AH12: - | AK12: 0 | AL12: 0 | AM12: - | AN12: - | AO12: - | AP12: - | AQ12: - | AR12: - | AS12: - | AT12: -
A13: 12 | B13: Copeland | C13: Tom | D13: 66 | E13: 75 | F13: 68 | G13: 71 | H13: 72 | I13: 68 | J13: 69 | K13: 50 | L13: 56 | M13: 63 | N13: 62 | O13: 59 | P13: 71 | Q13: Free Agent | R13: Free Agent | S13: - | T13: GBR | U13: EU | V13: 4 | W13: 100 | X13: 18 | Y13: 2 | Z13: 1989 | AA13: 32 | AB13: 5 | AC13: 71.98043243 | AD13: 0 | AE13: 98 | AF13: 82 | AG13: 75 | AH13: - | AK13: 0 | AL13: 0 | AM13: - | AN13: - | AO13: - | AP13: - | AQ13: - | AR13: - | AS13: - | AT13: -
A14: 13 | B14: Balmaseda | C14: Yasmani | D14: 67 | E14: 68 | F14: 68 | G14: 67 | H14: 65 | I14: 64 | J14: 63 | K14: 56 | L14: 60 | M14: 62 | N14: 62 | O14: 63 | P14: 66 | Q14: Free Agent | R14: Free Agent | S14: - | T14: CUB | U14: NA | V14: 1 | W14: 0 | X14: 22 | Y14: 4 | Z14: 1993 | AA14: 28 | AB14: 3 | AC14: 67.16568035 | AD14: 0 | AE14: 119 | AF14: 100 | AG14: 95 | AH14: - | AK14: 0 | AL14: 0 | AM14: - | AN14: - | AO14: - | AP14: - | AQ14: - | AR14: - | AS14: - | AT14: -
A15: 14 | B15: Carstensen | C15: Lucas | D15: 69 | E15: 60 | F15: 64 | G15: 56 | H15: 68 | I15: 70 | J15: 64 | K15: 55 | L15: 71 | M15: 73 | N15: 61 | O15: 63 | P15: 59 | Q15: Free Agent | R15: Free Agent | S15: - | T15: GER | U15: EU | V15: 3 | W15: 50 | X15: 16 | Y15: 6 | Z15: 1994 | AA15: 27 | AB15: 6 | AC15: 69.17082027 | AD15: 0 | AE15: 119 | AF15: 100 | AG15: 94 | AH15: - | AK15: 0 | AL15: 0 | AM15: - | AN15: - | AO15: - | AP15: - | AQ15: - | AR15: - | AS15: - | AT15: -
A16: 15 | B16: Blekevicius | C16: Mantas | D16: 68 | E16: 66 | F16: 72 | G16: 66 | H16: 71 | I16: 69 | J16: 66 | K16: 57 | L16: 60 | M16: 71 | N16: 74 | O16: 64 | P16: 66 | Q16: Free Agent | R16: Free Agent | S16: - | T16: LTU | U16: EU | V16: 4 | W16: 100 | X16: 17 | Y16: 10 | Z16: 1989 | AA16: 32 | AB16: 2 | AC16: 70.64231137 | AD16: 0 | AE16: 108 | AF16: 91 | AG16: 84 | AH16: - | AK16: 0 | AL16: 0 | AM16: - | AN16: - | AO16: - | AP16: - | AQ16: - | AR16: - | AS16: - | AT16: -
A17: 16 | B17: Budenieks | C17: Kristaps | D17: 69 | E17: 75 | F17: 75 | G17: 63 | H17: 70 | I17: 75 | J17: 72 | K17: 70 | L17: 69 | M17: 74 | N17: 75 | O17: 72 | P17: 61 | Q17: Evonik - ELKO | R17: Evonik - ELKO | S17: PT | T17: LAT | U17: EU | V17: 4 | W17: 100 | X17: 24 | Y17: 1 | Z17: 1995 | AA17: 26 | AB17: 2 | AC17: 75.05685251 | AD17: 50000 | AE17: 74 | AF17: 61 | AG17: 54 | AH17: - | AK17: 0 | AL17: 0 | AM17: - | AN17: - | AO17: - | AP17: - | AQ17: - | AR17: - | AS17: - | AT17: -
A18: 17 | B18: Yzeiraj | C18: Marildo | D18: 77 | E18: 62 | F18: 66 | G18: 60 | H18: 74 | I18: 74 | J18: 65 | K18: 65 | L18: 62 | M18: 71 | N18: 85 | O18: 72 | P18: 66 | Q18: Aker - MOT | R18: Aker - MOT | S18: PCT | T18: ALB | U18: EU | V18: 4 | W18: 100 | X18: 25 | Y18: 4 | Z18: 1994 | AA18: 27 | AB18: 3 | AC18: 71.84772235 | AD18: 50000 | AE18: 99 | AF18: 83 | AG18: 76 | AH18: - | AK18: 0 | AL18: 0 | AM18: - | AN18: - | AO18: - | AP18: - | AQ18: - | AR18: - | AS18: - | AT18: -
A19: 18 | B19: Devalle | C19: Laurent | D19: 63 | E19: 64 | F19: 63 | G19: 62 | H19: 61 | I19: 64 | J19: 65 | K19: 55 | L19: 53 | M19: 60 | N19: 57 | O19: 59 | P19: 60 | Q19: Free Agent | R19: Free Agent | S19: - | T19: MON | U19: EU | V19: 2 | W19: 0 | X19: 15 | Y19: 7 | Z19: 1993 | AA19: 28 | AB19: 1 | AC19: 63.98760313 | AD19: 0 | AE19: 119 | AF19: 100 | AG19: 95 | AH19: - | AK19: 0 | AL19: 0 | AM19: - | AN19: - | AO19: - | AP19: - | AQ19: - | AR19: - | AS19: - | AT19: -
A20: 19 | B20: Ringheim | C20: Jo Kogstad | D20: 72 | E20: 68 | F20: 67 | G20: 66 | H20: 75 | I20: 71 | J20: 73 | K20: 78 | L20: 73 | M20: 75 | N20: 66 | O20: 67 | P20: 66 | Q20: Grieg-Maersk | R20: Grieg-Maersk | S20: PT | T20: NOR | U20: EU | V20: 4 | W20: 100 | X20: 16 | Y20: 2 | Z20: 1991 | AA20: 30 | AB20: 5 | AC20: 75.71987942 | AD20: 105000 | AE20: 69 | AF20: 56 | AG20: 50 | AH20: - | AK20: 0 | AL20: 0 | AM20: - | AN20: - | AO20: - | AP20: - | AQ20: - | AR20: - | AS20: - | AT20: -
A21: 20 | B21: Schmid | C21: Mauro | D21: 71 | E21: 70 | F21: 71 | G21: 67 | H21: 69 | I21: 74 | J21: 69 | K21: 69 | L21: 69 | M21: 72 | N21: 71 | O21: 73 | P21: 65 | Q21: Free Agent | R21: Free Agent | S21: - | T21: SWI | U21: EU | V21: 1 | W21: 0 | X21: 4 | Y21: 12 | Z21: 1999 | AA21: 22 | AB21: 4 | AC21: 72.43302217 | AD21: 0 | AE21: 94 | AF21: 79 | AG21: 72 | AH21: - | AK21: 178 | AL21: 67 | AM21: - | AN21: - | AO21: - | AP21: - | AQ21: - | AR21: - | AS21: - | AT21: -
A22: 21 | B22: Sahbana | C22: Agung Ali | D22: 66 | E22: 67 | F22: 69 | G22: 71 | H22: 62 | I22: 65 | J22: 68 | K22: 50 | L22: 50 | M22: 60 | N22: 61 | O22: 57 | P22: 67 | Q22: Free Agent | R22: Free Agent | S22: - | T22: INA | U22: AS | V22: 4 | W22: 100 | X22: 31 | Y22: 3 | Z22: 1988 | AA22: 33 | AB22: 2 | AC22: 67.88312668 | AD22: 0 | AE22: 119 | AF22: 100 | AG22: 95 | AH22: - | AK22: 0 | AL22: 0 | AM22: - | AN22: - | AO22: - | AP22: - | AQ22: - | AR22: - | AS22: - | AT22: -
A23: 22 | B23: Ayoob | C23: Isa | D23: 65 | E23: 52 | F23: 56 | G23: 62 | H23: 59 | I23: 63 | J23: 62 | K23: 58 | L23: 67 | M23: 68 | N23: 59 | O23: 61 | P23: 62 | Q23: Free Agent | R23: Free Agent | S23: - | T23: BRN | U23: AS | V23: 2 | W23: 0 | X23: 14 | Y23: 3 | Z23: 1993 | AA23: 28 | AB23: 2 | AC23: 64.56442713 | AD23: 0 | AE23: 119 | AF23: 100 | AG23: 95 | AH23: - | AK23: 184 | AL23: 68 | AM23: - | AN23: - | AO23: - | AP23: - | AQ23: - | AR23: - | AS23: - | AT23: -
A24: 23 | B24: Kuznetsov | C24: Vyacheslav | D24: 76 | E24: 63 | F24: 70 | G24: 66 | H24: 75 | I24: 73 | J24: 69 | K24: 69 | L24: 72 | M24: 75 | N24: 76 | O24: 70 | P24: 66 | Q24: Strava | R24: Strava | S24: - | T24: RUS | U24: EU | V24: 4 | W24: 100 | X24: 24 | Y24: 6 | Z24: 1989 | AA24: 32 | AB24: 5 | AC24: 73.1750399 | AD24: 50000 | AE24: 89 | AF24: 74 | AG24: 67 | AH24: - | AK24: 0 | AL24: 0 | AM24: - | AN24: - | AO24: - | AP24: - | AQ24: - | AR24: - | AS24: - | AT24: -
A25: 24 | B25: Akimaru | C25: Yuya | D25: 67 | E25: 53 | F25: 52 | G25: 66 | H25: 64 | I25: 66 | J25: 67 | K25: 55 | L25: 71 | M25: 73 | N25: 58 | O25: 58 | P25: 66 | Q25: Free Agent | R25: Free Agent | S25: - | T25: JPN | U25: AS | V25: 2 | W25: 0 | X25: 1 | Y25: 6 | Z25: 1991 | AA25: 30 | AB25: 3 | AC25: 68.10304722 | AD25: 0 | AE25: 119 | AF25: 100 | AG25: 95 | AH25: - | AK25: 0 | AL25: 0 | AM25: - | AN25: - | AO25: - | AP25: - | AQ25: - | AR25: - | AS25: - | AT25: -
A26: 25 | B26: Aniolkowski | C26: Stanislaw | D26: 72 | E26: 61 | F26: 64 | G26: 56 | H26: 72 | I26: 72 | J26: 73 | K26: 60 | L26: 75 | M26: 75 | N26: 57 | O26: 63 | P26: 59 | Q26: Team Popo4Ever p/b Nemiroff | R26: Team Popo4Ever p/b Nemiroff | S26: PCT | T26: POL | U26: EU | V26: 3 | W26: 10 | X26: 20 | Y26: 1 | Z26: 1997 | AA26: 24 | AB26: 5 | AC26: 72.00480667 | AD26: 50000 | AE26: 98 | AF26: 82 | AG26: 75 | AH26: - | AJ26: 1 | AK26: 0 | AL26: 0 | AM26: - | AN26: - | AO26: - | AP26: - | AQ26: - | AR26: - | AS26: - | AT26: -
A27: 26 | B27: Taminiaux | C27: Lionel | D27: 68 | E27: 65 | F27: 67 | G27: 59 | H27: 70 | I27: 69 | J27: 59 | K27: 67 | L27: 69 | M27: 69 | N27: 72 | O27: 69 | P27: 64 | Q27: Free Agent | R27: Free Agent | S27: - | T27: BEL | U27: EU | V27: 1 | W27: 43 | X27: 21 | Y27: 5 | Z27: 1996 | AA27: 25 | AB27: 3 | AC27: 69.12533973 | AD27: 0 | AE27: 119 | AF27: 100 | AG27: 95 | AH27: - | AK27: 183 | AL27: 70 | AM27: - | AN27: - | AO27: - | AP27: - | AQ27: - | AR27: - | AS27: - | AT27: -
A28: 27 | B28: Myagmarsuren | C28: Baasankhuu | D28: 66 | E28: 70 | F28: 69 | G28: 63 | H28: 67 | I28: 65 | J28: 67 | K28: 50 | L28: 57 | M28: 65 | N28: 61 | O28: 57 | P28: 63 | Q28: Free Agent | R28: Free Agent | S28: - | T28: MGL | U28: AS | V28: 3 | W28: 35 | X28: 16 | Y28: 4 | Z28: 1991 | AA28: 30 | AB28: 5 | AC28: 68.89561236 | AD28: 0 | AE28: 119 | AF28: 100 | AG28: 95 | AH28: - | AK28: 0 | AL28: 0 | AM28: - | AN28: - | AO28: - | AP28: - | AQ28: - | AR28: - | AS28: - | AT28: -
A29: 28 | B29: Szarka | C29: Gergely | D29: 70 | E29: 62 | F29: 66 | G29: 60 | H29: 71 | I29: 68 | J29: 65 | K29: 60 | L29: 71 | M29: 71 | N29: 64 | O29: 65 | P29: 65 | Q29: Jura - Fiat | R29: Centovalli - Fiat | S29: PCT | T29: HUN | U29: EU | V29: 1 | W29: 52 | X29: 29 | Y29: 1 | Z29: 1998 | AA29: 23 | AB29: 4 | AC29: 68.88242497 | AD29: 10000 | AE29: 119 | AF29: 100 | AG29: 95 | AH29: - | AJ29: 1 | AK29: 0 | AL29: 0 | AM29: - | AN29: - | AO29: - | AP29: - | AQ29: - | AR29: - | AS29: - | AT29: -
A30: 30 | B30: Hunt | C30: Andrew | D30: 65 | E30: 55 | F30: 62 | G30: 63 | H30: 65 | I30: 67 | J30: 65 | K30: 54 | L30: 70 | M30: 71 | N30: 67 | O30: 69 | P30: 63 | Q30: Free Agent | R30: Free Agent | S30: - | T30: CAN | U30: NA | V30: 3 | W30: 46 | X30: 10 | Y30: 5 | Z30: 1988 | AA30: 33 | AB30: 6 | AC30: 67.3643882 | AD30: 0 | AE30: 119 | AF30: 100 | AG30: 95 | AH30: - | AK30: 0 | AL30: 0 | AM30: - | AN30: - | AO30: - | AP30: - | AQ30: - | AR30: - | AS30: - | AT30: -
A31: 31 | B31: Tennant | C31: Andrew | D31: 74 | E31: 60 | F31: 66 | G31: 75 | H31: 71 | I31: 71 | J31: 72 | K31: 51 | L31: 64 | M31: 63 | N31: 75 | O31: 64 | P31: 74 | Q31: cycleYorkshire | R31: cycleYorkshire | S31: PCT | T31: GBR | U31: EU | V31: 4 | W31: 100 | X31: 9 | Y31: 3 | Z31: 1987 | AA31: 34 | AB31: 5 | AC31: 70.28668387 | AD31: 70000 | AE31: 111 | AF31: 94 | AG31: 87 | AH31: - | AK31: 192 | AL31: 79 | AM31: - | AN31: - | AO31: - | AP31: - | AQ31: - | AR31: - | AS31: - | AT31: -
A32: 33 | B32: Molina | C32: Edgardo | D32: 68 | E32: 62 | F32: 65 | G32: 64 | H32: 69 | I32: 69 | J32: 66 | K32: 62 | L32: 68 | M32: 69 | N32: 72 | O32: 59 | P32: 69 | Q32: Free Agent | R32: Free Agent | S32: - | T32: VEN | U32: SA | V32: 1 | W32: 0 | X32: 8 | Y32: 11 | Z32: 1999 | AA32: 22 | AB32: 4 | AC32: 67.83519504 | AD32: 0 | AE32: 119 | AF32: 100 | AG32: 95 | AH32: - | AK32: 0 | AL32: 0 | AM32: - | AN32: - | AO32: - | AP32: - | AQ32: - | AR32: - | AS32: - | AT32: -
A33: 34 | B33: Jarboua | C33: Abdelrahaman | D33: 66 | E33: 66 | F33: 64 | G33: 67 | H33: 68 | I33: 66 | J33: 66 | K33: 50 | L33: 50 | M33: 62 | N33: 51 | O33: 53 | P33: 66 | Q33: Free Agent | R33: Free Agent | S33: - | T33: QAT | U33: AS | V33: 2 | W33: 0 | X33: 30 | Y33: 11 | Z33: 1993 | AA33: 28 | AB33: 4 | AC33: 65.93436931 | AD33: 0 | AE33: 119 | AF33: 100 | AG33: 95 | AH33: - | AK33: 0 | AL33: 0 | AM33: - | AN33: - | AO33: - | AP33: - | AQ33: - | AR33: - | AS33: - | AT33: -
A34: 35 | B34: Cerny | C34: Josef | D34: 71 | E34: 70 | F34: 76 | G34: 68 | H34: 75 | I34: 67 | J34: 66 | K34: 61 | L34: 75 | M34: 79 | N34: 74 | O34: 66 | P34: 71 | Q34: Moser - Sygic | R34: Moser - Sygic | S34: PT | T34: CZE | U34: EU | V34: 4 | W34: 100 | X34: 11 | Y34: 5 | Z34: 1993 | AA34: 28 | AB34: 5 | AC34: 75.55721469 | AD34: 80000 | AE34: 70 | AF34: 57 | AG34: 51 | AH34: - | AK34: 0 | AL34: 0 | AM34: - | AN34: - | AO34: - | AP34: - | AQ34: - | AR34: - | AS34: - | AT34: -
A35: 36 | B35: Malecki | C35: Kamil | D35: 73 | E35: 73 | F35: 76 | G35: 70 | H35: 71 | I35: 75 | J35: 72 | K35: 73 | L35: 71 | M35: 76 | N35: 70 | O35: 72 | P35: 71 | Q35: Gazelle | R35: Gazelle | S35: PT | T35: POL | U35: EU | V35: 4 | W35: 100 | X35: 2 | Y35: 1 | Z35: 1996 | AA35: 25 | AB35: 5 | AC35: 76.06091703 | AD35: 200000 | AE35: 67 | AF35: 54 | AG35: 48 | AH35: - | AK35: 174 | AL35: 69 | AM35: - | AN35: - | AO35: - | AP35: - | AQ35: - | AR35: - | AS35: - | AT35: -
A36: 38 | B36: Pajek | C36: Luka | D36: 67 | E36: 59 | F36: 63 | G36: 60 | H36: 63 | I36: 66 | J36: 61 | K36: 62 | L36: 71 | M36: 72 | N36: 60 | O36: 63 | P36: 63 | Q36: Free Agent | R36: Free Agent | S36: - | T36: SLO | U36: EU | V36: 2 | W36: 58 | X36: 17 | Y36: 6 | Z36: 1996 | AA36: 25 | AB36: 4 | AC36: 68.45691357 | AD36: 0 | AE36: 119 | AF36: 100 | AG36: 95 | AH36: - | AK36: 165 | AL36: 53 | AM36: - | AN36: - | AO36: - | AP36: - | AQ36: - | AR36: - | AS36: - | AT36: -
A37: 39 | B37: Caiati | C37: Aldo | D37: 62 | E37: 66 | F37: 65 | G37: 60 | H37: 65 | I37: 65 | J37: 62 | K37: 60 | L37: 60 | M37: 64 | N37: 62 | O37: 62 | P37: 60 | Q37: Free Agent | R37: Free Agent | S37: - | T37: ITA | U37: EU | V37: 2 | W37: 0 | X37: 19 | Y37: 12 | Z37: 1998 | AA37: 23 | AB37: 5 | AC37: 65.48629628 | AD37: 0 | AE37: 119 | AF37: 100 | AG37: 95 | AH37: - | AK37: 170 | AL37: 56 | AM37: - | AN37: - | AO37: - | AP37: - | AQ37: - | AR37: - | AS37: - | AT37: -
A38: 40 | B38: Bonkoungou | C38: Karim | D38: 63 | E38: 64 | F38: 65 | G38: 61 | H38: 65 | I38: 65 | J38: 63 | K38: 50 | L38: 57 | M38: 61 | N38: 64 | O38: 59 | P38: 64 | Q38: Free Agent | R38: Free Agent | S38: - | T38: BUR | U38: AF | V38: 1 | W38: 0 | X38: 12 | Y38: 5 | Z38: 1994 | AA38: 27 | AB38: 3 | AC38: 64.66656696 | AD38: 0 | AE38: 119 | AF38: 100 | AG38: 95 | AH38: - | AK38: 180 | AL38: 76 | AM38: - | AN38: - | AO38: - | AP38: - | AQ38: - | AR38: - | AS38: - | AT38: -
A39: 41 | B39: Eg | C39: Niklas | D39: 67 | E39: 77 | F39: 71 | G39: 74 | H39: 76 | I39: 74 | J39: 75 | K39: 59 | L39: 60 | M39: 68 | N39: 66 | O39: 65 | P39: 72 | Q39: Carlsberg - Danske Bank | R39: Carlsberg - Danske Bank | S39: PCT | T39: DEN | U39: EU | V39: 4 | W39: 100 | X39: 6 | Y39: 1 | Z39: 1995 | AA39: 26 | AB39: 3 | AC39: 74.89823202 | AD39: 85000 | AE39: 75 | AF39: 62 | AG39: 55 | AH39: - | AK39: 165 | AL39: 58 | AM39: - | AN39: - | AO39: - | AP39: - | AQ39: - | AR39: - | AS39: - | AT39: -
A40: 42 | B40: Jacobs | C40: Johan | D40: 72 | E40: 60 | F40: 67 | G40: 62 | H40: 72 | I40: 72 | J40: 65 | K40: 73 | L40: 63 | M40: 66 | N40: 70 | O40: 72 | P40: 60 | Q40: Team UBS | R40: Sauber Petronas Racing | S40: PCT | T40: SWI | U40: EU | V40: 3 | W40: 6 | X40: 1 | Y40: 3 | Z40: 1997 | AA40: 24 | AB40: 6 | AC40: 71.62767628 | AD40: 70000 | AE40: 101 | AF40: 84 | AG40: 78 | AH40: - | AJ40: 1 | AK40: 181 | AL40: 66 | AM40: - | AN40: - | AO40: - | AP40: - | AQ40: - | AR40: - | AS40: - | AT40: -
A41: 43 | B41: Venturini | C41: Clement | D41: 75 | E41: 63 | F41: 68 | G41: 65 | H41: 74 | I41: 74 | J41: 79 | K41: 72 | L41: 75 | M41: 77 | N41: 63 | O41: 73 | P41: 69 | Q41: Free Agent | R41: Fablok - Chocolate Jacques | S41: - | T41: FRA | U41: EU | V41: 4 | W41: 100 | X41: 16 | Y41: 10 | Z41: 1993 | AA41: 28 | AB41: 5 | AC41: 73.81405112 | AD41: 75000 | AE41: 84 | AF41: 69 | AG41: 63 | AH41: - | AK41: 181 | AL41: 65 | AM41: - | AN41: - | AO41: - | AP41: - | AQ41: - | AR41: - | AS41: - | AT41: -
A42: 44 | B42: Holloway | C42: Dan | D42: 76 | E42: 60 | F42: 67 | G42: 69 | H42: 74 | I42: 74 | J42: 75 | K42: 63 | L42: 78 | M42: 79 | N42: 67 | O42: 64 | P42: 69 | Q42: EA Vesuvio | R42: EA Vesuvio | S42: PT | T42: USA | U42: NA | V42: 4 | W42: 100 | X42: 21 | Y42: 5 | Z42: 1987 | AA42: 34 | AB42: 7 | AC42: 75.70793653 | AD42: 250000 | AE42: 69 | AF42: 56 | AG42: 50 | AH42: - | AK42: 188 | AL42: 82 | AM42: - | AN42: - | AO42: - | AP42: - | AQ42: - | AR42: - | AS42: - | AT42: -
A43: 45 | B43: Hakuzimana | C43: Camera | D43: 66 | E43: 70 | F43: 68 | G43: 67 | H43: 67 | I43: 69 | J43: 69 | K43: 63 | L43: 62 | M43: 66 | N43: 67 | O43: 64 | P43: 66 | Q43: Free Agent | R43: Free Agent | S43: - | T43: RWA | U43: AF | V43: 3 | W43: 0 | X43: 7 | Y43: 8 | Z43: 1992 | AA43: 29 | AB43: 5 | AC43: 68.75296239 | AD43: 0 | AE43: 119 | AF43: 100 | AG43: 95 | AH43: - | AK43: 0 | AL43: 0 | AM43: - | AN43: - | AO43: - | AP43: - | AQ43: - | AR43: - | AS43: - | AT43: -
A44: 46 | B44: Arias Villanueva | C44: Sergio | D44: 69 | E44: 60 | F44: 62 | G44: 70 | H44: 69 | I44: 69 | J44: 66 | K44: 61 | L44: 62 | M44: 68 | N44: 68 | O44: 65 | P44: 70 | Q44: Free Agent | R44: Free Agent | S44: - | T44: CRC | U44: NA | V44: 1 | W44: 0 | X44: 13 | Y44: 9 | Z44: 1998 | AA44: 23 | AB44: 3 | AC44: 66.92111128 | AD44: 0 | AE44: 119 | AF44: 100 | AG44: 95 | AH44: - | AK44: 0 | AL44: 0 | AM44: - | AN44: - | AO44: - | AP44: - | AQ44: - | AR44: - | AS44: - | AT44: -
A45: 47 | B45: Tratnik | C45: Jan | D45: 71 | E45: 73 | F45: 77 | G45: 62 | H45: 74 | I45: 75 | J45: 70 | K45: 62 | L45: 61 | M45: 70 | N45: 71 | O45: 65 | P45: 62 | Q45: Gazelle | R45: Gazelle | S45: PT | T45: SLO | U45: EU | V45: 4 | W45: 100 | X45: 23 | Y45: 2 | Z45: 1990 | AA45: 31 | AB45: 6 | AC45: 74.74816635 | AD45: 95000 | AE45: 77 | AF45: 63 | AG45: 56 | AH45: - | AK45: 172 | AL45: 61 | AM45: - | AN45: - | AO45: - | AP45: - | AQ45: - | AR45: - | AS45: - | AT45: -
A46: 48 | B46: McEvoy | C46: Jonathan | D46: 70 | E46: 64 | F46: 76 | G46: 65 | H46: 75 | I46: 70 | J46: 71 | K46: 65 | L46: 75 | M46: 79 | N46: 79 | O46: 66 | P46: 65 | Q46: Aramco DP | R46: Aramco DP | S46: CT | T46: GBR | U46: EU | V46: 4 | W46: 100 | X46: 2 | Y46: 8 | Z46: 1989 | AA46: 32 | AB46: 6 | AC46: 75.47300195 | AD46: 70000 | AE46: 71 | AF46: 58 | AG46: 52 | AH46: - | AK46: 0 | AL46: 0 | AM46: - | AN46: - | AO46: - | AP46: - | AQ46: - | AR46: - | AS46: - | AT46: -
A47: 49 | B47: Eriksson | C47: Lucas | D47: 72 | E47: 67 | F47: 78 | G47: 61 | H47: 78 | I47: 74 | J47: 75 | K47: 65 | L47: 65 | M47: 76 | N47: 75 | O47: 71 | P47: 61 | Q47: Free Agent | R47: Volvo acc. by Spotify | S47: - | T47: SWD | U47: EU | V47: 4 | W47: 100 | X47: 10 | Y47: 4 | Z47: 1996 | AA47: 25 | AB47: 5 | AC47: 75.66070399 | AD47: 50000 | AE47: 70 | AF47: 56 | AG47: 50 | AH47: - | AK47: 178 | AL47: 69 | AM47: - | AN47: - | AO47: - | AP47: - | AQ47: - | AR47: - | AS47: - | AT47: -
A48: 50 | B48: Hampton | C48: Russell | D48: 68 | E48: 51 | F48: 57 | G48: 71 | H48: 65 | I48: 66 | J48: 65 | K48: 56 | L48: 65 | M48: 62 | N48: 73 | O48: 65 | P48: 71 | Q48: Free Agent | R48: Free Agent | S48: - | T48: GBR | U48: EU | V48: 4 | W48: 63 | X48: 23 | Y48: 2 | Z48: 1988 | AA48: 33 | AB48: 5 | AC48: 65.43480849 | AD48: 0 | AE48: 119 | AF48: 100 | AG48: 95 | AH48: - | AK48: 174 | AL48: 72 | AM48: - | AN48: - | AO48: - | AP48: - | AQ48: - | AR48: - | AS48: - | AT48: -
A49: 51 | B49: Hoole | C49: Daan | D49: 69 | E49: 60 | F49: 64 | G49: 66 | H49: 63 | I49: 67 | J49: 63 | K49: 66 | L49: 65 | M49: 64 | N49: 67 | O49: 67 | P49: 65 | Q49: Free Agent | R49: Free Agent | S49: - | T49: NED | U49: EU | V49: 1 | W49: 0 | X49: 22 | Y49: 2 | Z49: 1999 | AA49: 22 | AB49: 5 | AC49: 66.96243571 | AD49: 0 | AE49: 119 | AF49: 100 | AG49: 95 | AH49: - | AK49: 176 | AL49: 71 | AM49: - | AN49: - | AO49: - | AP49: - | AQ49: - | AR49: - | AS49: - | AT49: -
A50: 52 | B50: Petrovski | C50: Mario | D50: 69 | E50: 61 | F50: 66 | G50: 69 | H50: 67 | I50: 70 | J50: 64 | K50: 55 | L50: 70 | M50: 71 | N50: 68 | O50: 68 | P50: 70 | Q50: Free Agent | R50: Free Agent | S50: - | T50: MCD | U50: EU | V50: 1 | W50: 0 | X50: 20 | Y50: 7 | Z50: 1998 | AA50: 23 | AB50: 2 | AC50: 69.10173726 | AD50: 0 | AE50: 119 | AF50: 100 | AG50: 95 | AH50: - | AK50: 0 | AL50: 0 | AM50: - | AN50: - | AO50: - | AP50: - | AQ50: - | AR50: - | AS50: - | AT50: -
A51: 53 | B51: Suzuki | C51: Ryu | D51: 68 | E51: 65 | F51: 69 | G51: 63 | H51: 67 | I51: 67 | J51: 71 | K51: 68 | L51: 66 | M51: 71 | N51: 66 | O51: 70 | P51: 65 | Q51: Free Agent | R51: Free Agent | S51: - | T51: JPN | U51: AS | V51: 3 | W51: 0 | X51: 29 | Y51: 9 | Z51: 1992 | AA51: 29 | AB51: 3 | AC51: 69.744193 | AD51: 0 | AE51: 115 | AF51: 98 | AG51: 90 | AH51: - | AK51: 0 | AL51: 0 | AM51: - | AN51: - | AO51: - | AP51: - | AQ51: - | AR51: - | AS51: - | AT51: -
A52: 54 | B52: Simion | C52: Paolo | D52: 68 | E52: 64 | F52: 66 | G52: 64 | H52: 67 | I52: 67 | J52: 64 | K52: 62 | L52: 72 | M52: 74 | N52: 66 | O52: 63 | P52: 65 | Q52: Free Agent | R52: Free Agent | S52: - | T52: ITA | U52: EU | V52: 3 | W52: 0 | X52: 10 | Y52: 10 | Z52: 1992 | AA52: 29 | AB52: 5 | AC52: 70.00756185 | AD52: 0 | AE52: 113 | AF52: 96 | AG52: 89 | AH52: - | AK52: 0 | AL52: 0 | AM52: - | AN52: - | AO52: - | AP52: - | AQ52: - | AR52: - | AS52: - | AT52: -
A53: 55 | B53: Keiler | C53: Marcus | D53: 68 | E53: 54 | F53: 63 | G53: 65 | H53: 68 | I53: 67 | J53: 66 | K53: 58 | L53: 66 | M53: 67 | N53: 65 | O53: 64 | P53: 65 | Q53: Free Agent | R53: Free Agent | S53: - | T53: GUY | U53: SA | V53: 1 | W53: 0 | X53: 23 | Y53: 7 | Z53: 1999 | AA53: 22 | AB53: 2 | AC53: 65.81817505 | AD53: 0 | AE53: 119 | AF53: 100 | AG53: 95 | AH53: - | AK53: 0 | AL53: 0 | AM53: - | AN53: - | AO53: - | AP53: - | AQ53: - | AR53: - | AS53: - | AT53: -
A54: 56 | B54: Norris | C54: Lachlan | D54: 65 | E54: 66 | F54: 63 | G54: 50 | H54: 60 | I54: 66 | J54: 62 | K54: 63 | L54: 50 | M54: 59 | N54: 66 | O54: 71 | P54: 50 | Q54: Free Agent | R54: Free Agent | S54: - | T54: AUS | U54: OC | V54: 4 | W54: 9 | X54: 21 | Y54: 1 | Z54: 1987 | AA54: 34 | AB54: 4 | AC54: 64.43128706 | AD54: 0 | AE54: 119 | AF54: 100 | AG54: 95 | AH54: - | AK54: 0 | AL54: 0 | AM54: - | AN54: - | AO54: - | AP54: - | AQ54: - | AR54: - | AS54: - | AT54: -
A55: 57 | B55: Timmermans | C55: Justin | D55: 67 | E55: 64 | F55: 60 | G55: 56 | H55: 68 | I55: 66 | J55: 62 | K55: 63 | L55: 64 | M55: 62 | N55: 65 | O55: 62 | P55: 64 | Q55: Free Agent | R55: Free Agent | S55: - | T55: NED | U55: EU | V55: 1 | W55: 0 | X55: 25 | Y55: 9 | Z55: 1996 | AA55: 25 | AB55: 2 | AC55: 64.69923357 | AD55: 0 | AE55: 119 | AF55: 100 | AG55: 95 | AH55: - | AK55: 178 | AL55: 58 | AM55: - | AN55: - | AO55: - | AP55: - | AQ55: - | AR55: - | AS55: - | AT55: -
A56: 58 | B56: Winter | C56: Laurin | D56: 64 | E56: 64 | F56: 64 | G56: 69 | H56: 68 | I56: 61 | J56: 65 | K56: 63 | L56: 65 | M56: 68 | N56: 67 | O56: 60 | P56: 69 | Q56: Free Agent | R56: Free Agent | S56: - | T56: GER | U56: EU | V56: 1 | W56: 0 | X56: 4 | Y56: 9 | Z56: 1996 | AA56: 25 | AB56: 4 | AC56: 65.93145798 | AD56: 0 | AE56: 119 | AF56: 100 | AG56: 95 | AH56: - | AK56: 185 | AL56: 75 | AM56: - | AN56: - | AO56: - | AP56: - | AQ56: - | AR56: - | AS56: - | AT56: -
A57: 59 | B57: Boivin | C57: Guillaume | D57: 74 | E57: 58 | F57: 70 | G57: 62 | H57: 74 | I57: 70 | J57: 79 | K57: 59 | L57: 79 | M57: 80 | N57: 73 | O57: 67 | P57: 66 | Q57: HelloFresh | R57: Nordstrom - CA Technologies | S57: CT | T57: CAN | U57: NA | V57: 4 | W57: 100 | X57: 25 | Y57: 9 | Z57: 1989 | AA57: 32 | AB57: 6 | AC57: 76.5151007 | AD57: 130000 | AE57: 63 | AF57: 51 | AG57: 45 | AH57: - | AK57: 180 | AL57: 78 | AM57: - | AN57: - | AO57: - | AP57: - | AQ57: - | AR57: - | AS57: - | AT57: -
A58: 60 | B58: Nepomnyachsniy | C58: Yevgeni | D58: 68 | E58: 74 | F58: 71 | G58: 74 | H58: 70 | I58: 70 | J58: 72 | K58: 50 | L58: 50 | M58: 70 | N58: 77 | O58: 64 | P58: 74 | Q58: Cedevita | R58: Swisslion Cycling Team | S58: PCT | T58: KAZ | U58: AS | V58: 4 | W58: 100 | X58: 12 | Y58: 3 | Z58: 1987 | AA58: 34 | AB58: 4 | AC58: 72.94388571 | AD58: 120000 | AE58: 90 | AF58: 75 | AG58: 69 | AH58: - | AK58: 173 | AL58: 61 | AM58: - | AN58: - | AO58: - | AP58: - | AQ58: - | AR58: - | AS58: - | AT58: -
A59: 61 | B59: Domont | C59: Axel | D59: 67 | E59: 70 | F59: 71 | G59: 61 | H59: 69 | I59: 71 | J59: 69 | K59: 55 | L59: 63 | M59: 70 | N59: 71 | O59: 68 | P59: 63 | Q59: Free Agent | R59: Free Agent | S59: - | T59: FRA | U59: EU | V59: 4 | W59: 100 | X59: 7 | Y59: 8 | Z59: 1990 | AA59: 31 | AB59: 3 | AC59: 70.94634445 | AD59: 0 | AE59: 106 | AF59: 89 | AG59: 82 | AH59: - | AK59: 171 | AL59: 61 | AM59: - | AN59: - | AO59: - | AP59: - | AQ59: - | AR59: - | AS59: - | AT59: -
A60: 62 | B60: Randrianambinina | C60: Roger | D60: 72 | E60: 52 | F60: 60 | G60: 56 | H60: 68 | I60: 64 | J60: 69 | K60: 61 | L60: 74 | M60: 76 | N60: 72 | O60: 68 | P60: 60 | Q60: Free Agent | R60: Free Agent | S60: - | T60: MAD | U60: AF | V60: 4 | W60: 100 | X60: 17 | Y60: 10 | Z60: 1989 | AA60: 32 | AB60: 3 | AC60: 71.34241775 | AD60: 0 | AE60: 103 | AF60: 86 | AG60: 80 | AH60: - | AK60: 0 | AL60: 0 | AM60: - | AN60: - | AO60: - | AP60: - | AQ60: - | AR60: - | AS60: - | AT60: -
A61: 63 | B61: Sankara | C61: Hamidou | D61: 74 | E61: 51 | F61: 63 | G61: 55 | H61: 67 | I61: 69 | J61: 65 | K61: 52 | L61: 54 | M61: 54 | N61: 73 | O61: 53 | P61: 55 | Q61: Free Agent | R61: Free Agent | S61: - | T61: CIV | U61: AF | V61: 4 | W61: 100 | X61: 28 | Y61: 7 | Z61: 1988 | AA61: 33 | AB61: 3 | AC61: 67.18208853 | AD61: 0 | AE61: 119 | AF61: 100 | AG61: 95 | AH61: - | AK61: 180 | AL61: 72 | AM61: - | AN61: - | AO61: - | AP61: - | AQ61: - | AR61: - | AS61: - | AT61: -
A62: 64 | B62: Cote | C62: Pier-Andre | D62: 68 | E62: 62 | F62: 67 | G62: 55 | H62: 70 | I62: 70 | J62: 65 | K62: 60 | L62: 67 | M62: 69 | N62: 66 | O62: 68 | P62: 55 | Q62: Glanbia Foods Cycling Project | R62: Glanbia Foods Cycling Project | S62: CT | T62: CAN | U62: NA | V62: 2 | W62: 74 | X62: 24 | Y62: 4 | Z62: 1997 | AA62: 24 | AB62: 5 | AC62: 68.57670326 | AD62: 0 | AE62: 119 | AF62: 100 | AG62: 95 | AH62: - | AJ62: 1 | AK62: 0 | AL62: 0 | AM62: - | AN62: - | AO62: - | AP62: - | AQ62: - | AR62: - | AS62: - | AT62: -
A63: 65 | B63: Koren | C63: Kristjan | D63: 69 | E63: 68 | F63: 70 | G63: 74 | H63: 71 | I63: 69 | J63: 62 | K63: 58 | L63: 63 | M63: 60 | N63: 61 | O63: 66 | P63: 74 | Q63: Tafjord Kraft | R63: Team Europcar | S63: CT | T63: SLO | U63: EU | V63: 4 | W63: 100 | X63: 25 | Y63: 11 | Z63: 1986 | AA63: 35 | AB63: 6 | AC63: 71.02038486 | AD63: 75000 | AE63: 105 | AF63: 89 | AG63: 82 | AH63: - | AK63: 0 | AL63: 0 | AM63: - | AN63: - | AO63: - | AP63: - | AQ63: - | AR63: - | AS63: - | AT63: -
A64: 66 | B64: Evers | C64: Craig | D64: 72 | E64: 56 | F64: 62 | G64: 73 | H64: 66 | I64: 69 | J64: 62 | K64: 53 | L64: 59 | M64: 68 | N64: 74 | O64: 63 | P64: 72 | Q64: Free Agent | R64: Free Agent | S64: - | T64: AUS | U64: OC | V64: 4 | W64: 100 | X64: 8 | Y64: 6 | Z64: 1990 | AA64: 31 | AB64: 3 | AC64: 68.02485898 | AD64: 0 | AE64: 119 | AF64: 100 | AG64: 95 | AH64: - | AK64: 0 | AL64: 0 | AM64: - | AN64: - | AO64: - | AP64: - | AQ64: - | AR64: - | AS64: - | AT64: -
A65: 67 | B65: Stewart | C65: Campbell | D65: 68 | E65: 63 | F65: 63 | G65: 66 | H65: 67 | I65: 65 | J65: 63 | K65: 60 | L65: 64 | M65: 66 | N65: 69 | O65: 66 | P65: 68 | Q65: Free Agent | R65: Free Agent | S65: - | T65: NZL | U65: OC | V65: 1 | W65: 0 | X65: 12 | Y65: 5 | Z65: 1998 | AA65: 23 | AB65: 5 | AC65: 65.5642716 | AD65: 0 | AE65: 119 | AF65: 100 | AG65: 95 | AH65: - | AJ65: 1 | AK65: 0 | AL65: 0 | AM65: - | AN65: - | AO65: - | AP65: - | AQ65: - | AR65: - | AS65: - | AT65: -
A66: 68 | B66: Turgis | C66: Anthony | D66: 73 | E66: 66 | F66: 79 | G66: 65 | H66: 76 | I66: 78 | J66: 70 | K66: 65 | L66: 70 | M66: 77 | N66: 83 | O66: 67 | P66: 68 | Q66: Farfetch Pro Cycling | R66: Farfetch Pro Cycling | S66: PT | T66: FRA | U66: EU | V66: 4 | W66: 100 | X66: 16 | Y66: 5 | Z66: 1994 | AA66: 27 | AB66: 6 | AC66: 77.82239048 | AD66: 150000 | AE66: =ROUND(IF($AC66>79,44-(($AC66-79)*(14/4)),IF($AC66>76,67-(($AC66-76)*(23/3)),IF(110-(($AC66-70.4)*(43/5.6))>119,119,110-(($AC66-70.4)*(43/5.6))))),0) -> 53 | AF66: =ROUND(IF($AC66>79,37-(($AC66-79)*(9/4)),IF($AC66>76,54-(($AC66-76)*(17/3)),IF(93-(($AC66-70.4)*(39/5.6))>100,100,93-(($AC66-70.4)*(39/5.6))))),0) -> 44 | AG66: =ROUND(IF($AC66>79,32-(($AC66-79)*(8/4)),IF($AC66>76,48-(($AC66-76)*(16/3)),IF(86-(($AC66-70.4)*(38/5.6))>95,95,86-(($AC66-70.4)*(38/5.6))))),0) -> 38 | AH66: - | AK66: 179 | AL66: 69 | AM66: - | AN66: - | AO66: - | AP66: - | AQ66: - | AR66: - | AS66: - | AT66: -
A67: 69 | B67: Brochu | C67: Jordan | D67: 69 | E67: 59 | F67: 65 | G67: 70 | H67: 62 | I67: 66 | J67: 59 | K67: 58 | L67: 59 | M67: 62 | N67: 66 | O67: 63 | P67: 69 | Q67: Free Agent | R67: Free Agent | S67: - | T67: CAN | U67: NA | V67: 4 | W67: 0 | X67: 23 | Y67: 10 | Z67: 1992 | AA67: 29 | AB67: 3 | AC67: 66.34452593 | AD67: 0 | AE67: 119 | AF67: 100 | AG67: 95 | AH67: - | AK67: 0 | AL67: 0 | AM67: - | AN67: - | AO67: - | AP67: - | AQ67: - | AR67: - | AS67: - | AT67: -
A68: 70 | B68: Reynaerts | C68: Jan | D68: 62 | E68: 64 | F68: 64 | G68: 63 | H68: 58 | I68: 59 | J68: 55 | K68: 62 | L68: 63 | M68: 60 | N68: 63 | O68: 55 | P68: 57 | Q68: Free Agent | R68: Free Agent | S68: - | T68: BEL | U68: EU | V68: 1 | W68: 0 | X68: 30 | Y68: 7 | Z68: 1997 | AA68: 24 | AB68: 4 | AC68: 63.4927215 | AD68: 0 | AE68: 119 | AF68: 100 | AG68: 95 | AH68: - | AJ68: 1 | AK68: 0 | AL68: 0 | AM68: - | AN68: - | AO68: - | AP68: - | AQ68: - | AR68: - | AS68: - | AT68: -
A69: 71 | B69: Lukkedal | C69: Oivind | D69: 65 | E69: 67 | F69: 67 | G69: 59 | H69: 70 | I69: 67 | J69: 66 | K69: 52 | L69: 59 | M69: 57 | N69: 55 | O69: 63 | P69: 61 | Q69: Free Agent | R69: Free Agent | S69: - | T69: NOR | U69: EU | V69: 1 | W69: 0 | X69: 19 | Y69: 6 | Z69: 1994 | AA69: 27 | AB69: 4 | AC69: 66.17283356 | AD69: 0 | AE69: 119 | AF69: 100 | AG69: 95 | AH69: - | AK69: 178 | AL69: 70 | AM69: - | AN69: - | AO69: - | AP69: - | AQ69: - | AR69: - | AS69: - | AT69: -
A70: 72 | B70: Cioban | C70: Sergiu | D70: 68 | E70: 65 | F70: 75 | G70: 64 | H70: 70 | I70: 66 | J70: 67 | K70: 62 | L70: 64 | M70: 66 | N70: 72 | O70: 70 | P70: 63 | Q70: Free Agent | R70: Free Agent | S70: - | T70: MOL | U70: EU | V70: 4 | W70: 100 | X70: 17 | Y70: 7 | Z70: 1990 | AA70: 31 | AB70: 3 | AC70: 71.1538506 | AD70: 0 | AE70: 104 | AF70: 88 | AG70: 81 | AH70: - | AK70: 180 | AL70: 68 | AM70: - | AN70: - | AO70: - | AP70: - | AQ70: - | AR70: - | AS70: - | AT70: -
A71: 73 | B71: Bol | C71: Jetse | D71: 75 | E71: 68 | F71: 76 | G71: 68 | H71: 71 | I71: 70 | J71: 74 | K71: 62 | L71: 62 | M71: 67 | N71: 73 | O71: 64 | P71: 68 | Q71: Kraftwerk Man Machine | R71: Kraftwerk Man Machine | S71: PCT | T71: NED | U71: EU | V71: 4 | W71: 100 | X71: 8 | Y71: 9 | Z71: 1989 | AA71: 32 | AB71: 5 | AC71: 73.09544936 | AD71: 50000 | AE71: 89 | AF71: 74 | AG71: 68 | AH71: - | AK71: 184 | AL71: 73 | AM71: - | AN71: - | AO71: - | AP71: - | AQ71: - | AR71: - | AS71: - | AT71: -
A72: 74 | B72: Cima | C72: Imerio | D72: 69 | E72: 60 | F72: 63 | G72: 59 | H72: 67 | I72: 68 | J72: 66 | K72: 56 | L72: 71 | M72: 69 | N72: 60 | O72: 59 | P72: 58 | Q72: Free Agent | R72: Campari Asahi Procycling | S72: - | T72: ITA | U72: EU | V72: 2 | W72: 0 | X72: 29 | Y72: 1 | Z72: 1997 | AA72: 24 | AB72: 5 | AC72: 67.81403874 | AD72: 10000 | AE72: 119 | AF72: 100 | AG72: 95 | AH72: - | AJ72: 1 | AK72: 0 | AL72: 0 | AM72: - | AN72: - | AO72: - | AP72: - | AQ72: - | AR72: - | AS72: - | AT72: -
A73: 75 | B73: Aaltio | C73: Risto | D73: 76 | E73: 60 | F73: 67 | G73: 68 | H73: 64 | I73: 69 | J73: 69 | K73: 62 | L73: 60 | M73: 59 | N73: 68 | O73: 62 | P73: 69 | Q73: Free Agent | R73: Valio - Viking Genetics | S73: - | T73: FIN | U73: EU | V73: 4 | W73: 100 | X73: 23 | Y73: 2 | Z73: 1988 | AA73: 33 | AB73: 4 | AC73: 69.82104553 | AD73: 50000 | AE73: 114 | AF73: 97 | AG73: 90 | AH73: - | AK73: 192 | AL73: 85 | AM73: - | AN73: - | AO73: - | AP73: - | AQ73: - | AR73: - | AS73: - | AT73: -
A74: 76 | B74: Roinas | C74: Fridtjof | D74: 65 | E74: 63 | F74: 67 | G74: 58 | H74: 61 | I74: 64 | J74: 63 | K74: 66 | L74: 68 | M74: 70 | N74: 68 | O74: 63 | P74: 63 | Q74: Free Agent | R74: Free Agent | S74: - | T74: NOR | U74: EU | V74: 2 | W74: 33 | X74: 2 | Y74: 8 | Z74: 1994 | AA74: 27 | AB74: 4 | AC74: 67.95026032 | AD74: 0 | AE74: 119 | AF74: 100 | AG74: 95 | AH74: - | AK74: 0 | AL74: 0 | AM74: - | AN74: - | AO74: - | AP74: - | AQ74: - | AR74: - | AS74: - | AT74: -
A75: 77 | B75: Tagliani | C75: Filippo | D75: 65 | E75: 65 | F75: 66 | G75: 60 | H75: 63 | I75: 68 | J75: 66 | K75: 59 | L75: 67 | M75: 68 | N75: 65 | O75: 63 | P75: 59 | Q75: Free Agent | R75: Free Agent | S75: - | T75: ITA | U75: EU | V75: 3 | W75: 53 | X75: 14 | Y75: 8 | Z75: 1995 | AA75: 26 | AB75: 4 | AC75: 67.49167654 | AD75: 0 | AE75: 119 | AF75: 100 | AG75: 95 | AH75: - | AK75: 0 | AL75: 0 | AM75: - | AN75: - | AO75: - | AP75: - | AQ75: - | AR75: - | AS75: - | AT75: -
A76: 78 | B76: Sleen | C76: Torjus | D76: 68 | E76: 69 | F76: 69 | G76: 71 | H76: 67 | I76: 70 | J76: 71 | K76: 60 | L76: 63 | M76: 68 | N76: 70 | O76: 64 | P76: 69 | Q76: Tryg - Ritter Sport | R76: Tryg - Ritter Sport | S76: PCT | T76: NOR | U76: EU | V76: 3 | W76: 42 | X76: 30 | Y76: 3 | Z76: 1997 | AA76: 24 | AB76: 4 | AC76: 69.73640958 | AD76: 50000 | AE76: 115 | AF76: 98 | AG76: 91 | AH76: - | AJ76: 1 | AK76: 0 | AL76: 0 | AM76: - | AN76: - | AO76: - | AP76: - | AQ76: - | AR76: - | AS76: - | AT76: -
A77: 80 | B77: Delaplace | C77: Anthony | D77: 66 | E77: 72 | F77: 74 | G77: 63 | H77: 72 | I77: 74 | J77: 72 | K77: 65 | L77: 56 | M77: 64 | N77: 62 | O77: 75 | P77: 63 | Q77: Free Agent | R77: Free Agent | S77: - | T77: FRA | U77: EU | V77: 4 | W77: 100 | X77: 11 | Y77: 9 | Z77: 1989 | AA77: 32 | AB77: 4 | AC77: 71.89838579 | AD77: 0 | AE77: 98 | AF77: 83 | AG77: 76 | AH77: - | AK77: 0 | AL77: 0 | AM77: - | AN77: - | AO77: - | AP77: - | AQ77: - | AR77: - | AS77: - | AT77: -
A78: 82 | B78: Broberg | C78: Johan | D78: 65 | E78: 62 | F78: 66 | G78: 55 | H78: 63 | I78: 67 | J78: 66 | K78: 53 | L78: 54 | M78: 58 | N78: 67 | O78: 69 | P78: 55 | Q78: Free Agent | R78: Free Agent | S78: - | T78: SWD | U78: EU | V78: 2 | W78: 23 | X78: 12 | Y78: 5 | Z78: 1992 | AA78: 29 | AB78: 4 | AC78: 64.71127328 | AD78: 0 | AE78: 119 | AF78: 100 | AG78: 95 | AH78: - | AK78: 186 | AL78: 73 | AM78: - | AN78: - | AO78: - | AP78: - | AQ78: - | AR78: - | AS78: - | AT78: -
A79: 83 | B79: De Jonghe | C79: Kevin | D79: 64 | E79: 52 | F79: 63 | G79: 67 | H79: 65 | I79: 63 | J79: 62 | K79: 61 | L79: 61 | M79: 66 | N79: 66 | O79: 63 | P79: 66 | Q79: Free Agent | R79: Free Agent | S79: - | T79: BEL | U79: EU | V79: 1 | W79: 0 | X79: 4 | Y79: 12 | Z79: 1991 | AA79: 30 | AB79: 4 | AC79: 64.03197714 | AD79: 0 | AE79: 119 | AF79: 100 | AG79: 95 | AH79: - | AK79: 0 | AL79: 0 | AM79: - | AN79: - | AO79: - | AP79: - | AQ79: - | AR79: - | AS79: - | AT79: -
A80: 84 | B80: Ghyselinck | C80: Jan | D80: 73 | E80: 60 | F80: 67 | G80: 76 | H80: 74 | I80: 76 | J80: 71 | K80: 60 | L80: 63 | M80: 67 | N80: 73 | O80: 60 | P80: 76 | Q80: Carrefour - ESPN | R80: Carrefour - ESPN | S80: PCT | T80: BEL | U80: EU | V80: 4 | W80: 100 | X80: 24 | Y80: 2 | Z80: 1988 | AA80: 33 | AB80: 6 | AC80: 72.63362033 | AD80: 50000 | AE80: 93 | AF80: 77 | AG80: 71 | AH80: - | AK80: 183 | AL80: 75 | AM80: - | AN80: - | AO80: - | AP80: - | AQ80: - | AR80: - | AS80: - | AT80: -
A81: 86 | B81: Day | C81: Tyler | D81: 72 | E81: 60 | F81: 65 | G81: 62 | H81: 73 | I81: 68 | J81: 74 | K81: 60 | L81: 76 | M81: 77 | N81: 62 | O81: 59 | P81: 66 | Q81: Free Agent | R81: Free Agent | S81: - | T81: RSA | U81: AF | V81: 4 | W81: 100 | X81: 20 | Y81: 11 | Z81: 1989 | AA81: 32 | AB81: 5 | AC81: 73.07250461 | AD81: 0 | AE81: 89 | AF81: 74 | AG81: 68 | AH81: - | AK81: 0 | AL81: 0 | AM81: - | AN81: - | AO81: - | AP81: - | AQ81: - | AR81: - | AS81: - | AT81: -
A82: 87 | B82: Dall'Oste | C82: Daniele | D82: 70 | E82: 76 | F82: 76 | G82: 67 | H82: 71 | I82: 74 | J82: 75 | K82: 56 | L82: 58 | M82: 71 | N82: 73 | O82: 71 | P82: 67 | Q82: Free Agent | R82: Sotto il sole di riccione | S82: - | T82: ITA | U82: EU | V82: 4 | W82: 100 | X82: 24 | Y82: 5 | Z82: 1991 | AA82: 30 | AB82: 5 | AC82: 75.48824884 | AD82: 140000 | AE82: 71 | AF82: 58 | AG82: 51 | AH82: - | AK82: 0 | AL82: 0 | AM82: - | AN82: - | AO82: - | AP82: - | AQ82: - | AR82: - | AS82: - | AT82: -
A83: 88 | B83: Nepomnyachsniy | C83: Alexandr | D83: 71 | E83: 50 | F83: 61 | G83: 64 | H83: 69 | I83: 61 | J83: 73 | K83: 73 | L83: 75 | M83: 71 | N83: 67 | O83: 74 | P83: 64 | Q83: Red Bull Zalgiris | R83: DK - SVA Zalgiris | S83: PCT | T83: KAZ | U83: AS | V83: 4 | W83: 100 | X83: 12 | Y83: 3 | Z83: 1987 | AA83: 34 | AB83: 4 | AC83: 70.66933216 | AD83: 65000 | AE83: 108 | AF83: 91 | AG83: 84 | AH83: - | AK83: 175 | AL83: 75 | AM83: - | AN83: - | AO83: - | AP83: - | AQ83: - | AR83: - | AS83: - | AT83: -
A84: 89 | B84: Baillifard | C84: Valentin | D84: 68 | E84: 68 | F84: 68 | G84: 68 | H84: 69 | I84: 69 | J84: 68 | K84: 55 | L84: 62 | M84: 68 | N84: 64 | O84: 64 | P84: 66 | Q84: Free Agent | R84: Free Agent | S84: - | T84: SWI | U84: EU | V84: 2 | W84: 0 | X84: 25 | Y84: 12 | Z84: 1993 | AA84: 28 | AB84: 4 | AC84: 68.89689153 | AD84: 0 | AE84: 119 | AF84: 100 | AG84: 95 | AH84: - | AK84: 0 | AL84: 0 | AM84: - | AN84: - | AO84: - | AP84: - | AQ84: - | AR84: - | AS84: - | AT84: -
A85: 90 | B85: Restrepo | C85: Jaime | D85: 65 | E85: 68 | F85: 66 | G85: 66 | H85: 66 | I85: 68 | J85: 69 | K85: 60 | L85: 62 | M85: 64 | N85: 62 | O85: 63 | P85: 64 | Q85: Free Agent | R85: Free Agent | S85: - | T85: COL | U85: SA | V85: 2 | W85: 0 | X85: 26 | Y85: 9 | Z85: 1996 | AA85: 25 | AB85: 4 | AC85: 67.08800852 | AD85: 0 | AE85: 119 | AF85: 100 | AG85: 95 | AH85: - | AK85: 175 | AL85: 68 | AM85: - | AN85: - | AO85: - | AP85: - | AQ85: - | AR85: - | AS85: - | AT85: -
A86: 91 | B86: Double | C86: Paul | D86: 64 | E86: 68 | F86: 70 | G86: 60 | H86: 64 | I86: 66 | J86: 67 | K86: 60 | L86: 62 | M86: 69 | N86: 64 | O86: 71 | P86: 60 | Q86: Free Agent | R86: Free Agent | S86: - | T86: GBR | U86: EU | V86: 3 | W86: 17 | X86: 25 | Y86: 6 | Z86: 1996 | AA86: 25 | AB86: 4 | AC86: 69.10201417 | AD86: 0 | AE86: 119 | AF86: 100 | AG86: 95 | AH86: - | AK86: 186 | AL86: 69 | AM86: - | AN86: - | AO86: - | AP86: - | AQ86: - | AR86: - | AS86: - | AT86: -
A87: 92 | B87: Kiserlovski | C87: Robert | D87: 66 | E87: 76 | F87: 71 | G87: 68 | H87: 66 | I87: 69 | J87: 65 | K87: 50 | L87: 53 | M87: 60 | N87: 67 | O87: 62 | P87: 67 | Q87: Kraftwerk Man Machine | R87: Kraftwerk Man Machine | S87: PCT | T87: CRO | U87: EU | V87: 4 | W87: 100 | X87: 9 | Y87: 8 | Z87: 1986 | AA87: 35 | AB87: 6 | AC87: 72.72290432 | AD87: 100000 | AE87: 92 | AF87: 77 | AG87: 70 | AH87: - | AK87: 180 | AL87: 72 | AM87: - | AN87: - | AO87: - | AP87: - | AQ87: - | AR87: - | AS87: - | AT87: -
A88: 94 | B88: Haavardsholm | C88: Ole | D88: 64 | E88: 69 | F88: 75 | G88: 62 | H88: 67 | I88: 69 | J88: 65 | K88: 51 | L88: 69 | M88: 80 | N88: 72 | O88: 71 | P88: 62 | Q88: Free Agent | R88: Free Agent | S88: - | T88: NOR | U88: EU | V88: 4 | W88: 100 | X88: 18 | Y88: 7 | Z88: 1989 | AA88: 32 | AB88: 4 | AC88: 74.16064463 | AD88: 0 | AE88: 81 | AF88: 67 | AG88: 60 | AH88: - | AK88: 187 | AL88: 70 | AM88: - | AN88: - | AO88: - | AP88: - | AQ88: - | AR88: - | AS88: - | AT88: -
A89: 95 | B89: Stavrakakis | C89: Georgios | D89: 72 | E89: 61 | F89: 67 | G89: 71 | H89: 70 | I89: 67 | J89: 64 | K89: 72 | L89: 64 | M89: 67 | N89: 69 | O89: 61 | P89: 73 | Q89: Festina - OAKA | R89: Swisslion Cycling Team | S89: PT | T89: GRE | U89: EU | V89: 3 | W89: 10 | X89: 22 | Y89: 4 | Z89: 1998 | AA89: 23 | AB89: 5 | AC89: 71.09771401 | AD89: 75000 | AE89: 105 | AF89: 88 | AG89: 81 | AH89: - | AJ89: 1 | AK89: 175 | AL89: 71 | AM89: - | AN89: - | AO89: - | AP89: - | AQ89: - | AR89: - | AS89: - | AT89: -
A90: 97 | B90: Woolridge | C90: Phillip | D90: 68 | E90: 62 | F90: 65 | G90: 70 | H90: 61 | I90: 66 | J90: 65 | K90: 50 | L90: 57 | M90: 61 | N90: 54 | O90: 65 | P90: 68 | Q90: Free Agent | R90: Free Agent | S90: - | T90: BER | U90: NA | V90: 4 | W90: 100 | X90: 9 | Y90: 6 | Z90: 1991 | AA90: 30 | AB90: 2 | AC90: 66.53208269 | AD90: 0 | AE90: 119 | AF90: 100 | AG90: 95 | AH90: - | AK90: 183 | AL90: 79 | AM90: - | AN90: - | AO90: - | AP90: - | AQ90: - | AR90: - | AS90: - | AT90: -
A91: 98 | B91: Mas | C91: Lluis | D91: 78 | E91: 61 | F91: 65 | G91: 68 | H91: 66 | I91: 71 | J91: 61 | K91: 57 | L91: 71 | M91: 78 | N91: 68 | O91: 65 | P91: 70 | Q91: Repsol - Netflix | R91: Repsol - Netflix | S91: PT | T91: ESP | U91: EU | V91: 4 | W91: 100 | X91: 15 | Y91: 1 | Z91: 1989 | AA91: 32 | AB91: 4 | AC91: 72.57576613 | AD91: 50000 | AE91: 93 | AF91: 78 | AG91: 71 | AH91: - | AK91: 0 | AL91: 0 | AM91: - | AN91: - | AO91: - | AP91: - | AQ91: - | AR91: - | AS91: - | AT91: -
A92: 99 | B92: Locatelli | C92: Paolo | D92: 71 | E92: 65 | F92: 72 | G92: 60 | H92: 74 | I92: 71 | J92: 70 | K92: 66 | L92: 65 | M92: 68 | N92: 64 | O92: 61 | P92: 60 | Q92: Free Agent | R92: Free Agent | S92: - | T92: ITA | U92: EU | V92: 4 | W92: 100 | X92: 4 | Y92: 11 | Z92: 1989 | AA92: 32 | AB92: 5 | AC92: 71.06285697 | AD92: 0 | AE92: 105 | AF92: 88 | AG92: 82 | AH92: - | AK92: 0 | AL92: 0 | AM92: - | AN92: - | AO92: - | AP92: - | AQ92: - | AR92: - | AS92: - | AT92: -
A93: 100 | B93: Zenagui | C93: Marwane | D93: 69 | E93: 61 | F93: 59 | G93: 68 | H93: 59 | I93: 61 | J93: 62 | K93: 60 | L93: 52 | M93: 57 | N93: 69 | O93: 57 | P93: 68 | Q93: Free Agent | R93: Free Agent | S93: - | T93: TUN | U93: AF | V93: 2 | W93: 93 | X93: 16 | Y93: 4 | Z93: 1990 | AA93: 31 | AB93: 5 | AC93: 65.05073828 | AD93: 0 | AE93: 119 | AF93: 100 | AG93: 95 | AH93: - | AK93: 0 | AL93: 0 | AM93: - | AN93: - | AO93: - | AP93: - | AQ93: - | AR93: - | AS93: - | AT93: -
A94: 101 | B94: Stannard | C94: Ian | D94: 73 | E94: 51 | F94: 53 | G94: 77 | H94: 66 | I94: 67 | J94: 62 | K94: 64 | L94: 55 | M94: 69 | N94: 67 | O94: 59 | P94: 77 | Q94: cycleYorkshire | R94: cycleYorkshire | S94: PCT | T94: GBR | U94: EU | V94: 4 | W94: 100 | X94: 25 | Y94: 5 | Z94: 1987 | AA94: 34 | AB94: 6 | AC94: 71.30605687 | AD94: 50000 | AE94: 103 | AF94: 87 | AG94: 80 | AH94: - | AK94: 190 | AL94: 80 | AM94: - | AN94: - | AO94: - | AP94: - | AQ94: - | AR94: - | AS94: - | AT94: -
A95: 102 | B95: Nsengimana | C95: Jean Bosco | D95: 65 | E95: 72 | F95: 71 | G95: 72 | H95: 71 | I95: 70 | J95: 72 | K95: 53 | L95: 66 | M95: 72 | N95: 74 | O95: 66 | P95: 74 | Q95: Free Agent | R95: Free Agent | S95: - | T95: RWA | U95: AF | V95: 4 | W95: 1 | X95: 4 | Y95: 11 | Z95: 1992 | AA95: 29 | AB95: 4 | AC95: 71.71178041 | AD95: 0 | AE95: 100 | AF95: 84 | AG95: 77 | AH95: - | AK95: 0 | AL95: 0 | AM95: - | AN95: - | AO95: - | AP95: - | AQ95: - | AR95: - | AS95: - | AT95: -
A96: 103 | B96: Hulgaard | C96: Morten | D96: 68 | E96: 64 | F96: 68 | G96: 71 | H96: 70 | I96: 68 | J96: 67 | K96: 58 | L96: 65 | M96: 65 | N96: 65 | O96: 66 | P96: 70 | Q96: Gjensidige Pro Cycling Team | R96: Gjensidige Pro Cycling Team | S96: CT | T96: DEN | U96: EU | V96: 3 | W96: 2 | X96: 23 | Y96: 8 | Z96: 1998 | AA96: 23 | AB96: 5 | AC96: 68.40129282 | AD96: 50000 | AE96: 119 | AF96: 100 | AG96: 95 | AH96: - | AJ96: 1 | AK96: 162 | AL96: 48 | AM96: - | AN96: - | AO96: - | AP96: - | AQ96: - | AR96: - | AS96: - | AT96: -
A97: 104 | B97: Yates | C97: Joel | D97: 69 | E97: 63 | F97: 73 | G97: 68 | H97: 73 | I97: 72 | J97: 69 | K97: 63 | L97: 61 | M97: 66 | N97: 70 | O97: 68 | P97: 68 | Q97: BNZ-Superhero Racing | R97: BNZ Cycling Team | S97: CT | T97: NZL | U97: OC | V97: 3 | W97: 94 | X97: 29 | Y97: 11 | Z97: 1996 | AA97: 25 | AB97: 4 | AC97: 70.73518406 | AD97: 60000 | AE97: 107 | AF97: 91 | AG97: 84 | AH97: - | AK97: 0 | AL97: 0 | AM97: - | AN97: - | AO97: - | AP97: - | AQ97: - | AR97: - | AS97: - | AT97: -
A98: 106 | B98: Fernandes | C98: Jose | D98: 71 | E98: 75 | F98: 70 | G98: 77 | H98: 78 | I98: 77 | J98: 76 | K98: 53 | L98: 62 | M98: 67 | N98: 60 | O98: 68 | P98: 77 | Q98: Binance Cycling | R98: Generali | S98: PCT | T98: POR | U98: EU | V98: 4 | W98: 100 | X98: 30 | Y98: 10 | Z98: 1995 | AA98: 26 | AB98: 4 | AC98: 75.9310356 | AD98: 50000 | AE98: 68 | AF98: 54 | AG98: 48 | AH98: - | AK98: 175 | AL98: 60 | AM98: - | AN98: - | AO98: - | AP98: - | AQ98: - | AR98: - | AS98: - | AT98: -
A99: 107 | B99: Boem | C99: Nicola | D99: 74 | E99: 55 | F99: 63 | G99: 60 | H99: 72 | I99: 69 | J99: 70 | K99: 50 | L99: 68 | M99: 72 | N99: 72 | O99: 68 | P99: 59 | Q99: Free Agent | R99: Sotto il sole di riccione | S99: - | T99: ITA | U99: EU | V99: 4 | W99: 100 | X99: 27 | Y99: 9 | Z99: 1989 | AA99: 32 | AB99: 4 | AC99: 68.44451923 | AD99: 50000 | AE99: 119 | AF99: 100 | AG99: 95 | AH99: - | AK99: 0 | AL99: 0 | AM99: - | AN99: - | AO99: - | AP99: - | AQ99: - | AR99: - | AS99: - | AT99: -
A100: 108 | B100: Pietrula | C100: Nicolas | D100: 67 | E100: 56 | F100: 64 | G100: 69 | H100: 67 | I100: 64 | J100: 65 | K100: 62 | L100: 65 | M100: 64 | N100: 59 | O100: 68 | P100: 69 | Q100: Free Agent | R100: Free Agent | S100: - | T100: CZE | U100: EU | V100: 1 | W100: 0 | X100: 5 | Y100: 8 | Z100: 1995 | AA100: 26 | AB100: 3 | AC100: 65.33731701 | AD100: 0 | AE100: 119 | AF100: 100 | AG100: 95 | AH100: - | AK100: 0 | AL100: 0 | AM100: - | AN100: - | AO100: - | AP100: - | AQ100: - | AR100: - | AS100: - | AT100: -
A101: 109 | B101: Gesink | C101: Robert | D101: 69 | E101: 79 | F101: 77 | G101: 76 | H101: 72 | I101: 74 | J101: 74 | K101: 62 | L101: 57 | M101: 62 | N101: 68 | O101: 62 | P101: 76 | Q101: Duolingo | R101: Duolingo | S101: PCT | T101: NED | U101: EU | V101: 4 | W101: 100 | X101: 31 | Y101: 5 | Z101: 1986 | AA101: 35 | AB101: 7 | AC101: 77.19695488 | AD101: 575000 | AE101: 58 | AF101: 47 | AG101: 42 | AH101: - | AK101: 189 | AL101: 70 | AM101: - | AN101: - | AO101: - | AP101: - | AQ101: - | AR101: - | AS101: - | AT101: -
A102: 110 | B102: Chavez | C102: Herbert Ivan | D102: 69 | E102: 69 | F102: 69 | G102: 61 | H102: 66 | I102: 64 | J102: 62 | K102: 55 | L102: 62 | M102: 64 | N102: 63 | O102: 63 | P102: 60 | Q102: Free Agent | R102: Free Agent | S102: - | T102: PER | U102: SA | V102: 4 | W102: 0 | X102: 5 | Y102: 7 | Z102: 1989 | AA102: 32 | AB102: 3 | AC102: 68.19465747 | AD102: 0 | AE102: 119 | AF102: 100 | AG102: 95 | AH102: - | AK102: 0 | AL102: 0 | AM102: - | AN102: - | AO102: - | AP102: - | AQ102: - | AR102: - | AS102: - | AT102: -
A103: 111 | B103: Guarnieri | C103: Jacopo | D103: 74 | E103: 56 | F103: 64 | G103: 50 | H103: 74 | I103: 73 | J103: 78 | K103: 62 | L103: 80 | M103: 78 | N103: 66 | O103: 60 | P103: 73 | Q103: Assa Abloy | R103: Bakkafrost | S103: PCT | T103: ITA | U103: EU | V103: 4 | W103: 100 | X103: 14 | Y103: 8 | Z103: 1987 | AA103: 34 | AB103: 6 | AC103: 76.18113378 | AD103: 360000 | AE103: 66 | AF103: 53 | AG103: 47 | AH103: - | AK103: 189 | AL103: 78 | AM103: - | AN103: - | AO103: - | AP103: - | AQ103: - | AR103: - | AS103: - | AT103: -
A104: 112 | B104: Thorsteinsson | C104: Hlynur | D104: 63 | E104: 52 | F104: 55 | G104: 70 | H104: 52 | I104: 66 | J104: 57 | K104: 52 | L104: 52 | M104: 53 | N104: 51 | O104: 57 | P104: 71 | Q104: Free Agent | R104: Free Agent | S104: - | T104: ISL | U104: EU | V104: 4 | W104: 100 | X104: 13 | Y104: 7 | Z104: 1988 | AA104: 33 | AB104: 4 | AC104: 64.09591155 | AD104: 0 | AE104: 119 | AF104: 100 | AG104: 95 | AH104: - | AK104: 0 | AL104: 0 | AM104: - | AN104: - | AO104: - | AP104: - | AQ104: - | AR104: - | AS104: - | AT104: -
A105: 113 | B105: Molano | C105: Juan Sebastian | D105: 71 | E105: 61 | F105: 63 | G105: 60 | H105: 68 | I105: 68 | J105: 73 | K105: 68 | L105: 72 | M105: 75 | N105: 64 | O105: 63 | P105: 66 | Q105: Free Agent | R105: Free Agent | S105: - | T105: COL | U105: SA | V105: 3 | W105: 43 | X105: 4 | Y105: 11 | Z105: 1994 | AA105: 27 | AB105: 4 | AC105: 70.59827795 | AD105: 0 | AE105: 108 | AF105: 92 | AG105: 85 | AH105: - | AK105: 0 | AL105: 0 | AM105: - | AN105: - | AO105: - | AP105: - | AQ105: - | AR105: - | AS105: - | AT105: -
A106: 114 | B106: Jabrayilov | C106: Samir | D106: 64 | E106: 67 | F106: 66 | G106: 65 | H106: 67 | I106: 67 | J106: 66 | K106: 61 | L106: 65 | M106: 59 | N106: 61 | O106: 63 | P106: 68 | Q106: Free Agent | R106: Free Agent | S106: - | T106: AZE | U106: EU | V106: 1 | W106: 62 | X106: 7 | Y106: 9 | Z106: 1994 | AA106: 27 | AB106: 5 | AC106: 66.31106867 | AD106: 0 | AE106: 119 | AF106: 100 | AG106: 95 | AH106: - | AK106: 0 | AL106: 0 | AM106: - | AN106: - | AO106: - | AP106: - | AQ106: - | AR106: - | AS106: - | AT106: -
A107: 115 | B107: Van der Kooij | C107: Bas | D107: 73 | E107: 62 | F107: 69 | G107: 60 | H107: 75 | I107: 74 | J107: 83 | K107: 66 | L107: 78 | M107: 77 | N107: 62 | O107: 66 | P107: 66 | Q107: Huski Chocolate | R107: eBuddy | S107: PT | T107: NED | U107: EU | V107: 4 | W107: 100 | X107: 16 | Y107: 11 | Z107: 1995 | AA107: 26 | AB107: 4 | AC107: 74.55176008 | AD107: 60000 | AE107: 78 | AF107: 64 | AG107: 58 | AH107: - | AK107: 0 | AL107: 0 | AM107: - | AN107: - | AO107: - | AP107: - | AQ107: - | AR107: - | AS107: - | AT107: -
A108: 116 | B108: Ockeloen | C108: Jasper | D108: 68 | E108: 73 | F108: 74 | G108: 64 | H108: 69 | I108: 70 | J108: 70 | K108: 60 | L108: 68 | M108: 68 | N108: 68 | O108: 70 | P108: 64 | Q108: Free Agent | R108: Free Agent | S108: - | T108: NED | U108: EU | V108: 4 | W108: 100 | X108: 10 | Y108: 5 | Z108: 1990 | AA108: 31 | AB108: 4 | AC108: 72.75176059 | AD108: 0 | AE108: 92 | AF108: 77 | AG108: 70 | AH108: - | AK108: 186 | AL108: 66 | AM108: - | AN108: - | AO108: - | AP108: - | AQ108: - | AR108: - | AS108: - | AT108: -
A109: 117 | B109: Van Meirhaeghe | C109: Jef | D109: 65 | E109: 54 | F109: 63 | G109: 65 | H109: 68 | I109: 65 | J109: 61 | K109: 58 | L109: 66 | M109: 70 | N109: 62 | O109: 60 | P109: 65 | Q109: Free Agent | R109: Free Agent | S109: - | T109: BEL | U109: EU | V109: 3 | W109: 0 | X109: 21 | Y109: 1 | Z109: 1992 | AA109: 29 | AB109: 3 | AC109: 65.87920469 | AD109: 0 | AE109: 119 | AF109: 100 | AG109: 95 | AH109: - | AK109: 177 | AL109: 66 | AM109: - | AN109: - | AO109: - | AP109: - | AQ109: - | AR109: - | AS109: - | AT109: -
A110: 118 | B110: Phinney | C110: Taylor | D110: 73 | E110: 85 | F110: 77 | G110: 83 | H110: 77 | I110: 74 | J110: 76 | K110: 58 | L110: 72 | M110: 75 | N110: 68 | O110: 71 | P110: 83 | Q110: Isostar - Specialized | R110: Isostar - Specialized | S110: PT | T110: USA | U110: NA | V110: 4 | W110: 100 | X110: 27 | Y110: 6 | Z110: 1990 | AA110: 31 | AB110: 7 | AC110: 81.69912944 | AD110: 1100000 | AE110: 35 | AF110: 31 | AG110: 27 | AH110: - | AK110: 0 | AL110: 0 | AM110: - | AN110: - | AO110: - | AP110: - | AQ110: - | AR110: - | AS110: - | AT110: -
A111: 119 | B111: Curry | C111: Chris | D111: 66 | E111: 63 | F111: 61 | G111: 63 | H111: 60 | I111: 62 | J111: 63 | K111: 61 | L111: 70 | M111: 69 | N111: 66 | O111: 64 | P111: 65 | Q111: Free Agent | R111: Free Agent | S111: - | T111: BAH | U111: NA | V111: 4 | W111: 100 | X111: 14 | Y111: 10 | Z111: 1990 | AA111: 31 | AB111: 2 | AC111: 66.83015005 | AD111: 0 | AE111: 119 | AF111: 100 | AG111: 95 | AH111: - | AK111: 0 | AL111: 0 | AM111: - | AN111: - | AO111: - | AP111: - | AQ111: - | AR111: - | AS111: - | AT111: -
A112: 120 | B112: Jakobsen | C112: Fabio | D112: 74 | E112: 59 | F112: 67 | G112: 59 | H112: 75 | I112: 73 | J112: 81 | K112: 73 | L112: 80 | M112: 80 | N112: 67 | O112: 68 | P112: 69 | Q112: Aramco DP | R112: King Power | S112: CT | T112: NED | U112: EU | V112: 4 | W112: 100 | X112: 31 | Y112: 8 | Z112: 1996 | AA112: 25 | AB112: 6 | AC112: 77.22792686 | AD112: 95000 | AE112: 58 | AF112: 47 | AG112: 41 | AH112: - | AK112: 181 | AL112: 78 | AM112: - | AN112: - | AO112: - | AP112: - | AQ112: - | AR112: - | AS112: - | AT112: -
A113: 121 | B113: Karic | C113: Vedad | D113: 65 | E113: 70 | F113: 67 | G113: 65 | H113: 62 | I113: 65 | J113: 67 | K113: 59 | L113: 50 | M113: 52 | N113: 57 | O113: 62 | P113: 66 | Q113: Free Agent | R113: Free Agent | S113: - | T113: BIH | U113: EU | V113: 4 | W113: 100 | X113: 6 | Y113: 3 | Z113: 1988 | AA113: 33 | AB113: 3 | AC113: 67.90672717 | AD113: 0 | AE113: 119 | AF113: 100 | AG113: 95 | AH113: - | AK113: 0 | AL113: 0 | AM113: - | AN113: - | AO113: - | AP113: - | AQ113: - | AR113: - | AS113: - | AT113: -
A114: 122 | B114: Richardson | C114: Chequan | D114: 71 | E114: 61 | F114: 67 | G114: 63 | H114: 68 | I114: 68 | J114: 64 | K114: 78 | L114: 60 | M114: 61 | N114: 75 | O114: 66 | P114: 63 | Q114: Free Agent | R114: Azteca - NBCSN | S114: - | T114: BER | U114: NA | V114: 4 | W114: 100 | X114: 23 | Y114: 9 | Z114: 1993 | AA114: 28 | AB114: 4 | AC114: 73.33843224 | AD114: 60000 | AE114: 87 | AF114: 73 | AG114: 66 | AH114: - | AK114: 0 | AL114: 0 | AM114: - | AN114: - | AO114: - | AP114: - | AQ114: - | AR114: - | AS114: - | AT114: -
A115: 123 | B115: Small | C115: Russell | D115: 70 | E115: 50 | F115: 56 | G115: 53 | H115: 67 | I115: 64 | J115: 70 | K115: 70 | L115: 70 | M115: 72 | N115: 59 | O115: 68 | P115: 59 | Q115: Free Agent | R115: Free Agent | S115: - | T115: JAM | U115: NA | V115: 4 | W115: 100 | X115: 28 | Y115: 11 | Z115: 1991 | AA115: 30 | AB115: 3 | AC115: 68.38068218 | AD115: 0 | AE115: 119 | AF115: 100 | AG115: 95 | AH115: - | AK115: 0 | AL115: 0 | AM115: - | AN115: - | AO115: - | AP115: - | AQ115: - | AR115: - | AS115: - | AT115: -
A116: 124 | B116: Jeret | C116: Timmo | D116: 67 | E116: 52 | F116: 56 | G116: 69 | H116: 67 | I116: 66 | J116: 58 | K116: 51 | L116: 59 | M116: 52 | N116: 55 | O116: 62 | P116: 68 | Q116: Free Agent | R116: Free Agent | S116: - | T116: EST | U116: EU | V116: 2 | W116: 0 | X116: 9 | Y116: 5 | Z116: 1993 | AA116: 28 | AB116: 3 | AC116: 63.84299462 | AD116: 0 | AE116: 119 | AF116: 100 | AG116: 95 | AH116: - | AK116: 0 | AL116: 0 | AM116: - | AN116: - | AO116: - | AP116: - | AQ116: - | AR116: - | AS116: - | AT116: -
A117: 125 | B117: Quaade | C117: Rasmus | D117: 71 | E117: 54 | F117: 63 | G117: 78 | H117: 72 | I117: 70 | J117: 65 | K117: 59 | L117: 61 | M117: 63 | N117: 66 | O117: 60 | P117: 76 | Q117: Carlsberg - Danske Bank | R117: Carlsberg - Danske Bank | S117: PCT | T117: DEN | U117: EU | V117: 4 | W117: 100 | X117: 7 | Y117: 1 | Z117: 1990 | AA117: 31 | AB117: 4 | AC117: 71.91618232 | AD117: 50000 | AE117: 98 | AF117: 82 | AG117: 76 | AH117: - | AK117: 188 | AL117: 77 | AM117: - | AN117: - | AO117: - | AP117: - | AQ117: - | AR117: - | AS117: - | AT117: -
A118: 128 | B118: Bolor-Erdene | C118: Enkhtaivan | D118: 77 | E118: 62 | F118: 66 | G118: 71 | H118: 71 | I118: 77 | J118: 70 | K118: 63 | L118: 64 | M118: 73 | N118: 71 | O118: 71 | P118: 71 | Q118: Indosat Ooredoo | R118: Indosat Ooredoo | S118: PCT | T118: MGL | U118: AS | V118: 4 | W118: 100 | X118: 8 | Y118: 6 | Z118: 1995 | AA118: 26 | AB118: 4 | AC118: 70.88512722 | AD118: 50000 | AE118: 106 | AF118: 90 | AG118: 83 | AH118: - | AK118: 171 | AL118: 64 | AM118: - | AN118: - | AO118: - | AP118: - | AQ118: - | AR118: - | AS118: - | AT118: -
A119: 129 | B119: Daniel | C119: Gregory | D119: 75 | E119: 67 | F119: 72 | G119: 77 | H119: 75 | I119: 74 | J119: 72 | K119: 55 | L119: 56 | M119: 68 | N119: 73 | O119: 69 | P119: 76 | Q119: Gjensidige Pro Cycling Team | R119: Isostar - Specialized | S119: CT | T119: USA | U119: NA | V119: 4 | W119: 100 | X119: 8 | Y119: 11 | Z119: 1994 | AA119: 27 | AB119: 5 | AC119: 74.34857541 | AD119: 50000 | AE119: 80 | AF119: 66 | AG119: 59 | AH119: - | AK119: 194 | AL119: 81 | AM119: - | AN119: - | AO119: - | AP119: - | AQ119: - | AR119: - | AS119: - | AT119: -
A120: 130 | B120: Teklehaimanot | C120: Temesgen | D120: 67 | E120: 66 | F120: 65 | G120: 53 | H120: 68 | I120: 69 | J120: 68 | K120: 50 | L120: 65 | M120: 72 | N120: 62 | O120: 67 | P120: 55 | Q120: Free Agent | R120: Free Agent | S120: - | T120: ERI | U120: AF | V120: 2 | W120: 0 | X120: 3 | Y120: 1 | Z120: 1991 | AA120: 30 | AB120: 4 | AC120: 68.09120814 | AD120: 0 | AE120: 119 | AF120: 100 | AG120: 95 | AH120: - | AK120: 0 | AL120: 0 | AM120: - | AN120: - | AO120: - | AP120: - | AQ120: - | AR120: - | AS120: - | AT120: -
A121: 131 | B121: Rowe | C121: Luke | D121: 78 | E121: 55 | F121: 66 | G121: 65 | H121: 76 | I121: 70 | J121: 79 | K121: 75 | L121: 79 | M121: 80 | N121: 75 | O121: 71 | P121: 74 | Q121: Xero Racing | R121: Xero Racing | S121: PT | T121: GBR | U121: EU | V121: 4 | W121: 100 | X121: 10 | Y121: 3 | Z121: 1990 | AA121: 31 | AB121: 5 | AC121: 77.51081524 | AD121: 370000 | AE121: 55 | AF121: 45 | AG121: 40 | AH121: - | AK121: 185 | AL121: 72 | AM121: - | AN121: - | AO121: - | AP121: - | AQ121: - | AR121: - | AS121: - | AT121: -
A122: 132 | B122: van Schip | C122: Jan-Willem | D122: 69 | E122: 56 | F122: 65 | G122: 60 | H122: 71 | I122: 73 | J122: 69 | K122: 68 | L122: 71 | M122: 73 | N122: 70 | O122: 65 | P122: 71 | Q122: Free Agent | R122: Free Agent | S122: - | T122: NED | U122: EU | V122: 3 | W122: 64 | X122: 20 | Y122: 8 | Z122: 1994 | AA122: 27 | AB122: 3 | AC122: 69.50516945 | AD122: 0 | AE122: 117 | AF122: 99 | AG122: 92 | AH122: - | AK122: 0 | AL122: 0 | AM122: - | AN122: - | AO122: - | AP122: - | AQ122: - | AR122: - | AS122: - | AT122: -
A123: 133 | B123: Gjolberg | C123: Adrian | D123: 76 | E123: 59 | F123: 67 | G123: 64 | H123: 68 | I123: 74 | J123: 64 | K123: 65 | L123: 69 | M123: 74 | N123: 77 | O123: 60 | P123: 64 | Q123: Free Agent | R123: Free Agent | S123: - | T123: NOR | U123: EU | V123: 4 | W123: 100 | X123: 23 | Y123: 2 | Z123: 1989 | AA123: 32 | AB123: 3 | AC123: 71.02789905 | AD123: 0 | AE123: 105 | AF123: 89 | AG123: 82 | AH123: - | AK123: 0 | AL123: 0 | AM123: - | AN123: - | AO123: - | AP123: - | AQ123: - | AR123: - | AS123: - | AT123: -
A124: 134 | B124: Van der Ploeg | C124: Paul | D124: 68 | E124: 66 | F124: 69 | G124: 71 | H124: 71 | I124: 69 | J124: 72 | K124: 56 | L124: 70 | M124: 72 | N124: 69 | O124: 56 | P124: 71 | Q124: Glanbia Foods Cycling Project | R124: Glanbia Foods Cycling Project | S124: CT | T124: AUS | U124: OC | V124: 4 | W124: 100 | X124: 11 | Y124: 9 | Z124: 1989 | AA124: 32 | AB124: 4 | AC124: 70.50116916 | AD124: 50000 | AE124: 109 | AF124: 92 | AG124: 85 | AH124: - | AK124: 0 | AL124: 0 | AM124: - | AN124: - | AO124: - | AP124: - | AQ124: - | AR124: - | AS124: - | AT124: -
A125: 135 | B125: Hill | C125: Benjamin | D125: 71 | E125: 64 | F125: 69 | G125: 63 | H125: 66 | I125: 73 | J125: 64 | K125: 65 | L125: 68 | M125: 72 | N125: 78 | O125: 69 | P125: 67 | Q125: Free Agent | R125: Free Agent | S125: - | T125: AUS | U125: OC | V125: 4 | W125: 6 | X125: 5 | Y125: 2 | Z125: 1990 | AA125: 31 | AB125: 5 | AC125: 70.76894531 | AD125: 0 | AE125: 107 | AF125: 90 | AG125: 83 | AH125: - | AK125: 189 | AL125: 66 | AM125: - | AN125: - | AO125: - | AP125: - | AQ125: - | AR125: - | AS125: - | AT125: -
A126: 136 | B126: Wirtgen | C126: Luc | D126: 69 | E126: 70 | F126: 70 | G126: 63 | H126: 71 | I126: 70 | J126: 70 | K126: 58 | L126: 66 | M126: 64 | N126: 65 | O126: 68 | P126: 63 | Q126: EA Vesuvio | R126: McCormick Pro Cycling | S126: PT | T126: LUX | U126: EU | V126: 3 | W126: 6 | X126: 7 | Y126: 7 | Z126: 1998 | AA126: 23 | AB126: 5 | AC126: 70.01223159 | AD126: 50000 | AE126: 113 | AF126: 96 | AG126: 89 | AH126: - | AJ126: 1 | AK126: 179 | AL126: 63 | AM126: - | AN126: - | AO126: - | AP126: - | AQ126: - | AR126: - | AS126: - | AT126: -
A127: 137 | B127: Dekker | C127: Thomas | D127: 66 | E127: 72 | F127: 66 | G127: 69 | H127: 64 | I127: 69 | J127: 67 | K127: 52 | L127: 58 | M127: 58 | N127: 60 | O127: 58 | P127: 69 | Q127: Aegon - Peroni | R127: Aegon - Peroni | S127: PT | T127: NED | U127: EU | V127: 4 | W127: 100 | X127: 6 | Y127: 9 | Z127: 1984 | AA127: 37 | AB127: 7 | AC127: 69.63427043 | AD127: 50000 | AE127: 116 | AF127: 98 | AG127: 91 | AH127: - | AK127: 188 | AL127: 69 | AM127: - | AN127: - | AO127: - | AP127: - | AQ127: - | AR127: - | AS127: - | AT127: -
A128: 138 | B128: Pelegri | C128: Oscar | D128: 68 | E128: 62 | F128: 68 | G128: 61 | H128: 65 | I128: 68 | J128: 64 | K128: 60 | L128: 69 | M128: 71 | N128: 64 | O128: 66 | P128: 64 | Q128: Free Agent | R128: Free Agent | S128: - | T128: ESP | U128: EU | V128: 3 | W128: 41 | X128: 30 | Y128: 5 | Z128: 1994 | AA128: 27 | AB128: 4 | AC128: 69.30754036 | AD128: 0 | AE128: 118 | AF128: 100 | AG128: 93 | AH128: - | AK128: 0 | AL128: 0 | AM128: - | AN128: - | AO128: - | AP128: - | AQ128: - | AR128: - | AS128: - | AT128: -
A129: 139 | B129: Tejada | C129: Harold | D129: 66 | E129: 72 | F129: 70 | G129: 67 | H129: 68 | I129: 72 | J129: 67 | K129: 57 | L129: 59 | M129: 68 | N129: 65 | O129: 63 | P129: 67 | Q129: Zwift Pro Cycling | R129: Aegon - Peroni | S129: PT | T129: COL | U129: SA | V129: 3 | W129: 4 | X129: 27 | Y129: 4 | Z129: 1997 | AA129: 24 | AB129: 6 | AC129: 71.20896551 | AD129: 60000 | AE129: 104 | AF129: 87 | AG129: 81 | AH129: - | AJ129: 1 | AK129: 187 | AL129: 74 | AM129: - | AN129: - | AO129: - | AP129: - | AQ129: - | AR129: - | AS129: - | AT129: -
A130: 140 | B130: Layor | C130: Amree | D130: 71 | E130: 69 | F130: 70 | G130: 69 | H130: 68 | I130: 69 | J130: 67 | K130: 69 | L130: 69 | M130: 70 | N130: 68 | O130: 69 | P130: 70 | Q130: Free Agent | R130: Free Agent | S130: - | T130: THA | U130: AS | V130: 4 | W130: 100 | X130: 11 | Y130: 9 | Z130: 1990 | AA130: 31 | AB130: 3 | AC130: 71.06625251 | AD130: 0 | AE130: =ROUND(IF($AC130>79,44-(($AC130-79)*(14/4)),IF($AC130>76,67-(($AC130-76)*(23/3)),IF(110-(($AC130-70.4)*(43/5.6))>119,119,110-(($AC130-70.4)*(43/5.6))))),0) -> 105 | AF130: =ROUND(IF($AC130>79,37-(($AC130-79)*(9/4)),IF($AC130>76,54-(($AC130-76)*(17/3)),IF(93-(($AC130-70.4)*(39/5.6))>100,100,93-(($AC130-70.4)*(39/5.6))))),0) -> 88 | AG130: =ROUND(IF($AC130>79,32-(($AC130-79)*(8/4)),IF($AC130>76,48-(($AC130-76)*(16/3)),IF(86-(($AC130-70.4)*(38/5.6))>95,95,86-(($AC130-70.4)*(38/5.6))))),0) -> 81 | AH130: - | AK130: 0 | AL130: 0 | AM130: - | AN130: - | AO130: - | AP130: - | AQ130: - | AR130: - | AS130: - | AT130: -
A131: 142 | B131: Minguez Ayala | C131: Miguel | D131: 66 | E131: 72 | F131: 74 | G131: 67 | H131: 68 | I131: 70 | J131: 67 | K131: 55 | L131: 65 | M131: 68 | N131: 56 | O131: 71 | P131: 65 | Q131: Binance Cycling | R131: Berg Cycles | S131: PCT | T131: ESP | U131: EU | V131: 4 | W131: 100 | X131: 30 | Y131: 9 | Z131: 1988 | AA131: 33 | AB131: 3 | AC131: 72.2401352 | AD131: 50000 | AE131: 96 | AF131: 80 | AG131: 74 | AH131: - | AK131: 0 | AL131: 0 | AM131: - | AN131: - | AO131: - | AP131: - | AQ131: - | AR131: - | AS131: - | AT131: -
A132: 143 | B132: Shabbir | C132: Shahidahmad | D132: 67 | E132: 62 | F132: 67 | G132: 63 | H132: 67 | I132: 66 | J132: 58 | K132: 69 | L132: 64 | M132: 69 | N132: 73 | O132: 53 | P132: 62 | Q132: Free Agent | R132: Free Agent | S132: - | T132: IND | U132: AS | V132: 3 | W132: 0 | X132: 20 | Y132: 9 | Z132: 1992 | AA132: 29 | AB132: 4 | AC132: 69.12227486 | AD132: 0 | AE132: 119 | AF132: 100 | AG132: 95 | AH132: - | AK132: 0 | AL132: 0 | AM132: - | AN132: - | AO132: - | AP132: - | AQ132: - | AR132: - | AS132: - | AT132: -
A133: 144 | B133: Alaphilippe | C133: Bryan | D133: 67 | E133: 56 | F133: 62 | G133: 56 | H133: 67 | I133: 65 | J133: 65 | K133: 64 | L133: 71 | M133: 71 | N133: 63 | O133: 62 | P133: 61 | Q133: Free Agent | R133: Free Agent | S133: - | T133: FRA | U133: EU | V133: 2 | W133: 0 | X133: 17 | Y133: 8 | Z133: 1995 | AA133: 26 | AB133: 3 | AC133: 68.12368992 | AD133: 0 | AE133: 119 | AF133: 100 | AG133: 95 | AH133: - | AK133: 0 | AL133: 0 | AM133: - | AN133: - | AO133: - | AP133: - | AQ133: - | AR133: - | AS133: - | AT133: -
A134: 145 | B134: Jung | C134: Woo Ho | D134: 61 | E134: 68 | F134: 64 | G134: 59 | H134: 65 | I134: 62 | J134: 68 | K134: 58 | L134: 55 | M134: 66 | N134: 69 | O134: 62 | P134: 56 | Q134: Free Agent | R134: Free Agent | S134: - | T134: KOR | U134: AS | V134: 1 | W134: 0 | X134: 17 | Y134: 11 | Z134: 1997 | AA134: 24 | AB134: 4 | AC134: 66.07984965 | AD134: 0 | AE134: 119 | AF134: 100 | AG134: 95 | AH134: - | AJ134: 1 | AK134: 180 | AL134: 70 | AM134: - | AN134: - | AO134: - | AP134: - | AQ134: - | AR134: - | AS134: - | AT134: -
A135: 146 | B135: Schleck | C135: Andy | D135: 64 | E135: 78 | F135: 68 | G135: 67 | H135: 67 | I135: 72 | J135: 72 | K135: 50 | L135: 55 | M135: 69 | N135: 63 | O135: 57 | P135: 66 | Q135: EA Vesuvio | R135: EA Vesuvio | S135: PT | T135: LUX | U135: EU | V135: 4 | W135: 100 | X135: 10 | Y135: 6 | Z135: 1985 | AA135: 36 | AB135: 7 | AC135: 73.92583129 | AD135: 375000 | AE135: 83 | AF135: 68 | AG135: 62 | AH135: - | AK135: 186 | AL135: 68 | AM135: - | AN135: - | AO135: - | AP135: - | AQ135: - | AR135: - | AS135: - | AT135: -
A136: 147 | B136: Evans | C136: Oliver | D136: 62 | E136: 60 | F136: 67 | G136: 60 | H136: 62 | I136: 65 | J136: 66 | K136: 60 | L136: 60 | M136: 62 | N136: 64 | O136: 66 | P136: 60 | Q136: Free Agent | R136: Free Agent | S136: - | T136: CAN | U136: NA | V136: 1 | W136: 0 | X136: 28 | Y136: 7 | Z136: 1998 | AA136: 23 | AB136: 4 | AC136: 65.31280458 | AD136: 0 | AE136: 119 | AF136: 100 | AG136: 95 | AH136: - | AJ136: 1 | AK136: 176 | AL136: 67 | AM136: - | AN136: - | AO136: - | AP136: - | AQ136: - | AR136: - | AS136: - | AT136: -
A137: 148 | B137: Anacona | C137: Winner | D137: 68 | E137: 78 | F137: 73 | G137: 65 | H137: 73 | I137: 70 | J137: 72 | K137: 50 | L137: 52 | M137: 59 | N137: 52 | O137: 56 | P137: 65 | Q137: ISA - Hexacta | R137: ISA - Hexacta | S137: PT | T137: COL | U137: SA | V137: 4 | W137: 100 | X137: 11 | Y137: 8 | Z137: 1988 | AA137: 33 | AB137: 5 | AC137: 74.59516593 | AD137: 100000 | AE137: 78 | AF137: 64 | AG137: 58 | AH137: - | AK137: 179 | AL137: 65 | AM137: - | AN137: - | AO137: - | AP137: - | AQ137: - | AR137: - | AS137: - | AT137: -
A138: 149 | B138: Hafiz | C138: Ahmed | D138: 64 | E138: 57 | F138: 58 | G138: 60 | H138: 60 | I138: 58 | J138: 61 | K138: 50 | L138: 59 | M138: 63 | N138: 62 | O138: 63 | P138: 60 | Q138: Free Agent | R138: Free Agent | S138: - | T138: EGY | U138: AF | V138: 2 | W138: 90 | X138: 26 | Y138: 12 | Z138: 1987 | AA138: 34 | AB138: 4 | AC138: 60.678323 | AD138: 0 | AE138: 119 | AF138: 100 | AG138: 95 | AH138: - | AK138: 0 | AL138: 0 | AM138: - | AN138: - | AO138: - | AP138: - | AQ138: - | AR138: - | AS138: - | AT138: -
A139: 150 | B139: Polnicky | C139: Jiri | D139: 71 | E139: 65 | F139: 72 | G139: 63 | H139: 74 | I139: 71 | J139: 68 | K139: 75 | L139: 63 | M139: 70 | N139: 68 | O139: 75 | P139: 69 | Q139: Moser - Sygic | R139: Moser - Sygic | S139: PT | T139: CZE | U139: EU | V139: 4 | W139: 100 | X139: 12 | Y139: 12 | Z139: 1989 | AA139: 32 | AB139: 4 | AC139: 73.71987077 | AD139: 50000 | AE139: 85 | AF139: 70 | AG139: 63 | AH139: - | AK139: 183 | AL139: 68 | AM139: - | AN139: - | AO139: - | AP139: - | AQ139: - | AR139: - | AS139: - | AT139: -
A140: 151 | B140: Diaz Gallego | C140: Jose | D140: 64 | E140: 72 | F140: 68 | G140: 55 | H140: 64 | I140: 69 | J140: 69 | K140: 62 | L140: 56 | M140: 68 | N140: 75 | O140: 67 | P140: 57 | Q140: Free Agent | R140: Free Agent | S140: - | T140: ESP | U140: EU | V140: 3 | W140: 0 | X140: 18 | Y140: 1 | Z140: 1995 | AA140: 26 | AB140: 3 | AC140: 69.77377525 | AD140: 0 | AE140: 115 | AF140: 97 | AG140: 90 | AH140: - | AK140: 0 | AL140: 0 | AM140: - | AN140: - | AO140: - | AP140: - | AQ140: - | AR140: - | AS140: - | AT140: -
A141: 152 | B141: Hussein | C141: Mujtaba | D141: 67 | E141: 67 | F141: 63 | G141: 76 | H141: 69 | I141: 67 | J141: 69 | K141: 50 | L141: 50 | M141: 51 | N141: 64 | O141: 59 | P141: 76 | Q141: MOL | R141: MOL | S141: PT | T141: KEN | U141: AF | V141: 4 | W141: 100 | X141: 1 | Y141: 5 | Z141: 1988 | AA141: 33 | AB141: 5 | AC141: 72.25855609 | AD141: 50000 | AE141: 96 | AF141: 80 | AG141: 73 | AH141: - | AK141: 175 | AL141: 72 | AM141: - | AN141: - | AO141: - | AP141: - | AQ141: - | AR141: - | AS141: - | AT141: -
A142: 153 | B142: Grigrian | C142: Artur | D142: 68 | E142: 76 | F142: 71 | G142: 72 | H142: 72 | I142: 68 | J142: 71 | K142: 50 | L142: 56 | M142: 73 | N142: 62 | O142: 56 | P142: 72 | Q142: Team UBS | R142: Team UBS | S142: PCT | T142: ARM | U142: EU | V142: 4 | W142: 100 | X142: 10 | Y142: 2 | Z142: 1989 | AA142: 32 | AB142: 5 | AC142: 73.52278629 | AD142: 50000 | AE142: 86 | AF142: 71 | AG142: 65 | AH142: - | AK142: 0 | AL142: 0 | AM142: - | AN142: - | AO142: - | AP142: - | AQ142: - | AR142: - | AS142: - | AT142: -
A143: 154 | B143: Noia | C143: Carlo | D143: 73 | E143: 58 | F143: 59 | G143: 74 | H143: 67 | I143: 70 | J143: 67 | K143: 62 | L143: 61 | M143: 69 | N143: 68 | O143: 65 | P143: 73 | Q143: Sauber Petronas Racing | R143: Sauber Petronas Racing | S143: PCT | T143: SMR | U143: EU | V143: 3 | W143: 45 | X143: 6 | Y143: 1 | Z143: 1996 | AA143: 25 | AB143: 3 | AC143: 69.04715119 | AD143: 50000 | AE143: 119 | AF143: 100 | AG143: 95 | AH143: - | AK143: 178 | AL143: 67 | AM143: - | AN143: - | AO143: - | AP143: - | AQ143: - | AR143: - | AS143: - | AT143: -
A144: 155 | B144: Rumsas | C144: Raimondas | D144: 65 | E144: 57 | F144: 63 | G144: 72 | H144: 65 | I144: 65 | J144: 66 | K144: 52 | L144: 53 | M144: 62 | N144: 67 | O144: 63 | P144: 70 | Q144: Free Agent | R144: Nordica - Enel | S144: - | T144: LTU | U144: EU | V144: 4 | W144: 100 | X144: 20 | Y144: 8 | Z144: 1994 | AA144: 27 | AB144: 7 | AC144: 66.43086884 | AD144: 50000 | AE144: 119 | AF144: 100 | AG144: 95 | AH144: - | AK144: 0 | AL144: 0 | AM144: - | AN144: - | AO144: - | AP144: - | AQ144: - | AR144: - | AS144: - | AT144: -
A145: 156 | B145: Txoperena | C145: Benat | D145: 60 | E145: 61 | F145: 62 | G145: 53 | H145: 64 | I145: 63 | J145: 62 | K145: 51 | L145: 57 | M145: 63 | N145: 70 | O145: 64 | P145: 53 | Q145: Free Agent | R145: Free Agent | S145: - | T145: ESP | U145: EU | V145: 1 | W145: 0 | X145: 8 | Y145: 12 | Z145: 1991 | AA145: 30 | AB145: 4 | AC145: 62.70756358 | AD145: 0 | AE145: 119 | AF145: 100 | AG145: 95 | AH145: - | AK145: 0 | AL145: 0 | AM145: - | AN145: - | AO145: - | AP145: - | AQ145: - | AR145: - | AS145: - | AT145: -
A146: 157 | B146: Dolezel | C146: Radovan | D146: 67 | E146: 59 | F146: 61 | G146: 63 | H146: 66 | I146: 68 | J146: 67 | K146: 63 | L146: 58 | M146: 69 | N146: 73 | O146: 71 | P146: 61 | Q146: Free Agent | R146: Free Agent | S146: - | T146: CZE | U146: EU | V146: 1 | W146: 0 | X146: 22 | Y146: 2 | Z146: 1994 | AA146: 27 | AB146: 4 | AC146: 65.08269341 | AD146: 0 | AE146: 119 | AF146: 100 | AG146: 95 | AH146: - | AK146: 0 | AL146: 0 | AM146: - | AN146: - | AO146: - | AP146: - | AQ146: - | AR146: - | AS146: - | AT146: -
A147: 158 | B147: Evans | C147: Alexander | D147: 64 | E147: 73 | F147: 69 | G147: 70 | H147: 67 | I147: 69 | J147: 69 | K147: 61 | L147: 57 | M147: 66 | N147: 66 | O147: 62 | P147: 67 | Q147: Amaysim Cervélo | R147: McCormick Pro Cycling | S147: PT | T147: AUS | U147: OC | V147: 3 | W147: 20 | X147: 28 | Y147: 1 | Z147: 1997 | AA147: 24 | AB147: 4 | AC147: 71.10351626 | AD147: 50000 | AE147: 105 | AF147: 88 | AG147: 81 | AH147: - | AJ147: 1 | AK147: 0 | AL147: 0 | AM147: - | AN147: - | AO147: - | AP147: - | AQ147: - | AR147: - | AS147: - | AT147: -
A148: 159 | B148: Siskevicius | C148: Paulius | D148: 69 | E148: 65 | F148: 71 | G148: 62 | H148: 67 | I148: 70 | J148: 68 | K148: 50 | L148: 62 | M148: 67 | N148: 64 | O148: 61 | P148: 62 | Q148: Free Agent | R148: Free Agent | S148: - | T148: LTU | U148: EU | V148: 3 | W148: 65 | X148: 7 | Y148: 9 | Z148: 1993 | AA148: 28 | AB148: 5 | AC148: 69.67461853 | AD148: 0 | AE148: 116 | AF148: 98 | AG148: 91 | AH148: - | AK148: 0 | AL148: 0 | AM148: - | AN148: - | AO148: - | AP148: - | AQ148: - | AR148: - | AS148: - | AT148: -
A149: 160 | B149: Main | C149: Kent | D149: 67 | E149: 71 | F149: 69 | G149: 71 | H149: 69 | I149: 72 | J149: 72 | K149: 58 | L149: 63 | M149: 68 | N149: 73 | O149: 71 | P149: 71 | Q149: Project: Africa | R149: Project: Africa | S149: PCT | T149: RSA | U149: AF | V149: 3 | W149: 36 | X149: 8 | Y149: 1 | Z149: 1996 | AA149: 25 | AB149: 3 | AC149: 70.34696121 | AD149: 50000 | AE149: 110 | AF149: 93 | AG149: 86 | AH149: - | AK149: 0 | AL149: 0 | AM149: - | AN149: - | AO149: - | AP149: - | AQ149: - | AR149: - | AS149: - | AT149: -
A150: 162 | B150: Fritsch | C150: Sven | D150: 72 | E150: 67 | F150: 76 | G150: 65 | H150: 74 | I150: 68 | J150: 71 | K150: 61 | L150: 68 | M150: 71 | N150: 68 | O150: 68 | P150: 69 | Q150: EA Vesuvio | R150: EA Vesuvio | S150: PT | T150: LUX | U150: EU | V150: 4 | W150: 100 | X150: 29 | Y150: 5 | Z150: 1994 | AA150: 27 | AB150: 5 | AC150: 73.40775848 | AD150: 50000 | AE150: 87 | AF150: 72 | AG150: 66 | AH150: - | AK150: 0 | AL150: 0 | AM150: - | AN150: - | AO150: - | AP150: - | AQ150: - | AR150: - | AS150: - | AT150: -
A151: 163 | B151: Menicucci | C151: Samuele | D151: 68 | E151: 62 | F151: 68 | G151: 61 | H151: 70 | I151: 70 | J151: 71 | K151: 69 | L151: 61 | M151: 67 | N151: 68 | O151: 69 | P151: 63 | Q151: BNZ-Superhero Racing | R151: McCormick Pro Cycling | S151: CT | T151: SMR | U151: EU | V151: 2 | W151: 28 | X151: 24 | Y151: 9 | Z151: 1997 | AA151: 24 | AB151: 3 | AC151: 68.74160193 | AD151: 50000 | AE151: 119 | AF151: 100 | AG151: 95 | AH151: - | AJ151: 1 | AK151: 0 | AL151: 0 | AM151: - | AN151: - | AO151: - | AP151: - | AQ151: - | AR151: - | AS151: - | AT151: -
A152: 164 | B152: Nulty | C152: Javan | D152: 67 | E152: 60 | F152: 60 | G152: 61 | H152: 66 | I152: 64 | J152: 65 | K152: 53 | L152: 68 | M152: 69 | N152: 54 | O152: 55 | P152: 61 | Q152: Free Agent | R152: Free Agent | S152: - | T152: IRL | U152: EU | V152: 1 | W152: 0 | X152: 23 | Y152: 3 | Z152: 1993 | AA152: 28 | AB152: 4 | AC152: 66.02100392 | AD152: 0 | AE152: 119 | AF152: 100 | AG152: 95 | AH152: - | AK152: 0 | AL152: 0 | AM152: - | AN152: - | AO152: - | AP152: - | AQ152: - | AR152: - | AS152: - | AT152: -
A153: 165 | B153: Mastani | C153: Mohammad | D153: 69 | E153: 53 | F153: 62 | G153: 61 | H153: 67 | I153: 66 | J153: 67 | K153: 62 | L153: 63 | M153: 63 | N153: 76 | O153: 68 | P153: 64 | Q153: Free Agent | R153: Free Agent | S153: - | T153: BRU | U153: AS | V153: 1 | W153: 0 | X153: 28 | Y153: 12 | Z153: 1994 | AA153: 27 | AB153: 3 | AC153: 64.59564758 | AD153: 0 | AE153: 119 | AF153: 100 | AG153: 95 | AH153: - | AK153: 173 | AL153: 60 | AM153: - | AN153: - | AO153: - | AP153: - | AQ153: - | AR153: - | AS153: - | AT153: -
A154: 166 | B154: Zekavica | C154: Jovan | D154: 72 | E154: 61 | F154: 66 | G154: 63 | H154: 67 | I154: 71 | J154: 71 | K154: 64 | L154: 75 | M154: 76 | N154: 64 | O154: 71 | P154: 71 | Q154: Free Agent | R154: Free Agent | S154: - | T154: SER | U154: EU | V154: 4 | W154: 4 | X154: 20 | Y154: 1 | Z154: 1991 | AA154: 30 | AB154: 5 | AC154: 72.41667792 | AD154: 0 | AE154: 95 | AF154: 79 | AG154: 72 | AH154: - | AK154: 0 | AL154: 0 | AM154: - | AN154: - | AO154: - | AP154: - | AQ154: - | AR154: - | AS154: - | AT154: -
A155: 167 | B155: Ranaweera | C155: Suranga | D155: 66 | E155: 80 | F155: 73 | G155: 74 | H155: 75 | I155: 75 | J155: 74 | K155: 52 | L155: 58 | M155: 65 | N155: 57 | O155: 69 | P155: 73 | Q155: Sauber Petronas Racing | R155: Sauber Petronas Racing | S155: PCT | T155: SRI | U155: AS | V155: 4 | W155: 100 | X155: 30 | Y155: 12 | Z155: 1995 | AA155: 26 | AB155: 5 | AC155: 76.90421833 | AD155: 120000 | AE155: 60 | AF155: 49 | AG155: 43 | AH155: - | AK155: 176 | AL155: 65 | AM155: - | AN155: - | AO155: - | AP155: - | AQ155: - | AR155: - | AS155: - | AT155: -
A156: 169 | B156: Hindley | C156: Jai | D156: 70 | E156: 71 | F156: 74 | G156: 67 | H156: 73 | I156: 71 | J156: 71 | K156: 55 | L156: 66 | M156: 71 | N156: 74 | O156: 69 | P156: 67 | Q156: Amaysim Cervélo | R156: Bakkafrost | S156: PT | T156: AUS | U156: OC | V156: 4 | W156: 29 | X156: 5 | Y156: 5 | Z156: 1996 | AA156: 25 | AB156: 6 | AC156: 73.09762599 | AD156: 50000 | AE156: 89 | AF156: 74 | AG156: 68 | AH156: - | AK156: 0 | AL156: 0 | AM156: - | AN156: - | AO156: - | AP156: - | AQ156: - | AR156: - | AS156: - | AT156: -
A157: 170 | B157: Mcdunphy | C157: Conn | D157: 65 | E157: 62 | F157: 64 | G157: 62 | H157: 63 | I157: 61 | J157: 62 | K157: 56 | L157: 64 | M157: 65 | N157: 64 | O157: 56 | P157: 59 | Q157: Free Agent | R157: Free Agent | S157: - | T157: IRL | U157: EU | V157: 1 | W157: 0 | X157: 3 | Y157: 2 | Z157: 1997 | AA157: 24 | AB157: 2 | AC157: 64.7446005 | AD157: 0 | AE157: 119 | AF157: 100 | AG157: 95 | AH157: - | AJ157: 1 | AK157: 181 | AL157: 68 | AM157: - | AN157: - | AO157: - | AP157: - | AQ157: - | AR157: - | AS157: - | AT157: -
A158: 171 | B158: Irving | C158: Frederick | D158: 59 | E158: 50 | F158: 52 | G158: 64 | H158: 57 | I158: 54 | J158: 57 | K158: 68 | L158: 61 | M158: 63 | N158: 60 | O158: 62 | P158: 66 | Q158: Free Agent | R158: Free Agent | S158: - | T158: ARU | U158: NA | V158: 4 | W158: 100 | X158: 30 | Y158: 5 | Z158: 1988 | AA158: 33 | AB158: 2 | AC158: 63.46377441 | AD158: 0 | AE158: 119 | AF158: 100 | AG158: 95 | AH158: - | AK158: 0 | AL158: 0 | AM158: - | AN158: - | AO158: - | AP158: - | AQ158: - | AR158: - | AS158: - | AT158: -
A159: 172 | B159: Willwohl | C159: Willi | D159: 73 | E159: 53 | F159: 64 | G159: 56 | H159: 71 | I159: 67 | J159: 78 | K159: 65 | L159: 79 | M159: 78 | N159: 61 | O159: 64 | P159: 56 | Q159: Kraftwerk Man Machine | R159: Kraftwerk Man Machine | S159: PCT | T159: GER | U159: EU | V159: 4 | W159: 100 | X159: 31 | Y159: 8 | Z159: 1994 | AA159: 27 | AB159: 6 | AC159: 74.97361479 | AD159: 85000 | AE159: 75 | AF159: 61 | AG159: 55 | AH159: - | AK159: 0 | AL159: 0 | AM159: - | AN159: - | AO159: - | AP159: - | AQ159: - | AR159: - | AS159: - | AT159: -
A160: 173 | B160: Zaraliev | C160: Stanislav | D160: 71 | E160: 62 | F160: 64 | G160: 71 | H160: 70 | I160: 66 | J160: 64 | K160: 67 | L160: 63 | M160: 69 | N160: 71 | O160: 59 | P160: 73 | Q160: Free Agent | R160: Free Agent | S160: - | T160: BUL | U160: EU | V160: 4 | W160: 100 | X160: 10 | Y160: 2 | Z160: 1988 | AA160: 33 | AB160: 3 | AC160: 68.79384825 | AD160: 0 | AE160: 119 | AF160: 100 | AG160: 95 | AH160: - | AK160: 0 | AL160: 0 | AM160: - | AN160: - | AO160: - | AP160: - | AQ160: - | AR160: - | AS160: - | AT160: -
A161: 174 | B161: Raggl | C161: Gregor | D161: 69 | E161: 66 | F161: 68 | G161: 67 | H161: 63 | I161: 68 | J161: 61 | K161: 61 | L161: 56 | M161: 69 | N161: 69 | O161: 72 | P161: 67 | Q161: Free Agent | R161: Free Agent | S161: - | T161: AUT | U161: EU | V161: 3 | W161: 0 | X161: 8 | Y161: 2 | Z161: 1992 | AA161: 29 | AB161: 3 | AC161: 68.22635221 | AD161: 0 | AE161: 119 | AF161: 100 | AG161: 95 | AH161: - | AK161: 0 | AL161: 0 | AM161: - | AN161: - | AO161: - | AP161: - | AQ161: - | AR161: - | AS161: - | AT161: -
A162: 175 | B162: Chatzakis | C162: Panagiotis | D162: 67 | E162: 69 | F162: 62 | G162: 60 | H162: 67 | I162: 65 | J162: 66 | K162: 54 | L162: 62 | M162: 62 | N162: 55 | O162: 58 | P162: 60 | Q162: Free Agent | R162: Free Agent | S162: - | T162: GRE | U162: EU | V162: 1 | W162: 12 | X162: 23 | Y162: 3 | Z162: 1992 | AA162: 29 | AB162: 3 | AC162: 66.40789138 | AD162: 0 | AE162: 119 | AF162: 100 | AG162: 95 | AH162: - | AK162: 0 | AL162: 0 | AM162: - | AN162: - | AO162: - | AP162: - | AQ162: - | AR162: - | AS162: - | AT162: -
A163: 177 | B163: Arashiro | C163: Yudai | D163: 81 | E163: 60 | F163: 64 | G163: 62 | H163: 71 | I163: 67 | J163: 73 | K163: 68 | L163: 70 | M163: 75 | N163: 78 | O163: 68 | P163: 66 | Q163: Voyagin - Bird | R163: Rakuten Pro Cycling | S163: PCT | T163: JPN | U163: AS | V163: 4 | W163: 100 | X163: 3 | Y163: 7 | Z163: 1995 | AA163: 26 | AB163: 2 | AC163: 74.20344255 | AD163: 65000 | AE163: 81 | AF163: 67 | AG163: 60 | AH163: - | AK163: 176 | AL163: 65 | AM163: - | AN163: - | AO163: - | AP163: - | AQ163: - | AR163: - | AS163: - | AT163: -
A164: 178 | B164: Belmokhtar | C164: Abdelkader | D164: 66 | E164: 71 | F164: 74 | G164: 67 | H164: 70 | I164: 67 | J164: 69 | K164: 58 | L164: 56 | M164: 62 | N164: 65 | O164: 62 | P164: 67 | Q164: Free Agent | R164: Free Agent | S164: - | T164: ALG | U164: AF | V164: 4 | W164: 100 | X164: 1 | Y164: 3 | Z164: 1988 | AA164: 33 | AB164: 4 | AC164: 70.50757151 | AD164: 0 | AE164: 109 | AF164: 92 | AG164: 85 | AH164: - | AK164: 0 | AL164: 0 | AM164: - | AN164: - | AO164: - | AP164: - | AQ164: - | AR164: - | AS164: - | AT164: -
A165: 179 | B165: Rahbek | C165: Mads | D165: 69 | E165: 68 | F165: 69 | G165: 70 | H165: 66 | I165: 70 | J165: 66 | K165: 62 | L165: 65 | M165: 70 | N165: 72 | O165: 67 | P165: 68 | Q165: Free Agent | R165: Free Agent | S165: - | T165: DEN | U165: EU | V165: 4 | W165: 2 | X165: 19 | Y165: 10 | Z165: 1995 | AA165: 26 | AB165: 4 | AC165: 69.97385553 | AD165: 0 | AE165: 113 | AF165: 96 | AG165: 89 | AH165: - | AK165: 173 | AL165: 66 | AM165: - | AN165: - | AO165: - | AP165: - | AQ165: - | AR165: - | AS165: - | AT165: -
A166: 180 | B166: Parra | C166: Jose Felix | D166: 63 | E166: 69 | F166: 66 | G166: 60 | H166: 63 | I166: 65 | J166: 67 | K166: 60 | L166: 60 | M166: 65 | N166: 62 | O166: 65 | P166: 60 | Q166: Free Agent | R166: Free Agent | S166: - | T166: ESP | U166: EU | V166: 2 | W166: 87 | X166: 16 | Y166: 1 | Z166: 1997 | AA166: 24 | AB166: 4 | AC166: 67.43632909 | AD166: 0 | AE166: 119 | AF166: 100 | AG166: 95 | AH166: - | AK166: 173 | AL166: 68 | AM166: - | AN166: - | AO166: - | AP166: - | AQ166: - | AR166: - | AS166: - | AT166: -
A167: 182 | B167: Okubo | C167: Jin | D167: 70 | E167: 52 | F167: 58 | G167: 69 | H167: 64 | I167: 65 | J167: 65 | K167: 61 | L167: 71 | M167: 71 | N167: 58 | O167: 56 | P167: 74 | Q167: Free Agent | R167: Free Agent | S167: - | T167: JPN | U167: AS | V167: 4 | W167: 100 | X167: 8 | Y167: 10 | Z167: 1988 | AA167: 33 | AB167: 3 | AC167: 68.15293877 | AD167: 0 | AE167: 119 | AF167: 100 | AG167: 95 | AH167: - | AK167: 0 | AL167: 0 | AM167: - | AN167: - | AO167: - | AP167: - | AQ167: - | AR167: - | AS167: - | AT167: -
A168: 183 | B168: Blums | C168: Martins | D168: 72 | E168: 77 | F168: 77 | G168: 68 | H168: 71 | I168: 73 | J168: 74 | K168: 63 | L168: 64 | M168: 70 | N168: 73 | O168: 78 | P168: 71 | Q168: Evonik - ELKO | R168: Evonik - ELKO | S168: PT | T168: LAT | U168: EU | V168: 4 | W168: 100 | X168: 17 | Y168: 10 | Z168: 1995 | AA168: 26 | AB168: 5 | AC168: 75.95633589 | AD168: 70000 | AE168: 67 | AF168: 54 | AG168: 48 | AH168: - | AK168: 0 | AL168: 0 | AM168: - | AN168: - | AO168: - | AP168: - | AQ168: - | AR168: - | AS168: - | AT168: -
A169: 184 | B169: Freyer | C169: Martin | D169: 66 | E169: 59 | F169: 62 | G169: 68 | H169: 64 | I169: 63 | J169: 66 | K169: 52 | L169: 53 | M169: 61 | N169: 67 | O169: 69 | P169: 68 | Q169: Free Agent | R169: Free Agent | S169: - | T169: NAM | U169: AF | V169: 1 | W169: 0 | X169: 4 | Y169: 10 | Z169: 1995 | AA169: 26 | AB169: 4 | AC169: 64.63084462 | AD169: 0 | AE169: 119 | AF169: 100 | AG169: 95 | AH169: - | AK169: 0 | AL169: 0 | AM169: - | AN169: - | AO169: - | AP169: - | AQ169: - | AR169: - | AS169: - | AT169: -
A170: 186 | B170: Van Gils | C170: Maxim | D170: 68 | E170: 69 | F170: 68 | G170: 59 | H170: 67 | I170: 71 | J170: 68 | K170: 60 | L170: 68 | M170: 70 | N170: 65 | O170: 68 | P170: 59 | Q170: Free Agent | R170: Free Agent | S170: - | T170: BEL | U170: EU | V170: 1 | W170: 0 | X170: 25 | Y170: 11 | Z170: 1999 | AA170: 22 | AB170: 5 | AC170: 69.84770201 | AD170: 0 | AE170: 114 | AF170: 97 | AG170: 90 | AH170: - | AK170: 0 | AL170: 0 | AM170: - | AN170: - | AO170: - | AP170: - | AQ170: - | AR170: - | AS170: - | AT170: -
A171: 187 | B171: Rafiuddin | C171: Zakaria | D171: 57 | E171: 70 | F171: 70 | G171: 51 | H171: 66 | I171: 61 | J171: 64 | K171: 61 | L171: 56 | M171: 57 | N171: 60 | O171: 62 | P171: 53 | Q171: Free Agent | R171: Free Agent | S171: - | T171: BRU | U171: AS | V171: 4 | W171: 100 | X171: 6 | Y171: 1 | Z171: 1988 | AA171: 33 | AB171: 3 | AC171: 67.55621565 | AD171: 0 | AE171: 119 | AF171: 100 | AG171: 95 | AH171: - | AK171: 0 | AL171: 0 | AM171: - | AN171: - | AO171: - | AP171: - | AQ171: - | AR171: - | AS171: - | AT171: -
A172: 188 | B172: Pidcock | C172: Thomas | D172: 71 | E172: 71 | F172: 72 | G172: 69 | H172: 71 | I172: 73 | J172: 68 | K172: 71 | L172: 71 | M172: 76 | N172: 67 | O172: 80 | P172: 69 | Q172: Free Agent | R172: Free Agent | S172: - | T172: GBR | U172: EU | V172: 1 | W172: 0 | X172: 30 | Y172: 7 | Z172: 1999 | AA172: 22 | AB172: 4 | AC172: 73.81776154 | AD172: 0 | AE172: 84 | AF172: 69 | AG172: 63 | AH172: - | AK172: 189 | AL172: 75 | AM172: - | AN172: - | AO172: - | AP172: - | AQ172: - | AR172: - | AS172: - | AT172: -
A173: 189 | B173: Sicard | C173: Romain | D173: 72 | E173: 81 | F173: 77 | G173: 75 | H173: 79 | I173: 78 | J173: 81 | K173: 56 | L173: 63 | M173: 69 | N173: 76 | O173: 64 | P173: 75 | Q173: Air France - KLM | R173: Air France - KLM | S173: PT | T173: FRA | U173: EU | V173: 4 | W173: 100 | X173: 1 | Y173: 1 | Z173: 1988 | AA173: 33 | AB173: 7 | AC173: 79.17659205 | AD173: 763000 | AE173: 43 | AF173: 37 | AG173: 32 | AH173: - | AK173: 177 | AL173: 64 | AM173: - | AN173: - | AO173: - | AP173: - | AQ173: - | AR173: - | AS173: - | AT173: -
A174: 190 | B174: Sangulin | C174: Robert | D174: 71 | E174: 69 | F174: 71 | G174: 61 | H174: 72 | I174: 71 | J174: 68 | K174: 72 | L174: 57 | M174: 71 | N174: 67 | O174: 80 | P174: 61 | Q174: Free Agent | R174: Free Agent | S174: - | T174: CRO | U174: EU | V174: 4 | W174: 100 | X174: 28 | Y174: 9 | Z174: 1993 | AA174: 28 | AB174: 2 | AC174: 71.60737822 | AD174: 0 | AE174: 101 | AF174: 85 | AG174: 78 | AH174: - | AK174: 0 | AL174: 0 | AM174: - | AN174: - | AO174: - | AP174: - | AQ174: - | AR174: - | AS174: - | AT174: -
A175: 191 | B175: Razafindrakato | C175: Hasinavalona | D175: 68 | E175: 69 | F175: 70 | G175: 63 | H175: 67 | I175: 68 | J175: 67 | K175: 63 | L175: 64 | M175: 64 | N175: 71 | O175: 70 | P175: 64 | Q175: Free Agent | R175: Free Agent | S175: - | T175: MAD | U175: AF | V175: 4 | W175: 100 | X175: 7 | Y175: 7 | Z175: 1990 | AA175: 31 | AB175: 3 | AC175: 69.3296299 | AD175: 0 | AE175: 118 | AF175: 100 | AG175: 93 | AH175: - | AK175: 0 | AL175: 0 | AM175: - | AN175: - | AO175: - | AP175: - | AQ175: - | AR175: - | AS175: - | AT175: -
A176: 192 | B176: Hodeg | C176: Alvaro | D176: 72 | E176: 53 | F176: 65 | G176: 67 | H176: 69 | I176: 74 | J176: 70 | K176: 51 | L176: 79 | M176: 78 | N176: 53 | O176: 64 | P176: 73 | Q176: Minions | R176: Minions | S176: PCT | T176: COL | U176: SA | V176: 4 | W176: 100 | X176: 16 | Y176: 9 | Z176: 1996 | AA176: 25 | AB176: 5 | AC176: 74.95497226 | AD176: 80000 | AE176: 75 | AF176: 61 | AG176: 55 | AH176: - | AK176: 186 | AL176: 76 | AM176: - | AN176: - | AO176: - | AP176: - | AQ176: - | AR176: - | AS176: - | AT176: -
A177: 193 | B177: Fernandez | C177: Ruben | D177: 66 | E177: 75 | F177: 75 | G177: 66 | H177: 72 | I177: 69 | J177: 72 | K177: 57 | L177: 60 | M177: 66 | N177: 72 | O177: 72 | P177: 65 | Q177: Aramco DP | R177: Aramco DP | S177: CT | T177: ESP | U177: EU | V177: 4 | W177: 100 | X177: 1 | Y177: 3 | Z177: 1991 | AA177: 30 | AB177: 5 | AC177: 73.7450492 | AD177: 55000 | AE177: 84 | AF177: 70 | AG177: 63 | AH177: - | AK177: 177 | AL177: 60 | AM177: - | AN177: - | AO177: - | AP177: - | AQ177: - | AR177: - | AS177: - | AT177: -
A178: 194 | B178: Thomson | C178: Michael | D178: 68 | E178: 56 | F178: 63 | G178: 61 | H178: 66 | I178: 68 | J178: 64 | K178: 71 | L178: 70 | M178: 70 | N178: 66 | O178: 68 | P178: 61 | Q178: Free Agent | R178: Free Agent | S178: - | T178: GBR | U178: EU | V178: 3 | W178: 18 | X178: 8 | Y178: 2 | Z178: 1995 | AA178: 26 | AB178: 4 | AC178: 69.72320957 | AD178: 0 | AE178: 115 | AF178: 98 | AG178: 91 | AH178: - | AK178: 178 | AL178: 65 | AM178: - | AN178: - | AO178: - | AP178: - | AQ178: - | AR178: - | AS178: - | AT178: -
A179: 195 | B179: Moreno | C179: Ivan | D179: 64 | E179: 69 | F179: 70 | G179: 60 | H179: 67 | I179: 67 | J179: 68 | K179: 60 | L179: 61 | M179: 63 | N179: 65 | O179: 62 | P179: 60 | Q179: Free Agent | R179: Free Agent | S179: - | T179: ESP | U179: EU | V179: 2 | W179: 39 | X179: 27 | Y179: 5 | Z179: 1996 | AA179: 25 | AB179: 4 | AC179: 68.53316606 | AD179: 0 | AE179: 119 | AF179: 100 | AG179: 95 | AH179: - | AK179: 0 | AL179: 0 | AM179: - | AN179: - | AO179: - | AP179: - | AQ179: - | AR179: - | AS179: - | AT179: -
A180: 196 | B180: Kalojiros | C180: Tomas | D180: 67 | E180: 70 | F180: 69 | G180: 66 | H180: 70 | I180: 70 | J180: 71 | K180: 58 | L180: 62 | M180: 68 | N180: 70 | O180: 67 | P180: 66 | Q180: Free Agent | R180: Free Agent | S180: - | T180: CZE | U180: EU | V180: 3 | W180: 0 | X180: 3 | Y180: 8 | Z180: 1994 | AA180: 27 | AB180: 4 | AC180: 69.74450624 | AD180: 0 | AE180: 115 | AF180: 98 | AG180: 90 | AH180: - | AK180: 0 | AL180: 0 | AM180: - | AN180: - | AO180: - | AP180: - | AQ180: - | AR180: - | AS180: - | AT180: -
A181: 197 | B181: Andersen | C181: Sander | D181: 66 | E181: 64 | F181: 67 | G181: 64 | H181: 65 | I181: 66 | J181: 68 | K181: 61 | L181: 64 | M181: 68 | N181: 67 | O181: 70 | P181: 64 | Q181: Free Agent | R181: Free Agent | S181: - | T181: DEN | U181: EU | V181: 1 | W181: 0 | X181: 24 | Y181: 10 | Z181: 1999 | AA181: 22 | AB181: 3 | AC181: 67.49121023 | AD181: 0 | AE181: 119 | AF181: 100 | AG181: 95 | AH181: - | AK181: 0 | AL181: 0 | AM181: - | AN181: - | AO181: - | AP181: - | AQ181: - | AR181: - | AS181: - | AT181: -
A182: 198 | B182: Forsby | C182: Hannes | D182: 66 | E182: 63 | F182: 69 | G182: 61 | H182: 67 | I182: 67 | J182: 66 | K182: 64 | L182: 61 | M182: 67 | N182: 68 | O182: 70 | P182: 61 | Q182: Free Agent | R182: Free Agent | S182: - | T182: SWD | U182: EU | V182: 2 | W182: 58 | X182: 25 | Y182: 8 | Z182: 1996 | AA182: 25 | AB182: 3 | AC182: 68.13867533 | AD182: 0 | AE182: 119 | AF182: 100 | AG182: 95 | AH182: - | AK182: 0 | AL182: 0 | AM182: - | AN182: - | AO182: - | AP182: - | AQ182: - | AR182: - | AS182: - | AT182: -
A183: 199 | B183: Carr | C183: Simon | D183: 66 | E183: 68 | F183: 72 | G183: 56 | H183: 70 | I183: 69 | J183: 69 | K183: 55 | L183: 58 | M183: 69 | N183: 62 | O183: 58 | P183: 57 | Q183: Zwift Pro Cycling | R183: Bralirwa - Stevens Bikes | S183: PT | T183: GBR | U183: EU | V183: 3 | W183: 1 | X183: 29 | Y183: 8 | Z183: 1998 | AA183: 23 | AB183: 4 | AC183: 70.21649949 | AD183: 50000 | AE183: 111 | AF183: 94 | AG183: 87 | AH183: - | AJ183: 1 | AK183: 0 | AL183: 0 | AM183: - | AN183: - | AO183: - | AP183: - | AQ183: - | AR183: - | AS183: - | AT183: -
A184: 200 | B184: Matsuda | C184: Shoi | D184: 69 | E184: 65 | F184: 69 | G184: 68 | H184: 65 | I184: 70 | J184: 60 | K184: 60 | L184: 67 | M184: 69 | N184: 60 | O184: 63 | P184: 70 | Q184: Free Agent | R184: Free Agent | S184: - | T184: JPN | U184: AS | V184: 1 | W184: 0 | X184: 13 | Y184: 9 | Z184: 1999 | AA184: 22 | AB184: 5 | AC184: 69.42888608 | AD184: 0 | AE184: 117 | AF184: 100 | AG184: 93 | AH184: - | AK184: 184 | AL184: 75 | AM184: - | AN184: - | AO184: - | AP184: - | AQ184: - | AR184: - | AS184: - | AT184: -
A185: 202 | B185: Kristensen | C185: Mads Ostergaard | D185: 68 | E185: 60 | F185: 60 | G185: 69 | H185: 64 | I185: 69 | J185: 63 | K185: 60 | L185: 60 | M185: 60 | N185: 70 | O185: 61 | P185: 68 | Q185: Carlsberg - Danske Bank | R185: Carlsberg - Danske Bank | S185: PCT | T185: DEN | U185: EU | V185: 1 | W185: 50 | X185: 26 | Y185: 1 | Z185: 1998 | AA185: 23 | AB185: 4 | AC185: 65.65559287 | AD185: 10000 | AE185: 119 | AF185: 100 | AG185: 95 | AH185: - | AJ185: 1 | AK185: 0 | AL185: 0 | AM185: - | AN185: - | AO185: - | AP185: - | AQ185: - | AR185: - | AS185: - | AT185: -
A186: 203 | B186: Companioni | C186: Ruben | D186: 71 | E186: 72 | F186: 70 | G186: 67 | H186: 69 | I186: 68 | J186: 70 | K186: 66 | L186: 67 | M186: 69 | N186: 70 | O186: 71 | P186: 68 | Q186: Free Agent | R186: Free Agent | S186: - | T186: CUB | U186: NA | V186: 4 | W186: 0 | X186: 18 | Y186: 5 | Z186: 1990 | AA186: 31 | AB186: 3 | AC186: 70.96831188 | AD186: 0 | AE186: 106 | AF186: 89 | AG186: 82 | AH186: - | AK186: 0 | AL186: 0 | AM186: - | AN186: - | AO186: - | AP186: - | AQ186: - | AR186: - | AS186: - | AT186: -
A187: 204 | B187: Lowndes | C187: Jason | D187: 64 | E187: 52 | F187: 57 | G187: 61 | H187: 62 | I187: 61 | J187: 62 | K187: 55 | L187: 66 | M187: 66 | N187: 61 | O187: 65 | P187: 66 | Q187: Free Agent | R187: Free Agent | S187: - | T187: AUS | U187: OC | V187: 1 | W187: 0 | X187: 14 | Y187: 12 | Z187: 1994 | AA187: 27 | AB187: 3 | AC187: 63.45699476 | AD187: 0 | AE187: 119 | AF187: 100 | AG187: 95 | AH187: - | AK187: 0 | AL187: 0 | AM187: - | AN187: - | AO187: - | AP187: - | AQ187: - | AR187: - | AS187: - | AT187: -
A188: 205 | B188: Kukrle | C188: Michal | D188: 72 | E188: 68 | F188: 66 | G188: 78 | H188: 74 | I188: 74 | J188: 70 | K188: 58 | L188: 65 | M188: 71 | N188: 58 | O188: 63 | P188: 79 | Q188: Moser - Sygic | R188: Moser - Sygic | S188: PT | T188: CZE | U188: EU | V188: 4 | W188: 100 | X188: 17 | Y188: 11 | Z188: 1994 | AA188: 27 | AB188: 4 | AC188: 74.91225234 | AD188: 55000 | AE188: 75 | AF188: 62 | AG188: 55 | AH188: - | AK188: 0 | AL188: 0 | AM188: - | AN188: - | AO188: - | AP188: - | AQ188: - | AR188: - | AS188: - | AT188: -
A189: 206 | B189: Cepeda | C189: Jefferson Alexander | D189: 67 | E189: 69 | F189: 67 | G189: 62 | H189: 68 | I189: 67 | J189: 64 | K189: 57 | L189: 60 | M189: 67 | N189: 61 | O189: 59 | P189: 61 | Q189: Free Agent | R189: Azteca - NBCSN | S189: - | T189: ECU | U189: SA | V189: 2 | W189: 0 | X189: 16 | Y189: 6 | Z189: 1998 | AA189: 23 | AB189: 6 | AC189: 67.86016866 | AD189: 125000 | AE189: 119 | AF189: 100 | AG189: 95 | AH189: - | AJ189: 1 | AK189: 180 | AL189: 70 | AM189: - | AN189: - | AO189: - | AP189: - | AQ189: - | AR189: - | AS189: - | AT189: -
A190: 207 | B190: Kasa | C190: Gabor | D190: 70 | E190: 71 | F190: 72 | G190: 74 | H190: 74 | I190: 70 | J190: 71 | K190: 58 | L190: 63 | M190: 66 | N190: 67 | O190: 65 | P190: 74 | Q190: Kraftwerk Man Machine | R190: Kraftwerk Man Machine | S190: PCT | T190: SER | U190: EU | V190: 4 | W190: 100 | X190: 3 | Y190: 2 | Z190: 1989 | AA190: 32 | AB190: 4 | AC190: 71.50830973 | AD190: 50000 | AE190: 101 | AF190: 85 | AG190: 78 | AH190: - | AK190: 180 | AL190: 72 | AM190: - | AN190: - | AO190: - | AP190: - | AQ190: - | AR190: - | AS190: - | AT190: -
A191: 208 | B191: Newton | C191: Taylor | D191: 65 | E191: 69 | F191: 66 | G191: 68 | H191: 66 | I191: 64 | J191: 65 | K191: 56 | L191: 63 | M191: 67 | N191: 63 | O191: 74 | P191: 68 | Q191: Free Agent | R191: Free Agent | S191: - | T191: USA | U191: NA | V191: 4 | W191: 100 | X191: 17 | Y191: 7 | Z191: 1988 | AA191: 33 | AB191: 4 | AC191: 67.35524963 | AD191: 0 | AE191: 119 | AF191: 100 | AG191: 95 | AH191: - | AK191: 0 | AL191: 0 | AM191: - | AN191: - | AO191: - | AP191: - | AQ191: - | AR191: - | AS191: - | AT191: -
A192: 209 | B192: Teggart | C192: Matthew | D192: 69 | E192: 62 | F192: 68 | G192: 58 | H192: 72 | I192: 70 | J192: 69 | K192: 71 | L192: 68 | M192: 69 | N192: 54 | O192: 63 | P192: 65 | Q192: Repsol - Netflix | R192: Repsol - Netflix | S192: PT | T192: IRL | U192: EU | V192: 3 | W192: 34 | X192: 8 | Y192: 1 | Z192: 1996 | AA192: 25 | AB192: 5 | AC192: 69.72098962 | AD192: 50000 | AE192: 115 | AF192: 98 | AG192: 91 | AH192: - | AK192: 0 | AL192: 0 | AM192: - | AN192: - | AO192: - | AP192: - | AQ192: - | AR192: - | AS192: - | AT192: -
A193: 210 | B193: Lichnovsky | C193: Ludek | D193: 70 | E193: 57 | F193: 63 | G193: 60 | H193: 65 | I193: 66 | J193: 63 | K193: 50 | L193: 61 | M193: 63 | N193: 68 | O193: 53 | P193: 61 | Q193: Free Agent | R193: Free Agent | S193: - | T193: CZE | U193: EU | V193: 1 | W193: 0 | X193: 9 | Y193: 2 | Z193: 1995 | AA193: 26 | AB193: 3 | AC193: 64.77559252 | AD193: 0 | AE193: 119 | AF193: 100 | AG193: 95 | AH193: - | AK193: 0 | AL193: 0 | AM193: - | AN193: - | AO193: - | AP193: - | AQ193: - | AR193: - | AS193: - | AT193: -
A194: 211 | B194: Naesen | C194: Lawrence | D194: 69 | E194: 62 | F194: 70 | G194: 66 | H194: 68 | I194: 70 | J194: 67 | K194: 66 | L194: 70 | M194: 71 | N194: 70 | O194: 69 | P194: 67 | Q194: Free Agent | R194: Free Agent | S194: - | T194: BEL | U194: EU | V194: 3 | W194: 68 | X194: 28 | Y194: 8 | Z194: 1992 | AA194: 29 | AB194: 3 | AC194: 70.7272178 | AD194: 0 | AE194: =ROUND(IF($AC194>79,44-(($AC194-79)*(14/4)),IF($AC194>76,67-(($AC194-76)*(23/3)),IF(110-(($AC194-70.4)*(43/5.6))>119,119,110-(($AC194-70.4)*(43/5.6))))),0) -> 107 | AF194: =ROUND(IF($AC194>79,37-(($AC194-79)*(9/4)),IF($AC194>76,54-(($AC194-76)*(17/3)),IF(93-(($AC194-70.4)*(39/5.6))>100,100,93-(($AC194-70.4)*(39/5.6))))),0) -> 91 | AG194: =ROUND(IF($AC194>79,32-(($AC194-79)*(8/4)),IF($AC194>76,48-(($AC194-76)*(16/3)),IF(86-(($AC194-70.4)*(38/5.6))>95,95,86-(($AC194-70.4)*(38/5.6))))),0) -> 84 | AH194: - | AK194: 184 | AL194: 77 | AM194: - | AN194: - | AO194: - | AP194: - | AQ194: - | AR194: - | AS194: - | AT194: -
A195: 212 | B195: Zariff | C195: Nur Aiman | D195: 68 | E195: 58 | F195: 60 | G195: 60 | H195: 70 | I195: 65 | J195: 76 | K195: 60 | L195: 78 | M195: 78 | N195: 60 | O195: 67 | P195: 70 | Q195: Assa Abloy | R195: Bakkafrost | S195: PCT | T195: MAS | U195: AS | V195: 4 | W195: 22 | X195: 1 | Y195: 10 | Z195: 1997 | AA195: 24 | AB195: 5 | AC195: 73.49053221 | AD195: 50000 | AE195: 86 | AF195: 71 | AG195: 65 | AH195: - | AJ195: 1 | AK195: 0 | AL195: 0 | AM195: - | AN195: - | AO195: - | AP195: - | AQ195: - | AR195: - | AS195: - | AT195: -
A196: 213 | B196: Reynders | C196: Jens | D196: 67 | E196: 61 | F196: 64 | G196: 60 | H196: 68 | I196: 68 | J196: 67 | K196: 69 | L196: 66 | M196: 69 | N196: 65 | O196: 64 | P196: 62 | Q196: Free Agent | R196: Andorra Cycling Project | S196: - | T196: BEL | U196: EU | V196: 2 | W196: 0 | X196: 25 | Y196: 5 | Z196: 1998 | AA196: 23 | AB196: 6 | AC196: 68.60552637 | AD196: 80000 | AE196: 119 | AF196: 100 | AG196: 95 | AH196: - | AJ196: 1 | AK196: 173 | AL196: 59 | AM196: - | AN196: - | AO196: - | AP196: - | AQ196: - | AR196: - | AS196: - | AT196: -
A197: 214 | B197: Guardiola | C197: Salvador | D197: 68 | E197: 69 | F197: 71 | G197: 60 | H197: 68 | I197: 68 | J197: 65 | K197: 59 | L197: 64 | M197: 65 | N197: 63 | O197: 69 | P197: 61 | Q197: Free Agent | R197: Free Agent | S197: - | T197: ESP | U197: EU | V197: 4 | W197: 100 | X197: 5 | Y197: 9 | Z197: 1988 | AA197: 33 | AB197: 5 | AC197: 69.82739139 | AD197: 0 | AE197: 114 | AF197: 97 | AG197: 90 | AH197: - | AK197: 180 | AL197: 67 | AM197: - | AN197: - | AO197: - | AP197: - | AQ197: - | AR197: - | AS197: - | AT197: -
A198: 215 | B198: Daniels | C198: Simon | D198: 67 | E198: 60 | F198: 62 | G198: 60 | H198: 66 | I198: 67 | J198: 64 | K198: 64 | L198: 70 | M198: 68 | N198: 60 | O198: 60 | P198: 60 | Q198: Free Agent | R198: Free Agent | S198: - | T198: BEL | U198: EU | V198: 2 | W198: 48 | X198: 23 | Y198: 1 | Z198: 1997 | AA198: 24 | AB198: 4 | AC198: 66.84170583 | AD198: 0 | AE198: 119 | AF198: 100 | AG198: 95 | AH198: - | AK198: 178 | AL198: 68 | AM198: - | AN198: - | AO198: - | AP198: - | AQ198: - | AR198: - | AS198: - | AT198: -
A199: 216 | B199: Abdel Aziz | C199: Raihaan | D199: 66 | E199: 69 | F199: 69 | G199: 70 | H199: 64 | I199: 68 | J199: 65 | K199: 52 | L199: 55 | M199: 56 | N199: 55 | O199: 62 | P199: 68 | Q199: Free Agent | R199: Free Agent | S199: - | T199: BRU | U199: AS | V199: 4 | W199: 100 | X199: 11 | Y199: 4 | Z199: 1988 | AA199: 33 | AB199: 4 | AC199: 68.74362967 | AD199: 0 | AE199: 119 | AF199: 100 | AG199: 95 | AH199: - | AK199: 176 | AL199: 72 | AM199: - | AN199: - | AO199: - | AP199: - | AQ199: - | AR199: - | AS199: - | AT199: -
A200: 217 | B200: Ulissi | C200: Diego | D200: 75 | E200: 65 | F200: 79 | G200: 61 | H200: 82 | I200: 70 | J200: 71 | K200: 50 | L200: 73 | M200: 74 | N200: 74 | O200: 62 | P200: 61 | Q200: Aramco DP | R200: Aramco DP | S200: CT | T200: ITA | U200: EU | V200: 4 | W200: 100 | X200: 15 | Y200: 1 | Z200: 1988 | AA200: 33 | AB200: 7 | AC200: 76.31772964 | AD200: 285000 | AE200: 65 | AF200: 52 | AG200: 46 | AH200: - | AK200: 0 | AL200: 0 | AM200: - | AN200: - | AO200: - | AP200: - | AQ200: - | AR200: - | AS200: - | AT200: -
... 925 more rows

Sheet OVL (hidden)
A1: ID | B1: Flat | C1: Mountain | D1: Hill | E1: TT | F1: Stamina | G1: Resistance | H1: Recovery | I1: Cobbles | J1: Sprint | K1: Acceleration | L1: Fighter | M1: Downhill | N1: Prologue | O1: Puncheur | P1: Stage Racer | Q1: Sprinter | R1: Time Trial | S1: Cobbles | T1: Climber | U1: Flat | V1: OVL
A2: =DYN_cyclist!A2 -> 1 | B2: =DYN_cyclist!D2 -> 67 | C2: =DYN_cyclist!E2 -> 65 | D2: =DYN_cyclist!F2 -> 63 | E2: =DYN_cyclist!G2 -> 66 | F2: =DYN_cyclist!H2 -> 65 | G2: =DYN_cyclist!I2 -> 66 | H2: =DYN_cyclist!J2 -> 62 | I2: =DYN_cyclist!K2 -> 57 | J2: =DYN_cyclist!L2 -> 58 | K2: =DYN_cyclist!M2 -> 65 | L2: =DYN_cyclist!N2 -> 72 | M2: =DYN_cyclist!O2 -> 61 | N2: =DYN_cyclist!P2 -> 63 | O2: =((($B2*5)^2+($C2*4)^2+($D2*12)^2+($E2*0)^2+($F2*3)^2+($G2*6)^2+($H2*0)^2+($I2*0)^2+($J2*5)^2+($K2*7)^2+($L2*1)^2+($M2*2)^2)+($N2*0)^2)/2106025*91.12 -> 54.40288335 | P2: =((($B2*2)^2+($C2*14)^2+($D2*10)^2+($E2*5)^2+($F2*2)^2+($G2*7)^2+($H2*5)^2+($I2*0)^2+($J2*0)^2+($K2*3)^2+($L2*0)^2+($M2*0)^2)+($N2*0)^2)/2958326.56*90.98 -> 52.78364147 | Q2: =((($B2*5)^2+($C2*2)^2+($D2*1)^2+($E2*0)^2+($F2*2)^2+($G2*1)^2+($H2*1)^2+($I2*0)^2+($J2*10.75)^2+($K2*9)^2+($L2*0)^2+($M2*0)^2)+($N2*1)^2)/1715576.56*IF(B2>77,92,IF(B2>75,92-0.5,IF(B2>73,92-0.88,92-1.65))) -> 47.0367942 | R2: =IF(AND(E2>75,C2<76),((($B2*2)^2+($C2*6)^2+($D2*0)^2+($E2*11)^2+($F2*0)^2+($G2*3.5)^2+($H2*0)^2+($I2*0)^2+($J2*0)^2+($K2*0)^2+($L2*0)^2+($M2*0)^2)+($N2*6)^2)/1482831.25*87.08+0.75,IF(AND(E2>75,C2<80),((($B2*2)^2+($C2*6)^2+($D2*0)^2+($E2*11)^2+($F2*0)^2+($G2*3.5)^2+($H2*0)^2+($I2*0)^2+($J2*0)^2+($K2*0)^2+($L2*0)^2+($M2*0)^2)+($N2*6)^2)/1482831.25*87.08+0.5,((($B2*2)^2+($C2*6)^2+($D2*0)^2+($E2*9)^2+($F2*0)^2+($G2*3.5)^2+($H2*0)^2+($I2*0)^2+($J2*0)^2+($K2*0)^2+($L2*0)^2+($M2*0)^2)+($N2*6)^2)/1212831.25*87.08))+IF(AND(E2>81.99,C2<74),4,IF(AND(E2>80.99,C2<74),2.5,IF(AND(E2>79.99,C2<74),1.5,0))) -> 51.63327541 | S2: =((($B2*7)^2+($C2*3)^2+($D2*4)^2+($E2*0)^2+($F2*2.5)^2+($G2*2)^2+($H2*0)^2+($I2*11)^2+($J2*1)^2+($K2*5)^2+($L2*3)^2+($M2*0)^2)+($N2*0)^2)/1680031.25*91.49-IF(I2<74,1,IF(I2<75,0.8,IF(I2<76,0.7,IF(I2<77,0.6,IF(I2<77,0.4,IF(I2<78,0.3,IF(I2<79,0.2,0))))))) -> 48.77912341 | T2: =IF(AND(C2>81,D2>75,B2>70,E2>72,F2>77,G2>77),((($B2*1)^2+($C2*14.5)^2+($D2*2)^2+($E2*0)^2+($F2*1)^2+($G2*3)^2+($H2*2.5)^2+($I2*0)^2+($J2*0)^2+($K2*3)^2+($L2*1)^2+($M2*1.25)^2)+($N2*0)^2)/1693126.56*81.55+1,IF(AND(C2>75,D2<74,(C2-D2)>7.9),((($B2*1)^2+($C2*14.5)^2+($D2*2)^2+($E2*0)^2+($F2*1)^2+($G2*3)^2+($H2*2.5)^2+($I2*0)^2+($J2*0)^2+($K2*3)^2+($L2*1)^2+($M2*1.25)^2)+($N2*0)^2)/1693126.56*81.55-1.25,((($B2*1)^2+($C2*14.5)^2+($D2*2)^2+($E2*0)^2+($F2*1)^2+($G2*3)^2+($H2*2.5)^2+($I2*0)^2+($J2*0)^2+($K2*3)^2+($L2*1)^2+($M2*1.25)^2)+($N2*0)^2)/1693126.56*81.55)) -> 49.37660708 | U2: =((($B2*13)^2+($C2*4)^2+($D2*3)^2+($E2*2)^2+($F2*2)^2+($G2*2)^2+($H2*0)^2+($I2*2)^2+($J2*0)^2+($K2*0)^2+($L2*3)^2+($M2*1)^2)+($N2*0)^2)/1569500*81.55 -> 50.76847318 | V2: =IF(AND(O2>79.99,P2>79.99),((LARGE(O2:U2,1)*9)^2+(LARGE(O2:U2,2)*4.5)^2+(LARGE(O2:U2,3)*2)^2)^(1/4)*2.81072986218,IF(AND(R2>79.99,P2>79.99),((LARGE(O2:U2,1)*9)^2+(LARGE(O2:U2,2)*4.5)^2+(LARGE(O2:U2,3)*2)^2)^(1/4)*2.80272986218,IF(AND(LARGE(O2:U2,1)=Q2,Q2>79,O2>77),((LARGE(O2:U2,1)*9)^2+(LARGE(O2:U2,2)*4.5)^2+(LARGE(O2:U2,3)*2)^2)^(1/4)*2.78572986218,IF(AND(LARGE(O2:U2,1)=O2,O2>79,T2<70),((LARGE(O2:U2,1)*9)^2+(LARGE(O2:U2,2)*4.5)^2+(LARGE(O2:U2,3)*2)^2)^(1/4)*2.78572986218,IF(AND(LARGE(O2:U2,1)=O2,O2<77,T2<70,R2<70,Q2<70,P2<70,S2<72),((LARGE(O2:U2,1)*9)^2+(LARGE(O2:U2,2)*4.5)^2+(LARGE(O2:U2,3)*2)^2)^(1/4)*2.76572986218,IF(AND(LARGE(O2:U2,1)=O2,O2<77,T2<70,S2<71,R2<70,P2<68),((LARGE(O2:U2,1)*9)^2+(LARGE(O2:U2,2)*4.5)^2+(LARGE(O2:U2,3)*2)^2)^(1/4)*2.75572986218,IF(AND(LARGE(O2:U2,1)=O2,O2<78,T2<70,R2<70,S2<71),((LARGE(O2:U2,1)*9)^2+(LARGE(O2:U2,2)*4.5)^2+(LARGE(O2:U2,3)*2)^2)^(1/4)*2.78072986218,IF(AND(LARGE(O2:U2,1)=O2,O2<79,T2<70,R2<70),((LARGE(O2:U2,1)*9)^2+(LARGE(O2:U2,2)*4.5)^2+(LARGE(O2:U2,3)*2)^2)^(1/4)*2.79572986218,IF(LARGE(O2:U2,1)=Q2,((LARGE(O2:U2,1)*9)^2+(LARGE(O2:U2,2)*3.5)^2+(LARGE(O2:U2,3)*2)^2)^(1/4)*2.80572986218,(((LARGE(O2:U2,1)*9)^2+(LARGE(O2:U2,2)*4.5)^2+(LARGE(O2:U2,3)*2)^2))^(1/4)*2.79572986218+IF(AND(LARGE(O2:U2,1)=O2,R2>70),1,0)))))))))+IF(AND(LARGE(O2:U2,1)=Q2,O2<78,J2>80),((B2+J2)^2/35000),IF(AND(LARGE(O2:U2,1)=Q2,O2<78,J2>79),((B2+J2)^2/45000),IF(AND(LARGE(O2:U2,1)=Q2,O2<78,J2>78),((B2+J2)^2/65000),0)))) -> 65.09226422
A3: =DYN_cyclist!A3 -> 2 | B3: =DYN_cyclist!D3 -> 72 | C3: =DYN_cyclist!E3 -> 55 | D3: =DYN_cyclist!F3 -> 66 | E3: =DYN_cyclist!G3 -> 67 | F3: =DYN_cyclist!H3 -> 66 | G3: =DYN_cyclist!I3 -> 68 | H3: =DYN_cyclist!J3 -> 67 | I3: =DYN_cyclist!K3 -> 70 | J3: =DYN_cyclist!L3 -> 72 | K3: =DYN_cyclist!M3 -> 68 | L3: =DYN_cyclist!N3 -> 69 | M3: =DYN_cyclist!O3 -> 72 | N3: =DYN_cyclist!P3 -> 69 | O3: =((($B3*5)^2+($C3*4)^2+($D3*12)^2+($E3*0)^2+($F3*3)^2+($G3*6)^2+($H3*0)^2+($I3*0)^2+($J3*5)^2+($K3*7)^2+($L3*1)^2+($M3*2)^2)+($N3*0)^2)/2106025*91.12 -> 60.25292558 | P3: =((($B3*2)^2+($C3*14)^2+($D3*10)^2+($E3*5)^2+($F3*2)^2+($G3*7)^2+($H3*5)^2+($I3*0)^2+($J3*0)^2+($K3*3)^2+($L3*0)^2+($M3*0)^2)+($N3*0)^2)/2958326.56*90.98 -> 47.95457604 | Q3: =((($B3*5)^2+($C3*2)^2+($D3*1)^2+($E3*0)^2+($F3*2)^2+($G3*1)^2+($H3*1)^2+($I3*0)^2+($J3*10.75)^2+($K3*9)^2+($L3*0)^2+($M3*0)^2)+($N3*1)^2)/1715576.56*IF(B3>77,92,IF(B3>75,92-0.5,IF(B3>73,92-0.88,92-1.65))) -> 60.61548247 | R3: =IF(AND(E3>75,C3<76),((($B3*2)^2+($C3*6)^2+($D3*0)^2+($E3*11)^2+($F3*0)^2+($G3*3.5)^2+($H3*0)^2+($I3*0)^2+($J3*0)^2+($K3*0)^2+($L3*0)^2+($M3*0)^2)+($N3*6)^2)/1482831.25*87.08+0.75,IF(AND(E3>75,C3<80),((($B3*2)^2+($C3*6)^2+($D3*0)^2+($E3*11)^2+($F3*0)^2+($G3*3.5)^2+($H3*0)^2+($I3*0)^2+($J3*0)^2+($K3*0)^2+($L3*0)^2+($M3*0)^2)+($N3*6)^2)/1482831.25*87.08+0.5,((($B3*2)^2+($C3*6)^2+($D3*0)^2+($E3*9)^2+($F3*0)^2+($G3*3.5)^2+($H3*0)^2+($I3*0)^2+($J3*0)^2+($K3*0)^2+($L3*0)^2+($M3*0)^2)+($N3*6)^2)/1212831.25*87.08))+IF(AND(E3>81.99,C3<74),4,IF(AND(E3>80.99,C3<74),2.5,IF(AND(E3>79.99,C3<74),1.5,0))) -> 51.78749954 | S3: =((($B3*7)^2+($C3*3)^2+($D3*4)^2+($E3*0)^2+($F3*2.5)^2+($G3*2)^2+($H3*0)^2+($I3*11)^2+($J3*1)^2+($K3*5)^2+($L3*3)^2+($M3*0)^2)+($N3*0)^2)/1680031.25*91.49-IF(I3<74,1,IF(I3<75,0.8,IF(I3<76,0.7,IF(I3<77,0.6,IF(I3<77,0.4,IF(I3<78,0.3,IF(I3<79,0.2,0))))))) -> 61.79969173 | T3: =IF(AND(C3>81,D3>75,B3>70,E3>72,F3>77,G3>77),((($B3*1)^2+($C3*14.5)^2+($D3*2)^2+($E3*0)^2+($F3*1)^2+($G3*3)^2+($H3*2.5)^2+($I3*0)^2+($J3*0)^2+($K3*3)^2+($L3*1)^2+($M3*1.25)^2)+($N3*0)^2)/1693126.56*81.55+1,IF(AND(C3>75,D3<74,(C3-D3)>7.9),((($B3*1)^2+($C3*14.5)^2+($D3*2)^2+($E3*0)^2+($F3*1)^2+($G3*3)^2+($H3*2.5)^2+($I3*0)^2+($J3*0)^2+($K3*3)^2+($L3*1)^2+($M3*1.25)^2)+($N3*0)^2)/1693126.56*81.55-1.25,((($B3*1)^2+($C3*14.5)^2+($D3*2)^2+($E3*0)^2+($F3*1)^2+($G3*3)^2+($H3*2.5)^2+($I3*0)^2+($J3*0)^2+($K3*3)^2+($L3*1)^2+($M3*1.25)^2)+($N3*0)^2)/1693126.56*81.55)) -> 37.9118707 | U3: =((($B3*13)^2+($C3*4)^2+($D3*3)^2+($E3*2)^2+($F3*2)^2+($G3*2)^2+($H3*0)^2+($I3*2)^2+($J3*0)^2+($K3*0)^2+($L3*3)^2+($M3*1)^2)+($N3*0)^2)/1569500*81.55 -> 56.38661609 | V3: =IF(AND(O3>79.99,P3>79.99),((LARGE(O3:U3,1)*9)^2+(LARGE(O3:U3,2)*4.5)^2+(LARGE(O3:U3,3)*2)^2)^(1/4)*2.81072986218,IF(AND(R3>79.99,P3>79.99),((LARGE(O3:U3,1)*9)^2+(LARGE(O3:U3,2)*4.5)^2+(LARGE(O3:U3,3)*2)^2)^(1/4)*2.80272986218,IF(AND(LARGE(O3:U3,1)=Q3,Q3>79,O3>77),((LARGE(O3:U3,1)*9)^2+(LARGE(O3:U3,2)*4.5)^2+(LARGE(O3:U3,3)*2)^2)^(1/4)*2.78572986218,IF(AND(LARGE(O3:U3,1)=O3,O3>79,T3<70),((LARGE(O3:U3,1)*9)^2+(LARGE(O3:U3,2)*4.5)^2+(LARGE(O3:U3,3)*2)^2)^(1/4)*2.78572986218,IF(AND(LARGE(O3:U3,1)=O3,O3<77,T3<70,R3<70,Q3<70,P3<70,S3<72),((LARGE(O3:U3,1)*9)^2+(LARGE(O3:U3,2)*4.5)^2+(LARGE(O3:U3,3)*2)^2)^(1/4)*2.76572986218,IF(AND(LARGE(O3:U3,1)=O3,O3<77,T3<70,S3<71,R3<70,P3<68),((LARGE(O3:U3,1)*9)^2+(LARGE(O3:U3,2)*4.5)^2+(LARGE(O3:U3,3)*2)^2)^(1/4)*2.75572986218,IF(AND(LARGE(O3:U3,1)=O3,O3<78,T3<70,R3<70,S3<71),((LARGE(O3:U3,1)*9)^2+(LARGE(O3:U3,2)*4.5)^2+(LARGE(O3:U3,3)*2)^2)^(1/4)*2.78072986218,IF(AND(LARGE(O3:U3,1)=O3,O3<79,T3<70,R3<70),((LARGE(O3:U3,1)*9)^2+(LARGE(O3:U3,2)*4.5)^2+(LARGE(O3:U3,3)*2)^2)^(1/4)*2.79572986218,IF(LARGE(O3:U3,1)=Q3,((LARGE(O3:U3,1)*9)^2+(LARGE(O3:U3,2)*3.5)^2+(LARGE(O3:U3,3)*2)^2)^(1/4)*2.80572986218,(((LARGE(O3:U3,1)*9)^2+(LARGE(O3:U3,2)*4.5)^2+(LARGE(O3:U3,3)*2)^2))^(1/4)*2.79572986218+IF(AND(LARGE(O3:U3,1)=O3,R3>70),1,0)))))))))+IF(AND(LARGE(O3:U3,1)=Q3,O3<78,J3>80),((B3+J3)^2/35000),IF(AND(LARGE(O3:U3,1)=Q3,O3<78,J3>79),((B3+J3)^2/45000),IF(AND(LARGE(O3:U3,1)=Q3,O3<78,J3>78),((B3+J3)^2/65000),0)))) -> 70.2331931
A4: =DYN_cyclist!A4 -> 3 | B4: =DYN_cyclist!D4 -> 70 | C4: =DYN_cyclist!E4 -> 59 | D4: =DYN_cyclist!F4 -> 62 | E4: =DYN_cyclist!G4 -> 74 | F4: =DYN_cyclist!H4 -> 72 | G4: =DYN_cyclist!I4 -> 67 | H4: =DYN_cyclist!J4 -> 68 | I4: =DYN_cyclist!K4 -> 56 | J4: =DYN_cyclist!L4 -> 64 | K4: =DYN_cyclist!M4 -> 67 | L4: =DYN_cyclist!N4 -> 62 | M4: =DYN_cyclist!O4 -> 65 | N4: =DYN_cyclist!P4 -> 74 | O4: 55.51491489 | P4: 49.81739965 | Q4: 53.32523959 | R4: 60.3540646 | S4: 48.75558424 | T4: 42.26449032 | U4: 53.53634097 | V4: 68.90165789
A5: =DYN_cyclist!A5 -> 4 | B5: =DYN_cyclist!D5 -> 69 | C5: =DYN_cyclist!E5 -> 65 | D5: =DYN_cyclist!F5 -> 66 | E5: =DYN_cyclist!G5 -> 62 | F5: =DYN_cyclist!H5 -> 70 | G5: =DYN_cyclist!I5 -> 68 | H5: =DYN_cyclist!J5 -> 65 | I5: =DYN_cyclist!K5 -> 64 | J5: =DYN_cyclist!L5 -> 71 | K5: =DYN_cyclist!M5 -> 71 | L5: =DYN_cyclist!N5 -> 65 | M5: =DYN_cyclist!O5 -> 69 | N5: =DYN_cyclist!P5 -> 66 | O5: 61.4709164 | P5: 54.61930941 | Q5: 61.29925544 | R5: 49.96976574 | S5: 56.4436509 | T5: 50.11345234 | U5: 53.20910178 | V5: 69.33197913
A6: =DYN_cyclist!A6 -> 5 | B6: =DYN_cyclist!D6 -> 66 | C6: =DYN_cyclist!E6 -> 73 | D6: =DYN_cyclist!F6 -> 70 | E6: =DYN_cyclist!G6 -> 71 | F6: =DYN_cyclist!H6 -> 71 | G6: =DYN_cyclist!I6 -> 68 | H6: =DYN_cyclist!J6 -> 66 | I6: =DYN_cyclist!K6 -> 55 | J6: =DYN_cyclist!L6 -> 58 | K6: =DYN_cyclist!M6 -> 63 | L6: =DYN_cyclist!N6 -> 64 | M6: =DYN_cyclist!O6 -> 65 | N6: =DYN_cyclist!P6 -> 71 | O6: 61.05633831 | P6: 63.63880535 | Q6: 46.32066218 | R6: 61.43900045 | S6: 47.75483567 | T6: 60.91367273 | U6: 50.7922705 | V6: 71.1459557
A7: =DYN_cyclist!A7 -> 6 | B7: =DYN_cyclist!D7 -> 70 | C7: =DYN_cyclist!E7 -> 60 | D7: =DYN_cyclist!F7 -> 67 | E7: =DYN_cyclist!G7 -> 68 | F7: =DYN_cyclist!H7 -> 64 | G7: =DYN_cyclist!I7 -> 65 | H7: =DYN_cyclist!J7 -> 66 | I7: =DYN_cyclist!K7 -> 61 | J7: =DYN_cyclist!L7 -> 69 | K7: =DYN_cyclist!M7 -> 70 | L7: =DYN_cyclist!N7 -> 67 | M7: =DYN_cyclist!O7 -> 67 | N7: =DYN_cyclist!P7 -> 71 | O7: 60.44524448 | P7: 51.23930497 | Q7: 58.90462647 | R7: 54.35009351 | S7: 53.71474012 | T7: 43.57541816 | U7: 53.91574721 | V7: 68.57866989
A8: =DYN_cyclist!A8 -> 7 | B8: =DYN_cyclist!D8 -> 66 | C8: =DYN_cyclist!E8 -> 67 | D8: =DYN_cyclist!F8 -> 69 | E8: =DYN_cyclist!G8 -> 61 | F8: =DYN_cyclist!H8 -> 66 | G8: =DYN_cyclist!I8 -> 68 | H8: =DYN_cyclist!J8 -> 67 | I8: =DYN_cyclist!K8 -> 60 | J8: =DYN_cyclist!L8 -> 62 | K8: =DYN_cyclist!M8 -> 63 | L8: =DYN_cyclist!N8 -> 76 | M8: =DYN_cyclist!O8 -> 62 | N8: =DYN_cyclist!P8 -> 61 | O8: 59.8680282 | P8: 57.15112202 | Q8: 48.85087593 | R8: 48.17917193 | S8: 51.62728211 | T8: 52.43970233 | U8: 50.49755779 | V8: 68.09453375
A9: =DYN_cyclist!A9 -> 8 | B9: =DYN_cyclist!D9 -> 71 | C9: =DYN_cyclist!E9 -> 76 | D9: =DYN_cyclist!F9 -> 73 | E9: =DYN_cyclist!G9 -> 75 | F9: =DYN_cyclist!H9 -> 75 | G9: =DYN_cyclist!I9 -> 71 | H9: =DYN_cyclist!J9 -> 72 | I9: =DYN_cyclist!K9 -> 54 | J9: =DYN_cyclist!L9 -> 61 | K9: =DYN_cyclist!M9 -> 72 | L9: =DYN_cyclist!N9 -> 69 | M9: =DYN_cyclist!O9 -> 64 | N9: =DYN_cyclist!P9 -> 73 | O9: 68.62491969 | P9: 69.85896074 | Q9: 54.89875313 | R9: 67.29867362 | S9: 51.74644834 | T9: 66.56313784 | U9: 57.99059729 | V9: 74.66696231
A10: =DYN_cyclist!A10 -> 9 | B10: =DYN_cyclist!D10 -> 71 | C10: =DYN_cyclist!E10 -> 50 | D10: =DYN_cyclist!F10 -> 62 | E10: =DYN_cyclist!G10 -> 58 | F10: =DYN_cyclist!H10 -> 69 | G10: =DYN_cyclist!I10 -> 64 | H10: =DYN_cyclist!J10 -> 71 | I10: =DYN_cyclist!K10 -> 62 | J10: =DYN_cyclist!L10 -> 77 | K10: =DYN_cyclist!M10 -> 76 | L10: =DYN_cyclist!N10 -> 56 | M10: =DYN_cyclist!O10 -> 61 | N10: =DYN_cyclist!P10 -> 71 | O10: 58.80480108 | P10: 42.33027695 | Q10: 69.83930615 | R10: 44.10608978 | S10: 54.59167996 | T10: 32.75759335 | U10: 53.14025581 | V10: 72.64317075
A11: =DYN_cyclist!A11 -> 10 | B11: =DYN_cyclist!D11 -> 75 | C11: =DYN_cyclist!E11 -> 62 | D11: =DYN_cyclist!F11 -> 68 | E11: =DYN_cyclist!G11 -> 62 | F11: =DYN_cyclist!H11 -> 69 | G11: =DYN_cyclist!I11 -> 70 | H11: =DYN_cyclist!J11 -> 77 | I11: =DYN_cyclist!K11 -> 72 | J11: =DYN_cyclist!L11 -> 77 | K11: =DYN_cyclist!M11 -> 78 | L11: =DYN_cyclist!N11 -> 56 | M11: =DYN_cyclist!O11 -> 60 | N11: =DYN_cyclist!P11 -> 62 | O11: 67.11090054 | P11: 55.2508402 | Q11: 72.88828871 | R11: 48.15246273 | S11: 66.91253978 | T11: 47.28661405 | U11: 60.28958506 | V11: 74.73541042
A12: =DYN_cyclist!A12 -> 11 | B12: =DYN_cyclist!D12 -> 75 | C12: =DYN_cyclist!E12 -> 61 | D12: =DYN_cyclist!F12 -> 69 | E12: =DYN_cyclist!G12 -> 62 | F12: =DYN_cyclist!H12 -> 74 | G12: =DYN_cyclist!I12 -> 73 | H12: =DYN_cyclist!J12 -> 68 | I12: =DYN_cyclist!K12 -> 73 | J12: =DYN_cyclist!L12 -> 75 | K12: =DYN_cyclist!M12 -> 73 | L12: =DYN_cyclist!N12 -> 66 | M12: =DYN_cyclist!O12 -> 68 | N12: =DYN_cyclist!P12 -> 63 | O12: 67.12647643 | P12: 54.45286945 | Q12: 67.86737852 | R12: 48.53495364 | S12: 67.817389 | T12: 45.70351598 | U12: 61.14301529 | V12: 72.56573838
A13: =DYN_cyclist!A13 -> 12 | B13: =DYN_cyclist!D13 -> 66 | C13: =DYN_cyclist!E13 -> 75 | D13: =DYN_cyclist!F13 -> 68 | E13: =DYN_cyclist!G13 -> 71 | F13: =DYN_cyclist!H13 -> 72 | G13: =DYN_cyclist!I13 -> 68 | H13: =DYN_cyclist!J13 -> 69 | I13: =DYN_cyclist!K13 -> 50 | J13: =DYN_cyclist!L13 -> 56 | K13: =DYN_cyclist!M13 -> 63 | L13: =DYN_cyclist!N13 -> 62 | M13: =DYN_cyclist!O13 -> 59 | N13: =DYN_cyclist!P13 -> 71 | O13: 59.21107204 | P13: 64.90318934 | Q13: 45.03231709 | R13: 62.20408998 | S13: 44.11277093 | T13: 63.91869564 | U13: 50.6733878 | V13: 71.98043243
A14: =DYN_cyclist!A14 -> 13 | B14: =DYN_cyclist!D14 -> 67 | C14: =DYN_cyclist!E14 -> 68 | D14: =DYN_cyclist!F14 -> 68 | E14: =DYN_cyclist!G14 -> 67 | F14: =DYN_cyclist!H14 -> 65 | G14: =DYN_cyclist!I14 -> 64 | H14: =DYN_cyclist!J14 -> 63 | I14: =DYN_cyclist!K14 -> 56 | J14: =DYN_cyclist!L14 -> 60 | K14: =DYN_cyclist!M14 -> 62 | L14: =DYN_cyclist!N14 -> 62 | M14: =DYN_cyclist!O14 -> 63 | N14: =DYN_cyclist!P14 -> 66 | O14: 57.78747956 | P14: 56.90419918 | Q14: 46.97964004 | R14: 54.20970863 | S14: 47.58155248 | T14: 53.25726366 | U14: 50.74285728 | V14: 67.16568035
A15: =DYN_cyclist!A15 -> 14 | B15: =DYN_cyclist!D15 -> 69 | C15: =DYN_cyclist!E15 -> 60 | D15: =DYN_cyclist!F15 -> 64 | E15: =DYN_cyclist!G15 -> 56 | F15: =DYN_cyclist!H15 -> 68 | G15: =DYN_cyclist!I15 -> 70 | H15: =DYN_cyclist!J15 -> 64 | I15: =DYN_cyclist!K15 -> 55 | J15: =DYN_cyclist!L15 -> 71 | K15: =DYN_cyclist!M15 -> 73 | L15: =DYN_cyclist!N15 -> 61 | M15: =DYN_cyclist!O15 -> 63 | N15: =DYN_cyclist!P15 -> 59 | O15: 60.1924825 | P15: 49.87051158 | Q15: 62.28597771 | R15: 42.21784942 | S15: 48.96486372 | T15: 43.84261533 | U15: 51.92134441 | V15: 69.17082027
A16: =DYN_cyclist!A16 -> 15 | B16: =DYN_cyclist!D16 -> 68 | C16: =DYN_cyclist!E16 -> 66 | D16: =DYN_cyclist!F16 -> 72 | E16: =DYN_cyclist!G16 -> 66 | F16: =DYN_cyclist!H16 -> 71 | G16: =DYN_cyclist!I16 -> 69 | H16: =DYN_cyclist!J16 -> 66 | I16: =DYN_cyclist!K16 -> 57 | J16: =DYN_cyclist!L16 -> 60 | K16: =DYN_cyclist!M16 -> 71 | L16: =DYN_cyclist!N16 -> 74 | M16: =DYN_cyclist!O16 -> 64 | N16: =DYN_cyclist!P16 -> 66 | O16: 65.22081035 | P16: 58.65667789 | Q16: 52.46391152 | R16: 53.367166 | S16: 51.89506237 | T16: 51.70880548 | U16: 53.04080586 | V16: 70.64231137
A17: =DYN_cyclist!A17 -> 16 | B17: =DYN_cyclist!D17 -> 69 | C17: =DYN_cyclist!E17 -> 75 | D17: =DYN_cyclist!F17 -> 75 | E17: =DYN_cyclist!G17 -> 63 | F17: =DYN_cyclist!H17 -> 70 | G17: =DYN_cyclist!I17 -> 75 | H17: =DYN_cyclist!J17 -> 72 | I17: =DYN_cyclist!K17 -> 70 | J17: =DYN_cyclist!L17 -> 69 | K17: =DYN_cyclist!M17 -> 74 | L17: =DYN_cyclist!N17 -> 75 | M17: =DYN_cyclist!O17 -> 72 | N17: =DYN_cyclist!P17 -> 61 | O17: 72.65868411 | P17: 69.42311684 | Q17: 61.88233057 | R17: 53.55448944 | S17: 65.01452518 | T17: 65.54584994 | U17: 56.04420481 | V17: 75.05685251
A18: =DYN_cyclist!A18 -> 17 | B18: =DYN_cyclist!D18 -> 77 | C18: =DYN_cyclist!E18 -> 62 | D18: =DYN_cyclist!F18 -> 66 | E18: =DYN_cyclist!G18 -> 60 | F18: =DYN_cyclist!H18 -> 74 | G18: =DYN_cyclist!I18 -> 74 | H18: =DYN_cyclist!J18 -> 65 | I18: =DYN_cyclist!K18 -> 65 | J18: =DYN_cyclist!L18 -> 62 | K18: =DYN_cyclist!M18 -> 71 | L18: =DYN_cyclist!N18 -> 85 | M18: =DYN_cyclist!O18 -> 72 | N18: =DYN_cyclist!P18 -> 66 | O18: 62.93016035 | P18: 53.63358627 | Q18: 56.34619091 | R18: 48.65074738 | S18: 62.01044156 | T18: 46.88481887 | U18: 64.84646085 | V18: 71.84772235
A19: =DYN_cyclist!A19 -> 18 | B19: =DYN_cyclist!D19 -> 63 | C19: =DYN_cyclist!E19 -> 64 | D19: =DYN_cyclist!F19 -> 63 | E19: =DYN_cyclist!G19 -> 62 | F19: =DYN_cyclist!H19 -> 61 | G19: =DYN_cyclist!I19 -> 64 | H19: =DYN_cyclist!J19 -> 65 | I19: =DYN_cyclist!K19 -> 55 | J19: =DYN_cyclist!L19 -> 53 | K19: =DYN_cyclist!M19 -> 60 | L19: =DYN_cyclist!N19 -> 57 | M19: =DYN_cyclist!O19 -> 59 | N19: =DYN_cyclist!P19 -> 60 | O19: 51.09928173 | P19: 51.21457886 | Q19: 40.16185378 | R19: 46.99039686 | S19: 43.79464488 | T19: 47.64072857 | U19: 44.86595744 | V19: 63.98760313
A20: =DYN_cyclist!A20 -> 19 | B20: =DYN_cyclist!D20 -> 72 | C20: =DYN_cyclist!E20 -> 68 | D20: =DYN_cyclist!F20 -> 67 | E20: =DYN_cyclist!G20 -> 66 | F20: =DYN_cyclist!H20 -> 75 | G20: =DYN_cyclist!I20 -> 71 | H20: =DYN_cyclist!J20 -> 73 | I20: =DYN_cyclist!K20 -> 78 | J20: =DYN_cyclist!L20 -> 73 | K20: =DYN_cyclist!M20 -> 75 | L20: =DYN_cyclist!N20 -> 66 | M20: =DYN_cyclist!O20 -> 67 | N20: =DYN_cyclist!P20 -> 66 | O20: 65.473356 | P20: 59.60712634 | Q20: 66.42409163 | R20: 54.46698219 | S20: 72.995989 | T20: 54.98704925 | U20: 58.12148257 | V20: 75.71987942
A21: =DYN_cyclist!A21 -> 20 | B21: =DYN_cyclist!D21 -> 71 | C21: =DYN_cyclist!E21 -> 70 | D21: =DYN_cyclist!F21 -> 71 | E21: =DYN_cyclist!G21 -> 67 | F21: =DYN_cyclist!H21 -> 69 | G21: =DYN_cyclist!I21 -> 74 | H21: =DYN_cyclist!J21 -> 69 | I21: =DYN_cyclist!K21 -> 69 | J21: =DYN_cyclist!L21 -> 69 | K21: =DYN_cyclist!M21 -> 72 | L21: =DYN_cyclist!N21 -> 71 | M21: =DYN_cyclist!O21 -> 73 | N21: =DYN_cyclist!P21 -> 65 | O21: 67.91569779 | P21: 63.04353338 | Q21: 60.78901532 | R21: 55.95679227 | S21: 63.21804625 | T21: 57.76250416 | U21: 57.38085581 | V21: 72.43302217
A22: =DYN_cyclist!A22 -> 21 | B22: =DYN_cyclist!D22 -> 66 | C22: =DYN_cyclist!E22 -> 67 | D22: =DYN_cyclist!F22 -> 69 | E22: =DYN_cyclist!G22 -> 71 | F22: =DYN_cyclist!H22 -> 62 | G22: =DYN_cyclist!I22 -> 65 | H22: =DYN_cyclist!J22 -> 68 | I22: =DYN_cyclist!K22 -> 50 | J22: =DYN_cyclist!L22 -> 50 | K22: =DYN_cyclist!M22 -> 60 | L22: =DYN_cyclist!N22 -> 61 | M22: =DYN_cyclist!O22 -> 57 | N22: =DYN_cyclist!P22 -> 67 | O22: 56.61924503 | P22: 57.50340764 | Q22: 39.01583124 | R22: 57.49007662 | S22: 42.5350879 | T22: 51.97900396 | U22: 49.36204094 | V22: 67.88312668
A23: =DYN_cyclist!A23 -> 22 | B23: =DYN_cyclist!D23 -> 65 | C23: =DYN_cyclist!E23 -> 52 | D23: =DYN_cyclist!F23 -> 56 | E23: =DYN_cyclist!G23 -> 62 | F23: =DYN_cyclist!H23 -> 59 | G23: =DYN_cyclist!I23 -> 63 | H23: =DYN_cyclist!J23 -> 62 | I23: =DYN_cyclist!K23 -> 58 | J23: =DYN_cyclist!L23 -> 67 | K23: =DYN_cyclist!M23 -> 68 | L23: =DYN_cyclist!N23 -> 59 | M23: =DYN_cyclist!O23 -> 61 | N23: =DYN_cyclist!P23 -> 62 | O23: 48.97109685 | P23: 40.06322443 | Q23: 54.69009634 | R23: 43.98491112 | S23: 46.79344614 | T23: 33.68794282 | U23: 45.68228879 | V23: 64.56442713
A24: =DYN_cyclist!A24 -> 23 | B24: =DYN_cyclist!D24 -> 76 | C24: =DYN_cyclist!E24 -> 63 | D24: =DYN_cyclist!F24 -> 70 | E24: =DYN_cyclist!G24 -> 66 | F24: =DYN_cyclist!H24 -> 75 | G24: =DYN_cyclist!I24 -> 73 | H24: =DYN_cyclist!J24 -> 69 | I24: =DYN_cyclist!K24 -> 69 | J24: =DYN_cyclist!L24 -> 72 | K24: =DYN_cyclist!M24 -> 75 | L24: =DYN_cyclist!N24 -> 76 | M24: =DYN_cyclist!O24 -> 70 | N24: =DYN_cyclist!P24 -> 66 | O24: 68.64525487 | P24: 56.99304712 | Q24: 67.03245264 | R24: 53.19728971 | S24: 65.84588424 | T24: 48.51490222 | U24: 63.43784632 | V24: 73.1750399
A25: =DYN_cyclist!A25 -> 24 | B25: =DYN_cyclist!D25 -> 67 | C25: =DYN_cyclist!E25 -> 53 | D25: =DYN_cyclist!F25 -> 52 | E25: =DYN_cyclist!G25 -> 66 | F25: =DYN_cyclist!H25 -> 64 | G25: =DYN_cyclist!I25 -> 66 | H25: =DYN_cyclist!J25 -> 67 | I25: =DYN_cyclist!K25 -> 55 | J25: =DYN_cyclist!L25 -> 71 | K25: =DYN_cyclist!M25 -> 73 | L25: =DYN_cyclist!N25 -> 58 | M25: =DYN_cyclist!O25 -> 58 | N25: =DYN_cyclist!P25 -> 66 | O25: 49.50496025 | P25: 41.14357724 | Q25: 61.61482118 | R25: 48.97355542 | S25: 46.16532179 | T25: 35.34539312 | U25: 48.05672134 | V25: 68.10304722
A26: =DYN_cyclist!A26 -> 25 | B26: =DYN_cyclist!D26 -> 72 | C26: =DYN_cyclist!E26 -> 61 | D26: =DYN_cyclist!F26 -> 64 | E26: =DYN_cyclist!G26 -> 56 | F26: =DYN_cyclist!H26 -> 72 | G26: =DYN_cyclist!I26 -> 72 | H26: =DYN_cyclist!J26 -> 73 | I26: =DYN_cyclist!K26 -> 60 | J26: =DYN_cyclist!L26 -> 75 | K26: =DYN_cyclist!M26 -> 75 | L26: =DYN_cyclist!N26 -> 57 | M26: =DYN_cyclist!O26 -> 63 | N26: =DYN_cyclist!P26 -> 59 | O26: 62.63300711 | P26: 52.17868203 | Q26: 67.88318823 | R26: 42.90187793 | S26: 54.39768937 | T26: 45.71516296 | U26: 55.81054419 | V26: 72.00480667
A27: =DYN_cyclist!A27 -> 26 | B27: =DYN_cyclist!D27 -> 68 | C27: =DYN_cyclist!E27 -> 65 | D27: =DYN_cyclist!F27 -> 67 | E27: =DYN_cyclist!G27 -> 59 | F27: =DYN_cyclist!H27 -> 70 | G27: =DYN_cyclist!I27 -> 69 | H27: =DYN_cyclist!J27 -> 59 | I27: =DYN_cyclist!K27 -> 67 | J27: =DYN_cyclist!L27 -> 69 | K27: =DYN_cyclist!M27 -> 69 | L27: =DYN_cyclist!N27 -> 72 | M27: =DYN_cyclist!O27 -> 69 | N27: =DYN_cyclist!P27 -> 64 | O27: 61.50976958 | P27: 54.28932035 | Q27: 58.18170073 | R27: 47.26777412 | S27: 58.88698749 | T27: 49.89271063 | U27: 52.5514539 | V27: 69.12533973
A28: =DYN_cyclist!A28 -> 27 | B28: =DYN_cyclist!D28 -> 66 | C28: =DYN_cyclist!E28 -> 70 | D28: =DYN_cyclist!F28 -> 69 | E28: =DYN_cyclist!G28 -> 63 | F28: =DYN_cyclist!H28 -> 67 | G28: =DYN_cyclist!I28 -> 65 | H28: =DYN_cyclist!J28 -> 67 | I28: =DYN_cyclist!K28 -> 50 | J28: =DYN_cyclist!L28 -> 57 | K28: =DYN_cyclist!M28 -> 65 | L28: =DYN_cyclist!N28 -> 61 | M28: =DYN_cyclist!O28 -> 57 | N28: =DYN_cyclist!P28 -> 63 | O28: 59.29011965 | P28: 59.30515406 | Q28: 46.42837757 | R28: 50.97389188 | S28: 43.84774077 | T28: 56.40245972 | U28: 49.61497843 | V28: 68.89561236
A29: =DYN_cyclist!A29 -> 28 | B29: =DYN_cyclist!D29 -> 70 | C29: =DYN_cyclist!E29 -> 62 | D29: =DYN_cyclist!F29 -> 66 | E29: =DYN_cyclist!G29 -> 60 | F29: =DYN_cyclist!H29 -> 71 | G29: =DYN_cyclist!I29 -> 68 | H29: =DYN_cyclist!J29 -> 65 | I29: =DYN_cyclist!K29 -> 60 | J29: =DYN_cyclist!L29 -> 71 | K29: =DYN_cyclist!M29 -> 71 | L29: =DYN_cyclist!N29 -> 64 | M29: =DYN_cyclist!O29 -> 65 | N29: =DYN_cyclist!P29 -> 65 | O29: 61.31407591 | P29: 52.16957889 | Q29: 61.42480763 | R29: 47.26725358 | S29: 53.34428058 | T29: 46.22209102 | U29: 53.90026336 | V29: 68.88242497
A30: =DYN_cyclist!A30 -> 30 | B30: =DYN_cyclist!D30 -> 65 | C30: =DYN_cyclist!E30 -> 55 | D30: =DYN_cyclist!F30 -> 62 | E30: =DYN_cyclist!G30 -> 63 | F30: =DYN_cyclist!H30 -> 65 | G30: =DYN_cyclist!I30 -> 67 | H30: =DYN_cyclist!J30 -> 65 | I30: =DYN_cyclist!K30 -> 54 | J30: =DYN_cyclist!L30 -> 70 | K30: =DYN_cyclist!M30 -> 71 | L30: =DYN_cyclist!N30 -> 67 | M30: =DYN_cyclist!O30 -> 69 | N30: =DYN_cyclist!P30 -> 63 | O30: 56.25628368 | P30: 45.55509734 | Q30: 59.28598007 | R30: 46.32203846 | S30: 46.06627754 | T30: 37.75856347 | U30: 47.00122169 | V30: 67.3643882
A31: =DYN_cyclist!A31 -> 31 | B31: =DYN_cyclist!D31 -> 74 | C31: =DYN_cyclist!E31 -> 60 | D31: =DYN_cyclist!F31 -> 66 | E31: =DYN_cyclist!G31 -> 75 | F31: =DYN_cyclist!H31 -> 71 | G31: =DYN_cyclist!I31 -> 71 | H31: =DYN_cyclist!J31 -> 72 | I31: =DYN_cyclist!K31 -> 51 | J31: =DYN_cyclist!L31 -> 64 | K31: =DYN_cyclist!M31 -> 63 | L31: =DYN_cyclist!N31 -> 75 | M31: =DYN_cyclist!O31 -> 64 | N31: =DYN_cyclist!P31 -> 74 | O31: 59.16668078 | P31: 53.39558204 | Q31: 52.38855471 | R31: 62.17912189 | S31: 47.50825293 | T31: 43.84759743 | U31: 59.76354989 | V31: 70.28668387
A32: =DYN_cyclist!A32 -> 33 | B32: =DYN_cyclist!D32 -> 68 | C32: =DYN_cyclist!E32 -> 62 | D32: =DYN_cyclist!F32 -> 65 | E32: =DYN_cyclist!G32 -> 64 | F32: =DYN_cyclist!H32 -> 69 | G32: =DYN_cyclist!I32 -> 69 | H32: =DYN_cyclist!J32 -> 66 | I32: =DYN_cyclist!K32 -> 62 | J32: =DYN_cyclist!L32 -> 68 | K32: =DYN_cyclist!M32 -> 69 | L32: =DYN_cyclist!N32 -> 72 | M32: =DYN_cyclist!O32 -> 59 | N32: =DYN_cyclist!P32 -> 69 | O32: 59.17736756 | P32: 52.30932449 | Q32: 57.30557064 | R32: 51.57851077 | S32: 54.1653336 | T32: 46.14393073 | U32: 52.00962313 | V32: 67.83519504
A33: =DYN_cyclist!A33 -> 34 | B33: =DYN_cyclist!D33 -> 66 | C33: =DYN_cyclist!E33 -> 66 | D33: =DYN_cyclist!F33 -> 64 | E33: =DYN_cyclist!G33 -> 67 | F33: =DYN_cyclist!H33 -> 68 | G33: =DYN_cyclist!I33 -> 66 | H33: =DYN_cyclist!J33 -> 66 | I33: =DYN_cyclist!K33 -> 50 | J33: =DYN_cyclist!L33 -> 50 | K33: =DYN_cyclist!M33 -> 62 | L33: =DYN_cyclist!N33 -> 51 | M33: =DYN_cyclist!O33 -> 53 | N33: =DYN_cyclist!P33 -> 66 | O33: 53.28444838 | P33: 54.38702541 | Q33: 40.14374706 | R33: 53.70747503 | S33: 41.96775154 | T33: 50.53641619 | U33: 48.46849818 | V33: 65.93436931
A34: =DYN_cyclist!A34 -> 35 | B34: =DYN_cyclist!D34 -> 71 | C34: =DYN_cyclist!E34 -> 70 | D34: =DYN_cyclist!F34 -> 76 | E34: =DYN_cyclist!G34 -> 68 | F34: =DYN_cyclist!H34 -> 75 | G34: =DYN_cyclist!I34 -> 67 | H34: =DYN_cyclist!J34 -> 66 | I34: =DYN_cyclist!K34 -> 61 | J34: =DYN_cyclist!L34 -> 75 | K34: =DYN_cyclist!M34 -> 79 | L34: =DYN_cyclist!N34 -> 74 | M34: =DYN_cyclist!O34 -> 66 | N34: =DYN_cyclist!P34 -> 71 | O34: 74.31998188 | P34: 64.00785183 | Q34: 70.74671567 | R34: 57.98297635 | S34: 58.7839134 | T34: 57.8018763 | U34: 57.66377378 | V34: 75.55721469
A35: =DYN_cyclist!A35 -> 36 | B35: =DYN_cyclist!D35 -> 73 | C35: =DYN_cyclist!E35 -> 73 | D35: =DYN_cyclist!F35 -> 76 | E35: =DYN_cyclist!G35 -> 70 | F35: =DYN_cyclist!H35 -> 71 | G35: =DYN_cyclist!I35 -> 75 | H35: =DYN_cyclist!J35 -> 72 | I35: =DYN_cyclist!K35 -> 73 | J35: =DYN_cyclist!L35 -> 71 | K35: =DYN_cyclist!M35 -> 76 | L35: =DYN_cyclist!N35 -> 70 | M35: =DYN_cyclist!O35 -> 72 | N35: =DYN_cyclist!P35 -> 71 | O35: 74.97135667 | P35: 68.98933346 | Q35: 65.65882363 | R35: 61.77884279 | S35: 69.45983539 | T35: 62.70669638 | U35: 60.82933746 | V35: 76.06091703
A36: =DYN_cyclist!A36 -> 38 | B36: =DYN_cyclist!D36 -> 67 | C36: =DYN_cyclist!E36 -> 59 | D36: =DYN_cyclist!F36 -> 63 | E36: =DYN_cyclist!G36 -> 60 | F36: =DYN_cyclist!H36 -> 63 | G36: =DYN_cyclist!I36 -> 66 | H36: =DYN_cyclist!J36 -> 61 | I36: =DYN_cyclist!K36 -> 62 | J36: =DYN_cyclist!L36 -> 71 | K36: =DYN_cyclist!M36 -> 72 | L36: =DYN_cyclist!N36 -> 60 | M36: =DYN_cyclist!O36 -> 63 | N36: =DYN_cyclist!P36 -> 63 | O36: 57.60961162 | P36: 47.85711701 | Q36: 61.11687824 | R36: 45.31353258 | S36: 52.86859589 | T36: 42.15102485 | U36: 49.33543781 | V36: 68.45691357
A37: =DYN_cyclist!A37 -> 39 | B37: =DYN_cyclist!D37 -> 62 | C37: =DYN_cyclist!E37 -> 66 | D37: =DYN_cyclist!F37 -> 65 | E37: =DYN_cyclist!G37 -> 60 | F37: =DYN_cyclist!H37 -> 65 | G37: =DYN_cyclist!I37 -> 65 | H37: =DYN_cyclist!J37 -> 62 | I37: =DYN_cyclist!K37 -> 60 | J37: =DYN_cyclist!L37 -> 60 | K37: =DYN_cyclist!M37 -> 64 | L37: =DYN_cyclist!N37 -> 62 | M37: =DYN_cyclist!O37 -> 62 | N37: =DYN_cyclist!P37 -> 60 | O37: 55.13192123 | P37: 53.46686952 | Q37: 47.08833959 | R37: 46.32096148 | S37: 48.81005517 | T37: 50.55347575 | U37: 44.60164087 | V37: 65.48629628
A38: =DYN_cyclist!A38 -> 40 | B38: =DYN_cyclist!D38 -> 63 | C38: =DYN_cyclist!E38 -> 64 | D38: =DYN_cyclist!F38 -> 65 | E38: =DYN_cyclist!G38 -> 61 | F38: =DYN_cyclist!H38 -> 65 | G38: =DYN_cyclist!I38 -> 65 | H38: =DYN_cyclist!J38 -> 63 | I38: =DYN_cyclist!K38 -> 50 | J38: =DYN_cyclist!L38 -> 57 | K38: =DYN_cyclist!M38 -> 61 | L38: =DYN_cyclist!N38 -> 64 | M38: =DYN_cyclist!O38 -> 59 | N38: =DYN_cyclist!P38 -> 64 | O38: 53.86053974 | P38: 52.00037107 | Q38: 43.49496432 | R38: 47.67056618 | S38: 41.36176409 | T38: 47.7864287 | U38: 45.37863909 | V38: 64.66656696
A39: =DYN_cyclist!A39 -> 41 | B39: =DYN_cyclist!D39 -> 67 | C39: =DYN_cyclist!E39 -> 77 | D39: =DYN_cyclist!F39 -> 71 | E39: =DYN_cyclist!G39 -> 74 | F39: =DYN_cyclist!H39 -> 76 | G39: =DYN_cyclist!I39 -> 74 | H39: =DYN_cyclist!J39 -> 75 | I39: =DYN_cyclist!K39 -> 59 | J39: =DYN_cyclist!L39 -> 60 | K39: =DYN_cyclist!M39 -> 68 | L39: =DYN_cyclist!N39 -> 66 | M39: =DYN_cyclist!O39 -> 65 | N39: =DYN_cyclist!P39 -> 72 | O39: 65.7624617 | P39: 70.57118969 | Q39: 51.13407996 | R39: 66.67687684 | S39: 52.99917093 | T39: 68.10650253 | U39: 53.16150714 | V39: 74.89823202
A40: =DYN_cyclist!A40 -> 42 | B40: =DYN_cyclist!D40 -> 72 | C40: =DYN_cyclist!E40 -> 60 | D40: =DYN_cyclist!F40 -> 67 | E40: =DYN_cyclist!G40 -> 62 | F40: =DYN_cyclist!H40 -> 72 | G40: =DYN_cyclist!I40 -> 72 | H40: =DYN_cyclist!J40 -> 65 | I40: =DYN_cyclist!K40 -> 73 | J40: =DYN_cyclist!L40 -> 63 | K40: =DYN_cyclist!M40 -> 66 | L40: =DYN_cyclist!N40 -> 70 | M40: =DYN_cyclist!O40 -> 72 | N40: =DYN_cyclist!P40 -> 60 | O40: 60.79790844 | P40: 52.00224706 | Q40: 52.33470243 | R40: 47.01423411 | S40: 65.06511603 | T40: 43.85406363 | U40: 57.23542195 | V40: 71.62767628
A41: =DYN_cyclist!A41 -> 43 | B41: =DYN_cyclist!D41 -> 75 | C41: =DYN_cyclist!E41 -> 63 | D41: =DYN_cyclist!F41 -> 68 | E41: =DYN_cyclist!G41 -> 65 | F41: =DYN_cyclist!H41 -> 74 | G41: =DYN_cyclist!I41 -> 74 | H41: =DYN_cyclist!J41 -> 79 | I41: =DYN_cyclist!K41 -> 72 | J41: =DYN_cyclist!L41 -> 75 | K41: =DYN_cyclist!M41 -> 77 | L41: =DYN_cyclist!N41 -> 63 | M41: =DYN_cyclist!O41 -> 73 | N41: =DYN_cyclist!P41 -> 69 | O41: 68.05086185 | P41: 57.45017269 | Q41: 70.62985641 | R41: 53.56818509 | S41: 67.52331947 | T41: 49.03356155 | U41: 61.22038257 | V41: 73.81405112
A42: =DYN_cyclist!A42 -> 44 | B42: =DYN_cyclist!D42 -> 76 | C42: =DYN_cyclist!E42 -> 60 | D42: =DYN_cyclist!F42 -> 67 | E42: =DYN_cyclist!G42 -> 69 | F42: =DYN_cyclist!H42 -> 74 | G42: =DYN_cyclist!I42 -> 74 | H42: =DYN_cyclist!J42 -> 75 | I42: =DYN_cyclist!K42 -> 63 | J42: =DYN_cyclist!L42 -> 78 | K42: =DYN_cyclist!M42 -> 79 | L42: =DYN_cyclist!N42 -> 67 | M42: =DYN_cyclist!O42 -> 64 | N42: =DYN_cyclist!P42 -> 69 | O42: 68.08469613 | P42: 54.85417674 | Q42: 75.18389612 | R42: 55.77499735 | S42: 60.32634892 | T42: 45.16011472 | U42: 62.21441446 | V42: 75.70793653
A43: =DYN_cyclist!A43 -> 45 | B43: =DYN_cyclist!D43 -> 66 | C43: =DYN_cyclist!E43 -> 70 | D43: =DYN_cyclist!F43 -> 68 | E43: =DYN_cyclist!G43 -> 67 | F43: =DYN_cyclist!H43 -> 67 | G43: =DYN_cyclist!I43 -> 69 | H43: =DYN_cyclist!J43 -> 69 | I43: =DYN_cyclist!K43 -> 63 | J43: =DYN_cyclist!L43 -> 62 | K43: =DYN_cyclist!M43 -> 66 | L43: =DYN_cyclist!N43 -> 67 | M43: =DYN_cyclist!O43 -> 64 | N43: =DYN_cyclist!P43 -> 66 | O43: 60.37255702 | P43: 60.33673123 | Q43: 50.66411504 | R43: 55.469798 | S43: 54.11201988 | T43: 56.84781744 | U43: 50.47885247 | V43: 68.75296239
A44: =DYN_cyclist!A44 -> 46 | B44: =DYN_cyclist!D44 -> 69 | C44: =DYN_cyclist!E44 -> 60 | D44: =DYN_cyclist!F44 -> 62 | E44: =DYN_cyclist!G44 -> 70 | F44: =DYN_cyclist!H44 -> 69 | G44: =DYN_cyclist!I44 -> 69 | H44: =DYN_cyclist!J44 -> 66 | I44: =DYN_cyclist!K44 -> 61 | J44: =DYN_cyclist!L44 -> 62 | K44: =DYN_cyclist!M44 -> 68 | L44: =DYN_cyclist!N44 -> 68 | M44: =DYN_cyclist!O44 -> 65 | N44: =DYN_cyclist!P44 -> 70 | O44: 55.75326918 | P44: 50.26391513 | Q44: 52.09026998 | R44: 56.02229086 | S44: 52.76539926 | T44: 43.57582756 | U44: 52.74993813 | V44: 66.92111128
A45: =DYN_cyclist!A45 -> 47 | B45: =DYN_cyclist!D45 -> 71 | C45: =DYN_cyclist!E45 -> 73 | D45: =DYN_cyclist!F45 -> 77 | E45: =DYN_cyclist!G45 -> 62 | F45: =DYN_cyclist!H45 -> 74 | G45: =DYN_cyclist!I45 -> 75 | H45: =DYN_cyclist!J45 -> 70 | I45: =DYN_cyclist!K45 -> 62 | J45: =DYN_cyclist!L45 -> 61 | K45: =DYN_cyclist!M45 -> 70 | L45: =DYN_cyclist!N45 -> 71 | M45: =DYN_cyclist!O45 -> 65 | N45: =DYN_cyclist!P45 -> 62 | O45: 72.33764784 | P45: 68.20523271 | Q45: 53.5308978 | R45: 52.46077616 | S45: 57.9921448 | T45: 62.21264352 | U45: 57.95032889 | V45: 74.74816635
A46: =DYN_cyclist!A46 -> 48 | B46: =DYN_cyclist!D46 -> 70 | C46: =DYN_cyclist!E46 -> 64 | D46: =DYN_cyclist!F46 -> 76 | E46: =DYN_cyclist!G46 -> 65 | F46: =DYN_cyclist!H46 -> 75 | G46: =DYN_cyclist!I46 -> 70 | H46: =DYN_cyclist!J46 -> 71 | I46: =DYN_cyclist!K46 -> 65 | J46: =DYN_cyclist!L46 -> 75 | K46: =DYN_cyclist!M46 -> 79 | L46: =DYN_cyclist!N46 -> 79 | M46: =DYN_cyclist!O46 -> 66 | N46: =DYN_cyclist!P46 -> 65 | O46: 74.28415735 | P46: 59.98343073 | Q46: 70.40645026 | R46: 51.79618721 | S46: 61.79910631 | T46: 50.07438725 | U46: 56.22221711 | V46: 75.47300195
A47: =DYN_cyclist!A47 -> 49 | B47: =DYN_cyclist!D47 -> 72 | C47: =DYN_cyclist!E47 -> 67 | D47: =DYN_cyclist!F47 -> 78 | E47: =DYN_cyclist!G47 -> 61 | F47: =DYN_cyclist!H47 -> 78 | G47: =DYN_cyclist!I47 -> 74 | H47: =DYN_cyclist!J47 -> 75 | I47: =DYN_cyclist!K47 -> 65 | J47: =DYN_cyclist!L47 -> 65 | K47: =DYN_cyclist!M47 -> 76 | L47: =DYN_cyclist!N47 -> 75 | M47: =DYN_cyclist!O47 -> 71 | N47: =DYN_cyclist!P47 -> 61 | O47: 75.45001223 | P47: 64.19175999 | Q47: 60.50654922 | R47: 49.16633558 | S47: 62.28839172 | T47: 54.39513346 | U47: 59.04469404 | V47: 75.66070399
A48: =DYN_cyclist!A48 -> 50 | B48: =DYN_cyclist!D48 -> 68 | C48: =DYN_cyclist!E48 -> 51 | D48: =DYN_cyclist!F48 -> 57 | E48: =DYN_cyclist!G48 -> 71 | F48: =DYN_cyclist!H48 -> 65 | G48: =DYN_cyclist!I48 -> 66 | H48: =DYN_cyclist!J48 -> 65 | I48: =DYN_cyclist!K48 -> 56 | J48: =DYN_cyclist!L48 -> 65 | K48: =DYN_cyclist!M48 -> 62 | L48: =DYN_cyclist!N48 -> 73 | M48: =DYN_cyclist!O48 -> 65 | N48: =DYN_cyclist!P48 -> 71 | O48: 49.1558874 | P48: 41.51102452 | Q48: 50.52583449 | R48: 54.22902255 | S48: 46.5707157 | T48: 32.79298282 | U48: 50.47999557 | V48: 65.43480849
A49: =DYN_cyclist!A49 -> 51 | B49: =DYN_cyclist!D49 -> 69 | C49: =DYN_cyclist!E49 -> 60 | D49: =DYN_cyclist!F49 -> 64 | E49: =DYN_cyclist!G49 -> 66 | F49: =DYN_cyclist!H49 -> 63 | G49: =DYN_cyclist!I49 -> 67 | H49: =DYN_cyclist!J49 -> 63 | I49: =DYN_cyclist!K49 -> 66 | J49: =DYN_cyclist!L49 -> 65 | K49: =DYN_cyclist!M49 -> 64 | L49: =DYN_cyclist!N49 -> 67 | M49: =DYN_cyclist!O49 -> 67 | N49: =DYN_cyclist!P49 -> 65 | O49: 55.9238251 | P49: 49.66965804 | Q49: 51.93287222 | R49: 50.87459395 | S49: 56.07613206 | T49: 43.13630688 | U49: 52.61614313 | V49: 66.96243571
A50: =DYN_cyclist!A50 -> 52 | B50: =DYN_cyclist!D50 -> 69 | C50: =DYN_cyclist!E50 -> 61 | D50: =DYN_cyclist!F50 -> 66 | E50: =DYN_cyclist!G50 -> 69 | F50: =DYN_cyclist!H50 -> 67 | G50: =DYN_cyclist!I50 -> 70 | H50: =DYN_cyclist!J50 -> 64 | I50: =DYN_cyclist!K50 -> 55 | J50: =DYN_cyclist!L50 -> 70 | K50: =DYN_cyclist!M50 -> 71 | L50: =DYN_cyclist!N50 -> 68 | M50: =DYN_cyclist!O50 -> 68 | N50: =DYN_cyclist!P50 -> 70 | O50: 61.23290825 | P50: 52.55252611 | Q50: 60.28476251 | R50: 55.64891841 | S50: 49.24756528 | T50: 45.07948596 | U50: 52.90950491 | V50: 69.10173726
A51: =DYN_cyclist!A51 -> 53 | B51: =DYN_cyclist!D51 -> 68 | C51: =DYN_cyclist!E51 -> 65 | D51: =DYN_cyclist!F51 -> 69 | E51: =DYN_cyclist!G51 -> 63 | F51: =DYN_cyclist!H51 -> 67 | G51: =DYN_cyclist!I51 -> 67 | H51: =DYN_cyclist!J51 -> 71 | I51: =DYN_cyclist!K51 -> 68 | J51: =DYN_cyclist!L51 -> 66 | K51: =DYN_cyclist!M51 -> 71 | L51: =DYN_cyclist!N51 -> 66 | M51: =DYN_cyclist!O51 -> 70 | N51: =DYN_cyclist!P51 -> 65 | O51: 62.76449353 | P51: 56.31747678 | Q51: 56.91365452 | R51: 50.20004289 | S51: 59.76773935 | T51: 50.36897845 | U51: 52.28620207 | V51: 69.744193
A52: =DYN_cyclist!A52 -> 54 | B52: =DYN_cyclist!D52 -> 68 | C52: =DYN_cyclist!E52 -> 64 | D52: =DYN_cyclist!F52 -> 66 | E52: =DYN_cyclist!G52 -> 64 | F52: =DYN_cyclist!H52 -> 67 | G52: =DYN_cyclist!I52 -> 67 | H52: =DYN_cyclist!J52 -> 64 | I52: =DYN_cyclist!K52 -> 62 | J52: =DYN_cyclist!L52 -> 72 | K52: =DYN_cyclist!M52 -> 74 | L52: =DYN_cyclist!N52 -> 66 | M52: =DYN_cyclist!O52 -> 63 | N52: =DYN_cyclist!P52 -> 65 | O52: 61.80861021 | P52: 53.78584869 | Q52: 63.71025977 | R52: 50.60520432 | S52: 54.84926309 | T52: 48.81862377 | U52: 51.80547534 | V52: 70.00756185
A53: =DYN_cyclist!A53 -> 55 | B53: =DYN_cyclist!D53 -> 68 | C53: =DYN_cyclist!E53 -> 54 | D53: =DYN_cyclist!F53 -> 63 | E53: =DYN_cyclist!G53 -> 65 | F53: =DYN_cyclist!H53 -> 68 | G53: =DYN_cyclist!I53 -> 67 | H53: =DYN_cyclist!J53 -> 66 | I53: =DYN_cyclist!K53 -> 58 | J53: =DYN_cyclist!L53 -> 66 | K53: =DYN_cyclist!M53 -> 67 | L53: =DYN_cyclist!N53 -> 65 | M53: =DYN_cyclist!O53 -> 64 | N53: =DYN_cyclist!P53 -> 65 | O53: 55.66137147 | P53: 45.52541985 | Q53: 54.2338209 | R53: 48.30541242 | S53: 49.36376359 | T53: 36.45465272 | U53: 50.54395737 | V53: 65.81817505
A54: =DYN_cyclist!A54 -> 56 | B54: =DYN_cyclist!D54 -> 65 | C54: =DYN_cyclist!E54 -> 66 | D54: =DYN_cyclist!F54 -> 63 | E54: =DYN_cyclist!G54 -> 50 | F54: =DYN_cyclist!H54 -> 60 | G54: =DYN_cyclist!I54 -> 66 | H54: =DYN_cyclist!J54 -> 62 | I54: =DYN_cyclist!K54 -> 63 | J54: =DYN_cyclist!L54 -> 50 | K54: =DYN_cyclist!M54 -> 59 | L54: =DYN_cyclist!N54 -> 66 | M54: =DYN_cyclist!O54 -> 71 | N54: =DYN_cyclist!P54 -> 50 | O54: 51.64538951 | P54: 51.83100949 | Q54: 38.07566439 | R54: 37.30507864 | S54: 51.20469331 | T54: 50.3973388 | U54: 47.87455231 | V54: 64.43128706
A55: =DYN_cyclist!A55 -> 57 | B55: =DYN_cyclist!D55 -> 67 | C55: =DYN_cyclist!E55 -> 64 | D55: =DYN_cyclist!F55 -> 60 | E55: =DYN_cyclist!G55 -> 56 | F55: =DYN_cyclist!H55 -> 68 | G55: =DYN_cyclist!I55 -> 66 | H55: =DYN_cyclist!J55 -> 62 | I55: =DYN_cyclist!K55 -> 63 | J55: =DYN_cyclist!L55 -> 64 | K55: =DYN_cyclist!M55 -> 62 | L55: =DYN_cyclist!N55 -> 65 | M55: =DYN_cyclist!O55 -> 62 | N55: =DYN_cyclist!P55 -> 64 | O55: 52.13377999 | P55: 49.87687764 | Q55: 49.91063072 | R55: 44.53293449 | S55: 52.32564279 | T55: 47.81628819 | U55: 50.02561217 | V55: 64.69923357
A56: =DYN_cyclist!A56 -> 58 | B56: =DYN_cyclist!D56 -> 64 | C56: =DYN_cyclist!E56 -> 64 | D56: =DYN_cyclist!F56 -> 64 | E56: =DYN_cyclist!G56 -> 69 | F56: =DYN_cyclist!H56 -> 68 | G56: =DYN_cyclist!I56 -> 61 | H56: =DYN_cyclist!J56 -> 65 | I56: =DYN_cyclist!K56 -> 63 | J56: =DYN_cyclist!L56 -> 65 | K56: =DYN_cyclist!M56 -> 68 | L56: =DYN_cyclist!N56 -> 67 | M56: =DYN_cyclist!O56 -> 60 | N56: =DYN_cyclist!P56 -> 69 | O56: 55.5722428 | P56: 52.15521683 | Q56: 53.55341188 | R56: 55.03096287 | S56: 52.7691432 | T56: 48.0648213 | U56: 47.12311803 | V56: 65.93145798
A57: =DYN_cyclist!A57 -> 59 | B57: =DYN_cyclist!D57 -> 74 | C57: =DYN_cyclist!E57 -> 58 | D57: =DYN_cyclist!F57 -> 70 | E57: =DYN_cyclist!G57 -> 62 | F57: =DYN_cyclist!H57 -> 74 | G57: =DYN_cyclist!I57 -> 70 | H57: =DYN_cyclist!J57 -> 79 | I57: =DYN_cyclist!K57 -> 59 | J57: =DYN_cyclist!L57 -> 79 | K57: =DYN_cyclist!M57 -> 80 | L57: =DYN_cyclist!N57 -> 73 | M57: =DYN_cyclist!O57 -> 67 | N57: =DYN_cyclist!P57 -> 66 | O57: 69.87159609 | P57: 53.6032937 | Q57: 76.07330978 | R57: 48.19238294 | S57: 57.06391978 | T57: 42.90964084 | U57: 59.57758783 | V57: 76.5151007
A58: =DYN_cyclist!A58 -> 60 | B58: =DYN_cyclist!D58 -> 68 | C58: =DYN_cyclist!E58 -> 74 | D58: =DYN_cyclist!F58 -> 71 | E58: =DYN_cyclist!G58 -> 74 | F58: =DYN_cyclist!H58 -> 70 | G58: =DYN_cyclist!I58 -> 70 | H58: =DYN_cyclist!J58 -> 72 | I58: =DYN_cyclist!K58 -> 50 | J58: =DYN_cyclist!L58 -> 50 | K58: =DYN_cyclist!M58 -> 70 | L58: =DYN_cyclist!N58 -> 77 | M58: =DYN_cyclist!O58 -> 64 | N58: =DYN_cyclist!P58 -> 74 | O58: 63.79765053 | P58: 66.61879416 | Q58: 45.47639741 | R58: 65.79288827 | S58: 47.33642647 | T58: 63.28664308 | U58: 54.19357318 | V58: 72.94388571
A59: =DYN_cyclist!A59 -> 61 | B59: =DYN_cyclist!D59 -> 67 | C59: =DYN_cyclist!E59 -> 70 | D59: =DYN_cyclist!F59 -> 71 | E59: =DYN_cyclist!G59 -> 61 | F59: =DYN_cyclist!H59 -> 69 | G59: =DYN_cyclist!I59 -> 71 | H59: =DYN_cyclist!J59 -> 69 | I59: =DYN_cyclist!K59 -> 55 | J59: =DYN_cyclist!L59 -> 63 | K59: =DYN_cyclist!M59 -> 70 | L59: =DYN_cyclist!N59 -> 71 | M59: =DYN_cyclist!O59 -> 68 | N59: =DYN_cyclist!P59 -> 63 | O59: 65.06029222 | P59: 61.65102876 | Q59: 53.99421383 | R59: 50.287494 | S59: 49.78146485 | T59: 57.37118192 | U59: 51.88621997 | V59: 70.94634445
A60: =DYN_cyclist!A60 -> 62 | B60: =DYN_cyclist!D60 -> 72 | C60: =DYN_cyclist!E60 -> 52 | D60: =DYN_cyclist!F60 -> 60 | E60: =DYN_cyclist!G60 -> 56 | F60: =DYN_cyclist!H60 -> 68 | G60: =DYN_cyclist!I60 -> 64 | H60: =DYN_cyclist!J60 -> 69 | I60: =DYN_cyclist!K60 -> 61 | J60: =DYN_cyclist!L60 -> 74 | K60: =DYN_cyclist!M60 -> 76 | L60: =DYN_cyclist!N60 -> 72 | M60: =DYN_cyclist!O60 -> 68 | N60: =DYN_cyclist!P60 -> 60 | O60: 57.28204214 | P60: 42.41970921 | Q60: 67.18123284 | R60: 39.62382546 | S60: 54.98261545 | T60: 34.8590437 | U60: 55.35465397 | V60: 71.34241775
A61: =DYN_cyclist!A61 -> 63 | B61: =DYN_cyclist!D61 -> 74 | C61: =DYN_cyclist!E61 -> 51 | D61: =DYN_cyclist!F61 -> 63 | E61: =DYN_cyclist!G61 -> 55 | F61: =DYN_cyclist!H61 -> 67 | G61: =DYN_cyclist!I61 -> 69 | H61: =DYN_cyclist!J61 -> 65 | I61: =DYN_cyclist!K61 -> 52 | J61: =DYN_cyclist!L61 -> 54 | K61: =DYN_cyclist!M61 -> 54 | L61: =DYN_cyclist!N61 -> 73 | M61: =DYN_cyclist!O61 -> 53 | N61: =DYN_cyclist!P61 -> 55 | O61: 51.66858027 | P61: 42.66604773 | Q61: 40.06956629 | R61: 37.8945659 | S61: 45.46833616 | T61: 32.65217148 | U61: 57.8548798 | V61: 67.18208853
A62: =DYN_cyclist!A62 -> 64 | B62: =DYN_cyclist!D62 -> 68 | C62: =DYN_cyclist!E62 -> 62 | D62: =DYN_cyclist!F62 -> 67 | E62: =DYN_cyclist!G62 -> 55 | F62: =DYN_cyclist!H62 -> 70 | G62: =DYN_cyclist!I62 -> 70 | H62: =DYN_cyclist!J62 -> 65 | I62: =DYN_cyclist!K62 -> 60 | J62: =DYN_cyclist!L62 -> 67 | K62: =DYN_cyclist!M62 -> 69 | L62: =DYN_cyclist!N62 -> 66 | M62: =DYN_cyclist!O62 -> 68 | N62: =DYN_cyclist!P62 -> 55 | O62: 61.10877711 | P62: 52.42363663 | Q62: 56.43613553 | R62: 40.98498979 | S62: 52.45198377 | T62: 46.26844714 | U62: 51.58974065 | V62: 68.57670326
A63: =DYN_cyclist!A63 -> 65 | B63: =DYN_cyclist!D63 -> 69 | C63: =DYN_cyclist!E63 -> 68 | D63: =DYN_cyclist!F63 -> 70 | E63: =DYN_cyclist!G63 -> 74 | F63: =DYN_cyclist!H63 -> 71 | G63: =DYN_cyclist!I63 -> 69 | H63: =DYN_cyclist!J63 -> 62 | I63: =DYN_cyclist!K63 -> 58 | J63: =DYN_cyclist!L63 -> 63 | K63: =DYN_cyclist!M63 -> 60 | L63: =DYN_cyclist!N63 -> 61 | M63: =DYN_cyclist!O63 -> 66 | N63: =DYN_cyclist!P63 -> 74 | O63: 61.09830666 | P63: 59.48417236 | Q63: 48.81650247 | R63: 63.50776131 | S63: 50.10042138 | T63: 53.53091197 | U63: 53.78330315 | V63: 71.02038486
A64: =DYN_cyclist!A64 -> 66 | B64: =DYN_cyclist!D64 -> 72 | C64: =DYN_cyclist!E64 -> 56 | D64: =DYN_cyclist!F64 -> 62 | E64: =DYN_cyclist!G64 -> 73 | F64: =DYN_cyclist!H64 -> 66 | G64: =DYN_cyclist!I64 -> 69 | H64: =DYN_cyclist!J64 -> 62 | I64: =DYN_cyclist!K64 -> 53 | J64: =DYN_cyclist!L64 -> 59 | K64: =DYN_cyclist!M64 -> 68 | L64: =DYN_cyclist!N64 -> 74 | M64: =DYN_cyclist!O64 -> 63 | N64: =DYN_cyclist!P64 -> 72 | O64: 55.33181173 | P64: 47.40543488 | Q64: 50.2428944 | R64: 58.17345895 | S64: 47.91721379 | T64: 38.74551925 | U64: 56.27916442 | V64: 68.02485898
A65: =DYN_cyclist!A65 -> 67 | B65: =DYN_cyclist!D65 -> 68 | C65: =DYN_cyclist!E65 -> 63 | D65: =DYN_cyclist!F65 -> 63 | E65: =DYN_cyclist!G65 -> 66 | F65: =DYN_cyclist!H65 -> 67 | G65: =DYN_cyclist!I65 -> 65 | H65: =DYN_cyclist!J65 -> 63 | I65: =DYN_cyclist!K65 -> 60 | J65: =DYN_cyclist!L65 -> 64 | K65: =DYN_cyclist!M65 -> 66 | L65: =DYN_cyclist!N65 -> 69 | M65: =DYN_cyclist!O65 -> 66 | N65: =DYN_cyclist!P65 -> 68 | O65: 55.43154065 | P65: 51.22457387 | Q65: 52.2642077 | R65: 52.58814749 | S65: 51.39895618 | T65: 46.86841857 | U65: 51.67687627 | V65: 65.5642716
A66: =DYN_cyclist!A66 -> 68 | B66: =DYN_cyclist!D66 -> 73 | C66: =DYN_cyclist!E66 -> 66 | D66: =DYN_cyclist!F66 -> 79 | E66: =DYN_cyclist!G66 -> 65 | F66: =DYN_cyclist!H66 -> 76 | G66: =DYN_cyclist!I66 -> 78 | H66: =DYN_cyclist!J66 -> 70 | I66: =DYN_cyclist!K66 -> 65 | J66: =DYN_cyclist!L66 -> 70 | K66: =DYN_cyclist!M66 -> 77 | L66: =DYN_cyclist!N66 -> 83 | M66: =DYN_cyclist!O66 -> 67 | N66: =DYN_cyclist!P66 -> 68 | O66: 78.33367072 | P66: 64.64150463 | Q66: 65.41497049 | R66: 54.66412413 | S66: 63.63909664 | T66: 53.20164474 | U66: 61.01031144 | V66: 77.82239048
A67: =DYN_cyclist!A67 -> 69 | B67: =DYN_cyclist!D67 -> 69 | C67: =DYN_cyclist!E67 -> 59 | D67: =DYN_cyclist!F67 -> 65 | E67: =DYN_cyclist!G67 -> 70 | F67: =DYN_cyclist!H67 -> 62 | G67: =DYN_cyclist!I67 -> 66 | H67: =DYN_cyclist!J67 -> 59 | I67: =DYN_cyclist!K67 -> 58 | J67: =DYN_cyclist!L67 -> 59 | K67: =DYN_cyclist!M67 -> 62 | L67: =DYN_cyclist!N67 -> 66 | M67: =DYN_cyclist!O67 -> 63 | N67: =DYN_cyclist!P67 -> 69 | O67: =((($B67*5)^2+($C67*4)^2+($D67*12)^2+($E67*0)^2+($F67*3)^2+($G67*6)^2+($H67*0)^2+($I67*0)^2+($J67*5)^2+($K67*7)^2+($L67*1)^2+($M67*2)^2)+($N67*0)^2)/2106025*91.12 -> 54.95457249 | P67: =((($B67*2)^2+($C67*14)^2+($D67*10)^2+($E67*5)^2+($F67*2)^2+($G67*7)^2+($H67*5)^2+($I67*0)^2+($J67*0)^2+($K67*3)^2+($L67*0)^2+($M67*0)^2)+($N67*0)^2)/2958326.56*90.98 -> 49.10658537 | Q67: =((($B67*5)^2+($C67*2)^2+($D67*1)^2+($E67*0)^2+($F67*2)^2+($G67*1)^2+($H67*1)^2+($I67*0)^2+($J67*10.75)^2+($K67*9)^2+($L67*0)^2+($M67*0)^2)+($N67*1)^2)/1715576.56*IF(B67>77,92,IF(B67>75,92-0.5,IF(B67>73,92-0.88,92-1.65))) -> 46.28078528 | R67: =IF(AND(E67>75,C67<76),((($B67*2)^2+($C67*6)^2+($D67*0)^2+($E67*11)^2+($F67*0)^2+($G67*3.5)^2+($H67*0)^2+($I67*0)^2+($J67*0)^2+($K67*0)^2+($L67*0)^2+($M67*0)^2)+($N67*6)^2)/1482831.25*87.08+0.75,IF(AND(E67>75,C67<80),((($B67*2)^2+($C67*6)^2+($D67*0)^2+($E67*11)^2+($F67*0)^2+($G67*3.5)^2+($H67*0)^2+($I67*0)^2+($J67*0)^2+($K67*0)^2+($L67*0)^2+($M67*0)^2)+($N67*6)^2)/1482831.25*87.08+0.5,((($B67*2)^2+($C67*6)^2+($D67*0)^2+($E67*9)^2+($F67*0)^2+($G67*3.5)^2+($H67*0)^2+($I67*0)^2+($J67*0)^2+($K67*0)^2+($L67*0)^2+($M67*0)^2)+($N67*6)^2)/1212831.25*87.08))+IF(AND(E67>81.99,C67<74),4,IF(AND(E67>80.99,C67<74),2.5,IF(AND(E67>79.99,C67<74),1.5,0))) -> 54.99920979 | S67: =((($B67*7)^2+($C67*3)^2+($D67*4)^2+($E67*0)^2+($F67*2.5)^2+($G67*2)^2+($H67*0)^2+($I67*11)^2+($J67*1)^2+($K67*5)^2+($L67*3)^2+($M67*0)^2)+($N67*0)^2)/1680031.25*91.49-IF(I67<74,1,IF(I67<75,0.8,IF(I67<76,0.7,IF(I67<77,0.6,IF(I67<77,0.4,IF(I67<78,0.3,IF(I67<79,0.2,0))))))) -> 49.07328824 | T67: =IF(AND(C67>81,D67>75,B67>70,E67>72,F67>77,G67>77),((($B67*1)^2+($C67*14.5)^2+($D67*2)^2+($E67*0)^2+($F67*1)^2+($G67*3)^2+($H67*2.5)^2+($I67*0)^2+($J67*0)^2+($K67*3)^2+($L67*1)^2+($M67*1.25)^2)+($N67*0)^2)/1693126.56*81.55+1,IF(AND(C67>75,D67<74,(C67-D67)>7.9),((($B67*1)^2+($C67*14.5)^2+($D67*2)^2+($E67*0)^2+($F67*1)^2+($G67*3)^2+($H67*2.5)^2+($I67*0)^2+($J67*0)^2+($K67*3)^2+($L67*1)^2+($M67*1.25)^2)+($N67*0)^2)/1693126.56*81.55-1.25,((($B67*1)^2+($C67*14.5)^2+($D67*2)^2+($E67*0)^2+($F67*1)^2+($G67*3)^2+($H67*2.5)^2+($I67*0)^2+($J67*0)^2+($K67*3)^2+($L67*1)^2+($M67*1.25)^2)+($N67*0)^2)/1693126.56*81.55)) -> 41.59071756 | U67: =((($B67*13)^2+($C67*4)^2+($D67*3)^2+($E67*2)^2+($F67*2)^2+($G67*2)^2+($H67*0)^2+($I67*2)^2+($J67*0)^2+($K67*0)^2+($L67*3)^2+($M67*1)^2)+($N67*0)^2)/1569500*81.55 -> 52.3415906 | V67: =IF(AND(O67>79.99,P67>79.99),((LARGE(O67:U67,1)*9)^2+(LARGE(O67:U67,2)*4.5)^2+(LARGE(O67:U67,3)*2)^2)^(1/4)*2.81072986218,IF(AND(R67>79.99,P67>79.99),((LARGE(O67:U67,1)*9)^2+(LARGE(O67:U67,2)*4.5)^2+(LARGE(O67:U67,3)*2)^2)^(1/4)*2.80272986218,IF(AND(LARGE(O67:U67,1)=Q67,Q67>79,O67>77),((LARGE(O67:U67,1)*9)^2+(LARGE(O67:U67,2)*4.5)^2+(LARGE(O67:U67,3)*2)^2)^(1/4)*2.78572986218,IF(AND(LARGE(O67:U67,1)=O67,O67>79,T67<70),((LARGE(O67:U67,1)*9)^2+(LARGE(O67:U67,2)*4.5)^2+(LARGE(O67:U67,3)*2)^2)^(1/4)*2.78572986218,IF(AND(LARGE(O67:U67,1)=O67,O67<77,T67<70,R67<70,Q67<70,P67<70,S67<72),((LARGE(O67:U67,1)*9)^2+(LARGE(O67:U67,2)*4.5)^2+(LARGE(O67:U67,3)*2)^2)^(1/4)*2.76572986218,IF(AND(LARGE(O67:U67,1)=O67,O67<77,T67<70,S67<71,R67<70,P67<68),((LARGE(O67:U67,1)*9)^2+(LARGE(O67:U67,2)*4.5)^2+(LARGE(O67:U67,3)*2)^2)^(1/4)*2.75572986218,IF(AND(LARGE(O67:U67,1)=O67,O67<78,T67<70,R67<70,S67<71),((LARGE(O67:U67,1)*9)^2+(LARGE(O67:U67,2)*4.5)^2+(LARGE(O67:U67,3)*2)^2)^(1/4)*2.78072986218,IF(AND(LARGE(O67:U67,1)=O67,O67<79,T67<70,R67<70),((LARGE(O67:U67,1)*9)^2+(LARGE(O67:U67,2)*4.5)^2+(LARGE(O67:U67,3)*2)^2)^(1/4)*2.79572986218,IF(LARGE(O67:U67,1)=Q67,((LARGE(O67:U67,1)*9)^2+(LARGE(O67:U67,2)*3.5)^2+(LARGE(O67:U67,3)*2)^2)^(1/4)*2.80572986218,(((LARGE(O67:U67,1)*9)^2+(LARGE(O67:U67,2)*4.5)^2+(LARGE(O67:U67,3)*2)^2))^(1/4)*2.79572986218+IF(AND(LARGE(O67:U67,1)=O67,R67>70),1,0)))))))))+IF(AND(LARGE(O67:U67,1)=Q67,O67<78,J67>80),((B67+J67)^2/35000),IF(AND(LARGE(O67:U67,1)=Q67,O67<78,J67>79),((B67+J67)^2/45000),IF(AND(LARGE(O67:U67,1)=Q67,O67<78,J67>78),((B67+J67)^2/65000),0)))) -> 66.34452593
A68: =DYN_cyclist!A68 -> 70 | B68: =DYN_cyclist!D68 -> 62 | C68: =DYN_cyclist!E68 -> 64 | D68: =DYN_cyclist!F68 -> 64 | E68: =DYN_cyclist!G68 -> 63 | F68: =DYN_cyclist!H68 -> 58 | G68: =DYN_cyclist!I68 -> 59 | H68: =DYN_cyclist!J68 -> 55 | I68: =DYN_cyclist!K68 -> 62 | J68: =DYN_cyclist!L68 -> 63 | K68: =DYN_cyclist!M68 -> 60 | L68: =DYN_cyclist!N68 -> 63 | M68: =DYN_cyclist!O68 -> 55 | N68: =DYN_cyclist!P68 -> 57 | O68: 51.8653556 | P68: 49.79258127 | Q68: 46.87449864 | R68: 46.23329497 | S68: 49.12899808 | T68: 47.01450703 | U68: 44.13489118 | V68: 63.4927215
A69: =DYN_cyclist!A69 -> 71 | B69: =DYN_cyclist!D69 -> 65 | C69: =DYN_cyclist!E69 -> 67 | D69: =DYN_cyclist!F69 -> 67 | E69: =DYN_cyclist!G69 -> 59 | F69: =DYN_cyclist!H69 -> 70 | G69: =DYN_cyclist!I69 -> 67 | H69: =DYN_cyclist!J69 -> 66 | I69: =DYN_cyclist!K69 -> 52 | J69: =DYN_cyclist!L69 -> 59 | K69: =DYN_cyclist!M69 -> 57 | L69: =DYN_cyclist!N69 -> 55 | M69: =DYN_cyclist!O69 -> 63 | N69: =DYN_cyclist!P69 -> 61 | O69: 56.01676121 | P69: 55.67592023 | Q69: 43.48393111 | R69: 46.62704037 | S69: 42.94411684 | T69: 51.87342555 | U69: 47.78897547 | V69: 66.17283356
A70: =DYN_cyclist!A70 -> 72 | B70: =DYN_cyclist!D70 -> 68 | C70: =DYN_cyclist!E70 -> 65 | D70: =DYN_cyclist!F70 -> 75 | E70: =DYN_cyclist!G70 -> 64 | F70: =DYN_cyclist!H70 -> 70 | G70: =DYN_cyclist!I70 -> 66 | H70: =DYN_cyclist!J70 -> 67 | I70: =DYN_cyclist!K70 -> 62 | J70: =DYN_cyclist!L70 -> 64 | K70: =DYN_cyclist!M70 -> 66 | L70: =DYN_cyclist!N70 -> 72 | M70: =DYN_cyclist!O70 -> 70 | N70: =DYN_cyclist!P70 -> 63 | O70: 66.40276031 | P70: 58.30839027 | Q70: 52.49171838 | R70: 50.15996113 | S70: 54.95086683 | T70: 50.07435112 | U70: 52.99949828 | V70: 71.1538506
A71: =DYN_cyclist!A71 -> 73 | B71: =DYN_cyclist!D71 -> 75 | C71: =DYN_cyclist!E71 -> 68 | D71: =DYN_cyclist!F71 -> 76 | E71: =DYN_cyclist!G71 -> 68 | F71: =DYN_cyclist!H71 -> 71 | G71: =DYN_cyclist!I71 -> 70 | H71: =DYN_cyclist!J71 -> 74 | I71: =DYN_cyclist!K71 -> 62 | J71: =DYN_cyclist!L71 -> 62 | K71: =DYN_cyclist!M71 -> 67 | L71: =DYN_cyclist!N71 -> 73 | M71: =DYN_cyclist!O71 -> 64 | N71: =DYN_cyclist!P71 -> 68 | O71: 69.48124715 | P71: 63.33972394 | Q71: 53.5325231 | R71: 56.72094841 | S71: 58.35397285 | T71: 54.73609282 | U71: 62.469846 | V71: 73.09544936
A72: =DYN_cyclist!A72 -> 74 | B72: =DYN_cyclist!D72 -> 69 | C72: =DYN_cyclist!E72 -> 60 | D72: =DYN_cyclist!F72 -> 63 | E72: =DYN_cyclist!G72 -> 59 | F72: =DYN_cyclist!H72 -> 67 | G72: =DYN_cyclist!I72 -> 68 | H72: =DYN_cyclist!J72 -> 66 | I72: =DYN_cyclist!K72 -> 56 | J72: =DYN_cyclist!L72 -> 71 | K72: =DYN_cyclist!M72 -> 69 | L72: =DYN_cyclist!N72 -> 60 | M72: =DYN_cyclist!O72 -> 59 | N72: =DYN_cyclist!P72 -> 58 | O72: 57.62488464 | P72: 49.35535345 | Q72: 59.82085729 | R72: 43.67910147 | S72: 48.6469555 | T72: 43.48149576 | U72: 51.78936798 | V72: 67.81403874
A73: =DYN_cyclist!A73 -> 75 | B73: =DYN_cyclist!D73 -> 76 | C73: =DYN_cyclist!E73 -> 60 | D73: =DYN_cyclist!F73 -> 67 | E73: =DYN_cyclist!G73 -> 68 | F73: =DYN_cyclist!H73 -> 64 | G73: =DYN_cyclist!I73 -> 69 | H73: =DYN_cyclist!J73 -> 69 | I73: =DYN_cyclist!K73 -> 62 | J73: =DYN_cyclist!L73 -> 60 | K73: =DYN_cyclist!M73 -> 59 | L73: =DYN_cyclist!N73 -> 68 | M73: =DYN_cyclist!O73 -> 62 | N73: =DYN_cyclist!P73 -> 69 | O73: 57.85770083 | P73: 52.07341152 | Q73: 47.57158317 | R73: 54.34937552 | S73: 55.05057818 | T73: 43.3147203 | U73: 61.77457964 | V73: 69.82104553
A74: =DYN_cyclist!A74 -> 76 | B74: =DYN_cyclist!D74 -> 65 | C74: =DYN_cyclist!E74 -> 63 | D74: =DYN_cyclist!F74 -> 67 | E74: =DYN_cyclist!G74 -> 58 | F74: =DYN_cyclist!H74 -> 61 | G74: =DYN_cyclist!I74 -> 64 | H74: =DYN_cyclist!J74 -> 63 | I74: =DYN_cyclist!K74 -> 66 | J74: =DYN_cyclist!L74 -> 68 | K74: =DYN_cyclist!M74 -> 70 | L74: =DYN_cyclist!N74 -> 68 | M74: =DYN_cyclist!O74 -> 63 | N74: =DYN_cyclist!P74 -> 63 | O74: 59.39127636 | P74: 51.87369587 | Q74: 57.09722984 | R74: 44.89788851 | S74: 56.18161589 | T74: 47.05656741 | U74: 48.09672995 | V74: 67.95026032
A75: =DYN_cyclist!A75 -> 77 | B75: =DYN_cyclist!D75 -> 65 | C75: =DYN_cyclist!E75 -> 65 | D75: =DYN_cyclist!F75 -> 66 | E75: =DYN_cyclist!G75 -> 60 | F75: =DYN_cyclist!H75 -> 63 | G75: =DYN_cyclist!I75 -> 68 | H75: =DYN_cyclist!J75 -> 66 | I75: =DYN_cyclist!K75 -> 59 | J75: =DYN_cyclist!L75 -> 67 | K75: =DYN_cyclist!M75 -> 68 | L75: =DYN_cyclist!N75 -> 65 | M75: =DYN_cyclist!O75 -> 63 | N75: =DYN_cyclist!P75 -> 59 | O75: 58.91041423 | P75: 54.2365467 | Q75: 55.21990132 | R75: 46.13512787 | S75: 50.0462908 | T75: 49.84186008 | U75: 48.08924782 | V75: 67.49167654
A76: =DYN_cyclist!A76 -> 78 | B76: =DYN_cyclist!D76 -> 68 | C76: =DYN_cyclist!E76 -> 69 | D76: =DYN_cyclist!F76 -> 69 | E76: =DYN_cyclist!G76 -> 71 | F76: =DYN_cyclist!H76 -> 67 | G76: =DYN_cyclist!I76 -> 70 | H76: =DYN_cyclist!J76 -> 71 | I76: =DYN_cyclist!K76 -> 60 | J76: =DYN_cyclist!L76 -> 63 | K76: =DYN_cyclist!M76 -> 68 | L76: =DYN_cyclist!N76 -> 70 | M76: =DYN_cyclist!O76 -> 64 | N76: =DYN_cyclist!P76 -> 69 | O76: 62.35744377 | P76: 60.87649246 | Q76: 52.94229289 | R76: 59.56684305 | S76: 53.05031996 | T76: 55.7600155 | U76: 53.03981864 | V76: 69.73640958
A77: =DYN_cyclist!A77 -> 80 | B77: =DYN_cyclist!D77 -> 66 | C77: =DYN_cyclist!E77 -> 72 | D77: =DYN_cyclist!F77 -> 74 | E77: =DYN_cyclist!G77 -> 63 | F77: =DYN_cyclist!H77 -> 72 | G77: =DYN_cyclist!I77 -> 74 | H77: =DYN_cyclist!J77 -> 72 | I77: =DYN_cyclist!K77 -> 65 | J77: =DYN_cyclist!L77 -> 56 | K77: =DYN_cyclist!M77 -> 64 | L77: =DYN_cyclist!N77 -> 62 | M77: =DYN_cyclist!O77 -> 75 | N77: =DYN_cyclist!P77 -> 63 | O77: 66.1814097 | P77: 65.68526034 | Q77: 45.53673778 | R77: 52.80826509 | S77: 56.36408875 | T77: 60.33001729 | U77: 51.12938194 | V77: 71.89838579
A78: =DYN_cyclist!A78 -> 82 | B78: =DYN_cyclist!D78 -> 65 | C78: =DYN_cyclist!E78 -> 62 | D78: =DYN_cyclist!F78 -> 66 | E78: =DYN_cyclist!G78 -> 55 | F78: =DYN_cyclist!H78 -> 63 | G78: =DYN_cyclist!I78 -> 67 | H78: =DYN_cyclist!J78 -> 66 | I78: =DYN_cyclist!K78 -> 53 | J78: =DYN_cyclist!L78 -> 54 | K78: =DYN_cyclist!M78 -> 58 | L78: =DYN_cyclist!N78 -> 67 | M78: =DYN_cyclist!O78 -> 69 | N78: =DYN_cyclist!P78 -> 55 | O78: 54.21216531 | P78: 50.94569775 | Q78: 40.16023105 | R78: 40.50890896 | S78: 43.7304397 | T78: 45.45116878 | U78: 47.64988063 | V78: 64.71127328
A79: =DYN_cyclist!A79 -> 83 | B79: =DYN_cyclist!D79 -> 64 | C79: =DYN_cyclist!E79 -> 52 | D79: =DYN_cyclist!F79 -> 63 | E79: =DYN_cyclist!G79 -> 67 | F79: =DYN_cyclist!H79 -> 65 | G79: =DYN_cyclist!I79 -> 63 | H79: =DYN_cyclist!J79 -> 62 | I79: =DYN_cyclist!K79 -> 61 | J79: =DYN_cyclist!L79 -> 61 | K79: =DYN_cyclist!M79 -> 66 | L79: =DYN_cyclist!N79 -> 66 | M79: =DYN_cyclist!O79 -> 63 | N79: =DYN_cyclist!P79 -> 66 | O79: 52.99304956 | P79: 43.12240446 | Q79: 48.9304948 | R79: 49.02239665 | S79: 49.80281212 | T79: 33.82268534 | U79: 45.72401204 | V79: 64.03197714
A80: =DYN_cyclist!A80 -> 84 | B80: =DYN_cyclist!D80 -> 73 | C80: =DYN_cyclist!E80 -> 60 | D80: =DYN_cyclist!F80 -> 67 | E80: =DYN_cyclist!G80 -> 76 | F80: =DYN_cyclist!H80 -> 74 | G80: =DYN_cyclist!I80 -> 76 | H80: =DYN_cyclist!J80 -> 71 | I80: =DYN_cyclist!K80 -> 60 | J80: =DYN_cyclist!L80 -> 63 | K80: =DYN_cyclist!M80 -> 67 | L80: =DYN_cyclist!N80 -> 73 | M80: =DYN_cyclist!O80 -> 60 | N80: =DYN_cyclist!P80 -> 76 | O80: 62.01693765 | P80: 55.09771666 | Q80: 53.34322781 | R80: 67.02195665 | S80: 54.6787436 | T80: 44.33648757 | U80: 58.85291255 | V80: 72.63362033
A81: =DYN_cyclist!A81 -> 86 | B81: =DYN_cyclist!D81 -> 72 | C81: =DYN_cyclist!E81 -> 60 | D81: =DYN_cyclist!F81 -> 65 | E81: =DYN_cyclist!G81 -> 62 | F81: =DYN_cyclist!H81 -> 73 | G81: =DYN_cyclist!I81 -> 68 | H81: =DYN_cyclist!J81 -> 74 | I81: =DYN_cyclist!K81 -> 60 | J81: =DYN_cyclist!L81 -> 76 | K81: =DYN_cyclist!M81 -> 77 | L81: =DYN_cyclist!N81 -> 62 | M81: =DYN_cyclist!O81 -> 59 | N81: =DYN_cyclist!P81 -> 66 | O81: 63.28628562 | P81: 51.76150574 | Q81: 70.13517208 | R81: 48.47577336 | S81: 55.09187045 | T81: 44.44687348 | U81: 56.08405753 | V81: 73.07250461
A82: =DYN_cyclist!A82 -> 87 | B82: =DYN_cyclist!D82 -> 70 | C82: =DYN_cyclist!E82 -> 76 | D82: =DYN_cyclist!F82 -> 76 | E82: =DYN_cyclist!G82 -> 67 | F82: =DYN_cyclist!H82 -> 71 | G82: =DYN_cyclist!I82 -> 74 | H82: =DYN_cyclist!J82 -> 75 | I82: =DYN_cyclist!K82 -> 56 | J82: =DYN_cyclist!L82 -> 58 | K82: =DYN_cyclist!M82 -> 71 | L82: =DYN_cyclist!N82 -> 73 | M82: =DYN_cyclist!O82 -> 71 | N82: =DYN_cyclist!P82 -> 67 | O82: 71.20631951 | P82: 71.22606266 | Q82: 51.83279319 | R82: 58.86292623 | S82: 53.1695815 | T82: 66.9721488 | U82: 57.05486365 | V82: 75.48824884
A83: =DYN_cyclist!A83 -> 88 | B83: =DYN_cyclist!D83 -> 71 | C83: =DYN_cyclist!E83 -> 50 | D83: =DYN_cyclist!F83 -> 61 | E83: =DYN_cyclist!G83 -> 64 | F83: =DYN_cyclist!H83 -> 69 | G83: =DYN_cyclist!I83 -> 61 | H83: =DYN_cyclist!J83 -> 73 | I83: =DYN_cyclist!K83 -> 73 | J83: =DYN_cyclist!L83 -> 75 | K83: =DYN_cyclist!M83 -> 71 | L83: =DYN_cyclist!N83 -> 67 | M83: =DYN_cyclist!O83 -> 74 | N83: =DYN_cyclist!P83 -> 64 | O83: 55.92957953 | P83: 41.96768878 | Q83: 64.79294008 | R83: 45.59076624 | S83: 63.83390409 | T83: 32.53666801 | U83: 54.1894684 | V83: 70.66933216
A84: =DYN_cyclist!A84 -> 89 | B84: =DYN_cyclist!D84 -> 68 | C84: =DYN_cyclist!E84 -> 68 | D84: =DYN_cyclist!F84 -> 68 | E84: =DYN_cyclist!G84 -> 68 | F84: =DYN_cyclist!H84 -> 69 | G84: =DYN_cyclist!I84 -> 69 | H84: =DYN_cyclist!J84 -> 68 | I84: =DYN_cyclist!K84 -> 55 | J84: =DYN_cyclist!L84 -> 62 | K84: =DYN_cyclist!M84 -> 68 | L84: =DYN_cyclist!N84 -> 64 | M84: =DYN_cyclist!O84 -> 64 | N84: =DYN_cyclist!P84 -> 66 | O84: 61.1284633 | P84: 58.81213872 | Q84: 52.15215078 | R84: 55.61849361 | S84: 48.73637442 | T84: 54.13484501 | U84: 52.30734947 | V84: 68.89689153
A85: =DYN_cyclist!A85 -> 90 | B85: =DYN_cyclist!D85 -> 65 | C85: =DYN_cyclist!E85 -> 68 | D85: =DYN_cyclist!F85 -> 66 | E85: =DYN_cyclist!G85 -> 66 | F85: =DYN_cyclist!H85 -> 66 | G85: =DYN_cyclist!I85 -> 68 | H85: =DYN_cyclist!J85 -> 69 | I85: =DYN_cyclist!K85 -> 60 | J85: =DYN_cyclist!L85 -> 62 | K85: =DYN_cyclist!M85 -> 64 | L85: =DYN_cyclist!N85 -> 62 | M85: =DYN_cyclist!O85 -> 63 | N85: =DYN_cyclist!P85 -> 64 | O85: 57.50378215 | P85: 57.43571837 | Q85: 49.26134313 | R85: 53.15275641 | S85: 50.21700089 | T85: 53.77576344 | U85: 48.50507748 | V85: 67.08800852
A86: =DYN_cyclist!A86 -> 91 | B86: =DYN_cyclist!D86 -> 64 | C86: =DYN_cyclist!E86 -> 68 | D86: =DYN_cyclist!F86 -> 70 | E86: =DYN_cyclist!G86 -> 60 | F86: =DYN_cyclist!H86 -> 64 | G86: =DYN_cyclist!I86 -> 66 | H86: =DYN_cyclist!J86 -> 67 | I86: =DYN_cyclist!K86 -> 60 | J86: =DYN_cyclist!L86 -> 62 | K86: =DYN_cyclist!M86 -> 69 | L86: =DYN_cyclist!N86 -> 64 | M86: =DYN_cyclist!O86 -> 71 | N86: =DYN_cyclist!P86 -> 60 | O86: 61.8411465 | P86: 58.05070357 | Q86: 51.84759192 | R86: 47.20127035 | S86: 51.22876344 | T86: 54.04486314 | U86: 47.53338805 | V86: 69.10201417
A87: =DYN_cyclist!A87 -> 92 | B87: =DYN_cyclist!D87 -> 66 | C87: =DYN_cyclist!E87 -> 76 | D87: =DYN_cyclist!F87 -> 71 | E87: =DYN_cyclist!G87 -> 68 | F87: =DYN_cyclist!H87 -> 66 | G87: =DYN_cyclist!I87 -> 69 | H87: =DYN_cyclist!J87 -> 65 | I87: =DYN_cyclist!K87 -> 50 | J87: =DYN_cyclist!L87 -> 53 | K87: =DYN_cyclist!M87 -> 60 | L87: =DYN_cyclist!N87 -> 67 | M87: =DYN_cyclist!O87 -> 62 | N87: =DYN_cyclist!P87 -> 67 | O87: 60.75935813 | P87: 66.36556677 | Q87: 41.29735329 | R87: 58.86294418 | S87: 44.09409207 | T87: 65.28475773 | U87: 51.08412545 | V87: 72.72290432
A88: =DYN_cyclist!A88 -> 94 | B88: =DYN_cyclist!D88 -> 64 | C88: =DYN_cyclist!E88 -> 69 | D88: =DYN_cyclist!F88 -> 75 | E88: =DYN_cyclist!G88 -> 62 | F88: =DYN_cyclist!H88 -> 67 | G88: =DYN_cyclist!I88 -> 69 | H88: =DYN_cyclist!J88 -> 65 | I88: =DYN_cyclist!K88 -> 51 | J88: =DYN_cyclist!L88 -> 69 | K88: =DYN_cyclist!M88 -> 80 | L88: =DYN_cyclist!N88 -> 72 | M88: =DYN_cyclist!O88 -> 71 | N88: =DYN_cyclist!P88 -> 62 | O88: 71.75056684 | P88: 62.20309153 | Q88: 64.59028704 | R88: 49.96131141 | S88: 48.3814216 | T88: 56.44981829 | U88: 48.50403829 | V88: 74.16064463
A89: =DYN_cyclist!A89 -> 95 | B89: =DYN_cyclist!D89 -> 72 | C89: =DYN_cyclist!E89 -> 61 | D89: =DYN_cyclist!F89 -> 67 | E89: =DYN_cyclist!G89 -> 71 | F89: =DYN_cyclist!H89 -> 70 | G89: =DYN_cyclist!I89 -> 67 | H89: =DYN_cyclist!J89 -> 64 | I89: =DYN_cyclist!K89 -> 72 | J89: =DYN_cyclist!L89 -> 64 | K89: =DYN_cyclist!M89 -> 67 | L89: =DYN_cyclist!N89 -> 69 | M89: =DYN_cyclist!O89 -> 61 | N89: =DYN_cyclist!P89 -> 73 | O89: 59.84868814 | P89: 52.50728717 | Q89: 53.68830873 | R89: 58.14617535 | S89: 64.04077383 | T89: 44.66647126 | U89: 57.21016977 | V89: 71.09771401
A90: =DYN_cyclist!A90 -> 97 | B90: =DYN_cyclist!D90 -> 68 | C90: =DYN_cyclist!E90 -> 62 | D90: =DYN_cyclist!F90 -> 65 | E90: =DYN_cyclist!G90 -> 70 | F90: =DYN_cyclist!H90 -> 61 | G90: =DYN_cyclist!I90 -> 66 | H90: =DYN_cyclist!J90 -> 65 | I90: =DYN_cyclist!K90 -> 50 | J90: =DYN_cyclist!L90 -> 57 | K90: =DYN_cyclist!M90 -> 61 | L90: =DYN_cyclist!N90 -> 54 | M90: =DYN_cyclist!O90 -> 65 | N90: =DYN_cyclist!P90 -> 68 | O90: 54.4800705 | P90: 51.80065542 | Q90: 44.24627623 | R90: 55.54402016 | S90: 42.26472092 | T90: 45.37476653 | U90: 50.57513291 | V90: 66.53208269
A91: =DYN_cyclist!A91 -> 98 | B91: =DYN_cyclist!D91 -> 78 | C91: =DYN_cyclist!E91 -> 61 | D91: =DYN_cyclist!F91 -> 65 | E91: =DYN_cyclist!G91 -> 68 | F91: =DYN_cyclist!H91 -> 66 | G91: =DYN_cyclist!I91 -> 71 | H91: =DYN_cyclist!J91 -> 61 | I91: =DYN_cyclist!K91 -> 57 | J91: =DYN_cyclist!L91 -> 71 | K91: =DYN_cyclist!M91 -> 78 | L91: =DYN_cyclist!N91 -> 68 | M91: =DYN_cyclist!O91 -> 65 | N91: =DYN_cyclist!P91 -> 70 | O91: 64.31027016 | P91: 52.40355435 | Q91: 68.5156014 | R91: 55.35614028 | S91: 55.55283805 | T91: 45.48189826 | U91: 64.46466448 | V91: 72.57576613
A92: =DYN_cyclist!A92 -> 99 | B92: =DYN_cyclist!D92 -> 71 | C92: =DYN_cyclist!E92 -> 65 | D92: =DYN_cyclist!F92 -> 72 | E92: =DYN_cyclist!G92 -> 60 | F92: =DYN_cyclist!H92 -> 74 | G92: =DYN_cyclist!I92 -> 71 | H92: =DYN_cyclist!J92 -> 70 | I92: =DYN_cyclist!K92 -> 66 | J92: =DYN_cyclist!L92 -> 65 | K92: =DYN_cyclist!M92 -> 68 | L92: =DYN_cyclist!N92 -> 64 | M92: =DYN_cyclist!O92 -> 61 | N92: =DYN_cyclist!P92 -> 60 | O92: 65.85405655 | P92: 58.11537897 | Q92: 55.10548767 | R92: 47.04383322 | S92: 59.23698469 | T92: 50.43292094 | U92: 56.1503575 | V92: 71.06285697
A93: =DYN_cyclist!A93 -> 100 | B93: =DYN_cyclist!D93 -> 69 | C93: =DYN_cyclist!E93 -> 61 | D93: =DYN_cyclist!F93 -> 59 | E93: =DYN_cyclist!G93 -> 68 | F93: =DYN_cyclist!H93 -> 59 | G93: =DYN_cyclist!I93 -> 61 | H93: =DYN_cyclist!J93 -> 62 | I93: =DYN_cyclist!K93 -> 60 | J93: =DYN_cyclist!L93 -> 52 | K93: =DYN_cyclist!M93 -> 57 | L93: =DYN_cyclist!N93 -> 69 | M93: =DYN_cyclist!O93 -> 57 | N93: =DYN_cyclist!P93 -> 68 | O93: 47.14594944 | P93: 47.1658007 | Q93: 38.92713103 | R93: 53.10179711 | S93: 49.18199867 | T93: 43.40172194 | U93: 52.1294411 | V93: 65.05073828
A94: =DYN_cyclist!A94 -> 101 | B94: =DYN_cyclist!D94 -> 73 | C94: =DYN_cyclist!E94 -> 51 | D94: =DYN_cyclist!F94 -> 53 | E94: =DYN_cyclist!G94 -> 77 | F94: =DYN_cyclist!H94 -> 66 | G94: =DYN_cyclist!I94 -> 67 | H94: =DYN_cyclist!J94 -> 62 | I94: =DYN_cyclist!K94 -> 64 | J94: =DYN_cyclist!L94 -> 55 | K94: =DYN_cyclist!M94 -> 69 | L94: =DYN_cyclist!N94 -> 67 | M94: =DYN_cyclist!O94 -> 59 | N94: =DYN_cyclist!P94 -> 77 | O94: 47.91626341 | P94: 41.1047351 | Q94: 48.10068644 | R94: 65.39474658 | S94: 55.2392728 | T94: 32.99249566 | U94: 56.47240076 | V94: 71.30605687
A95: =DYN_cyclist!A95 -> 102 | B95: =DYN_cyclist!D95 -> 65 | C95: =DYN_cyclist!E95 -> 72 | D95: =DYN_cyclist!F95 -> 71 | E95: =DYN_cyclist!G95 -> 72 | F95: =DYN_cyclist!H95 -> 71 | G95: =DYN_cyclist!I95 -> 70 | H95: =DYN_cyclist!J95 -> 72 | I95: =DYN_cyclist!K95 -> 53 | J95: =DYN_cyclist!L95 -> 66 | K95: =DYN_cyclist!M95 -> 72 | L95: =DYN_cyclist!N95 -> 74 | M95: =DYN_cyclist!O95 -> 66 | N95: =DYN_cyclist!P95 -> 74 | O95: 65.85388348 | P95: 64.68105412 | Q95: 57.42644886 | R95: 63.22535812 | S95: 48.47841009 | T95: 60.43806116 | U95: 50.28166722 | V95: 71.71178041
A96: =DYN_cyclist!A96 -> 103 | B96: =DYN_cyclist!D96 -> 68 | C96: =DYN_cyclist!E96 -> 64 | D96: =DYN_cyclist!F96 -> 68 | E96: =DYN_cyclist!G96 -> 71 | F96: =DYN_cyclist!H96 -> 70 | G96: =DYN_cyclist!I96 -> 68 | H96: =DYN_cyclist!J96 -> 67 | I96: =DYN_cyclist!K96 -> 58 | J96: =DYN_cyclist!L96 -> 65 | K96: =DYN_cyclist!M96 -> 65 | L96: =DYN_cyclist!N96 -> 65 | M96: =DYN_cyclist!O96 -> 66 | N96: =DYN_cyclist!P96 -> 70 | O96: 60.22047583 | P96: 55.54650794 | Q96: 52.70124743 | R96: 57.96450608 | S96: 50.26960666 | T96: 48.54740178 | U96: 52.09977238 | V96: 68.40129282
A97: =DYN_cyclist!A97 -> 104 | B97: =DYN_cyclist!D97 -> 69 | C97: =DYN_cyclist!E97 -> 63 | D97: =DYN_cyclist!F97 -> 73 | E97: =DYN_cyclist!G97 -> 68 | F97: =DYN_cyclist!H97 -> 73 | G97: =DYN_cyclist!I97 -> 72 | H97: =DYN_cyclist!J97 -> 69 | I97: =DYN_cyclist!K97 -> 63 | J97: =DYN_cyclist!L97 -> 61 | K97: =DYN_cyclist!M97 -> 66 | L97: =DYN_cyclist!N97 -> 70 | M97: =DYN_cyclist!O97 -> 68 | N97: =DYN_cyclist!P97 -> 68 | O97: 65.52060284 | P97: 57.78741966 | Q97: 50.50310975 | R97: 55.02958074 | S97: 55.92348819 | T97: 47.85849306 | U97: 54.10108576 | V97: 70.73518406
A98: =DYN_cyclist!A98 -> 106 | B98: =DYN_cyclist!D98 -> 71 | C98: =DYN_cyclist!E98 -> 75 | D98: =DYN_cyclist!F98 -> 70 | E98: =DYN_cyclist!G98 -> 77 | F98: =DYN_cyclist!H98 -> 78 | G98: =DYN_cyclist!I98 -> 77 | H98: =DYN_cyclist!J98 -> 76 | I98: =DYN_cyclist!K98 -> 53 | J98: =DYN_cyclist!L98 -> 62 | K98: =DYN_cyclist!M98 -> 67 | L98: =DYN_cyclist!N98 -> 60 | M98: =DYN_cyclist!O98 -> 68 | N98: =DYN_cyclist!P98 -> 77 | O98: 66.1101933 | P98: 69.52057587 | Q98: 52.83441952 | R98: 72.7561049 | S98: 49.43472148 | T98: 65.21914451 | U98: 57.46986196 | V98: 75.9310356
A99: =DYN_cyclist!A99 -> 107 | B99: =DYN_cyclist!D99 -> 74 | C99: =DYN_cyclist!E99 -> 55 | D99: =DYN_cyclist!F99 -> 63 | E99: =DYN_cyclist!G99 -> 60 | F99: =DYN_cyclist!H99 -> 72 | G99: =DYN_cyclist!I99 -> 69 | H99: =DYN_cyclist!J99 -> 70 | I99: =DYN_cyclist!K99 -> 50 | J99: =DYN_cyclist!L99 -> 68 | K99: =DYN_cyclist!M99 -> 72 | L99: =DYN_cyclist!N99 -> 72 | M99: =DYN_cyclist!O99 -> 68 | N99: =DYN_cyclist!P99 -> 59 | O99: 59.19631822 | P99: 46.89611998 | Q99: 60.60826888 | R99: 43.51319207 | S99: 47.67814615 | T99: 38.29535102 | U99: 58.4554245 | V99: 68.44451923
A100: =DYN_cyclist!A100 -> 108 | B100: =DYN_cyclist!D100 -> 67 | C100: =DYN_cyclist!E100 -> 56 | D100: =DYN_cyclist!F100 -> 64 | E100: =DYN_cyclist!G100 -> 69 | F100: =DYN_cyclist!H100 -> 67 | G100: =DYN_cyclist!I100 -> 64 | H100: =DYN_cyclist!J100 -> 65 | I100: =DYN_cyclist!K100 -> 62 | J100: =DYN_cyclist!L100 -> 65 | K100: =DYN_cyclist!M100 -> 64 | L100: =DYN_cyclist!N100 -> 59 | M100: =DYN_cyclist!O100 -> 68 | N100: =DYN_cyclist!P100 -> 69 | O100: 54.87851026 | P100: 46.81926605 | Q100: 51.60756354 | R100: 52.99228578 | S100: 51.34651378 | T100: 38.3177479 | U100: 49.38173348 | V100: 65.33731701
A101: =DYN_cyclist!A101 -> 109 | B101: =DYN_cyclist!D101 -> 69 | C101: =DYN_cyclist!E101 -> 79 | D101: =DYN_cyclist!F101 -> 77 | E101: =DYN_cyclist!G101 -> 76 | F101: =DYN_cyclist!H101 -> 72 | G101: =DYN_cyclist!I101 -> 74 | H101: =DYN_cyclist!J101 -> 74 | I101: =DYN_cyclist!K101 -> 62 | J101: =DYN_cyclist!L101 -> 57 | K101: =DYN_cyclist!M101 -> 62 | L101: =DYN_cyclist!N101 -> 68 | M101: =DYN_cyclist!O101 -> 62 | N101: =DYN_cyclist!P101 -> 76 | O101: 69.48704484 | P101: 75.04363321 | Q101: 46.03976614 | R101: 72.00610134 | S101: 55.89237944 | T101: 71.02298252 | U101: 56.34489283 | V101: 77.19695488
A102: =DYN_cyclist!A102 -> 110 | B102: =DYN_cyclist!D102 -> 69 | C102: =DYN_cyclist!E102 -> 69 | D102: =DYN_cyclist!F102 -> 69 | E102: =DYN_cyclist!G102 -> 61 | F102: =DYN_cyclist!H102 -> 66 | G102: =DYN_cyclist!I102 -> 64 | H102: =DYN_cyclist!J102 -> 62 | I102: =DYN_cyclist!K102 -> 55 | J102: =DYN_cyclist!L102 -> 62 | K102: =DYN_cyclist!M102 -> 64 | L102: =DYN_cyclist!N102 -> 63 | M102: =DYN_cyclist!O102 -> 63 | N102: =DYN_cyclist!P102 -> 60 | O102: 59.88468574 | P102: 57.58407505 | Q102: 49.91501504 | R102: 48.22138971 | S102: 48.22467982 | T102: 54.76806557 | U102: 53.2122713 | V102: 68.19465747
A103: =DYN_cyclist!A103 -> 111 | B103: =DYN_cyclist!D103 -> 74 | C103: =DYN_cyclist!E103 -> 56 | D103: =DYN_cyclist!F103 -> 64 | E103: =DYN_cyclist!G103 -> 50 | F103: =DYN_cyclist!H103 -> 74 | G103: =DYN_cyclist!I103 -> 73 | H103: =DYN_cyclist!J103 -> 78 | I103: =DYN_cyclist!K103 -> 62 | J103: =DYN_cyclist!L103 -> 80 | K103: =DYN_cyclist!M103 -> 78 | L103: =DYN_cyclist!N103 -> 66 | M103: =DYN_cyclist!O103 -> 60 | N103: =DYN_cyclist!P103 -> 73 | O103: 64.67885614 | P103: 49.16132727 | Q103: 75.66473209 | R103: 42.67903197 | S103: 57.83857516 | T103: 40.33379209 | U103: 58.39613903 | V103: 76.18113378
A104: =DYN_cyclist!A104 -> 112 | B104: =DYN_cyclist!D104 -> 63 | C104: =DYN_cyclist!E104 -> 52 | D104: =DYN_cyclist!F104 -> 55 | E104: =DYN_cyclist!G104 -> 70 | F104: =DYN_cyclist!H104 -> 52 | G104: =DYN_cyclist!I104 -> 66 | H104: =DYN_cyclist!J104 -> 57 | I104: =DYN_cyclist!K104 -> 52 | J104: =DYN_cyclist!L104 -> 52 | K104: =DYN_cyclist!M104 -> 53 | L104: =DYN_cyclist!N104 -> 51 | M104: =DYN_cyclist!O104 -> 57 | N104: =DYN_cyclist!P104 -> 71 | O104: 42.40443417 | P104: 40.030041 | Q104: 35.6295427 | R104: 53.48712408 | S104: 38.48498807 | T104: 32.74075956 | U104: 42.94762294 | V104: 64.09591155
A105: =DYN_cyclist!A105 -> 113 | B105: =DYN_cyclist!D105 -> 71 | C105: =DYN_cyclist!E105 -> 61 | D105: =DYN_cyclist!F105 -> 63 | E105: =DYN_cyclist!G105 -> 60 | F105: =DYN_cyclist!H105 -> 68 | G105: =DYN_cyclist!I105 -> 68 | H105: =DYN_cyclist!J105 -> 73 | I105: =DYN_cyclist!K105 -> 68 | J105: =DYN_cyclist!L105 -> 72 | K105: =DYN_cyclist!M105 -> 75 | L105: =DYN_cyclist!N105 -> 64 | M105: =DYN_cyclist!O105 -> 63 | N105: =DYN_cyclist!P105 -> 66 | O105: 60.15639837 | P105: 51.2144866 | Q105: 64.90290028 | R105: 47.32842628 | S105: 60.73145693 | T105: 45.45487751 | U105: 54.96802539 | V105: 70.59827795
A106: =DYN_cyclist!A106 -> 114 | B106: =DYN_cyclist!D106 -> 64 | C106: =DYN_cyclist!E106 -> 67 | D106: =DYN_cyclist!F106 -> 66 | E106: =DYN_cyclist!G106 -> 65 | F106: =DYN_cyclist!H106 -> 67 | G106: =DYN_cyclist!I106 -> 67 | H106: =DYN_cyclist!J106 -> 66 | I106: =DYN_cyclist!K106 -> 61 | J106: =DYN_cyclist!L106 -> 65 | K106: =DYN_cyclist!M106 -> 59 | L106: =DYN_cyclist!N106 -> 61 | M106: =DYN_cyclist!O106 -> 63 | N106: =DYN_cyclist!P106 -> 68 | O106: 56.21526719 | P106: 55.83670148 | Q106: 48.78574639 | R106: 53.25092351 | S106: 49.74296353 | T106: 51.9558846 | U106: 47.20006964 | V106: 66.31106867
A107: =DYN_cyclist!A107 -> 115 | B107: =DYN_cyclist!D107 -> 73 | C107: =DYN_cyclist!E107 -> 62 | D107: =DYN_cyclist!F107 -> 69 | E107: =DYN_cyclist!G107 -> 60 | F107: =DYN_cyclist!H107 -> 75 | G107: =DYN_cyclist!I107 -> 74 | H107: =DYN_cyclist!J107 -> 83 | I107: =DYN_cyclist!K107 -> 66 | J107: =DYN_cyclist!L107 -> 78 | K107: =DYN_cyclist!M107 -> 77 | L107: =DYN_cyclist!N107 -> 62 | M107: =DYN_cyclist!O107 -> 66 | N107: =DYN_cyclist!P107 -> 66 | O107: 68.87841719 | P107: 57.11763106 | Q107: 72.46185066 | R107: 48.47842992 | S107: 61.35005125 | T107: 47.90285333 | U107: 58.20129194 | V107: 74.55176008
A108: =DYN_cyclist!A108 -> 116 | B108: =DYN_cyclist!D108 -> 68 | C108: =DYN_cyclist!E108 -> 73 | D108: =DYN_cyclist!F108 -> 74 | E108: =DYN_cyclist!G108 -> 64 | F108: =DYN_cyclist!H108 -> 69 | G108: =DYN_cyclist!I108 -> 70 | H108: =DYN_cyclist!J108 -> 70 | I108: =DYN_cyclist!K108 -> 60 | J108: =DYN_cyclist!L108 -> 68 | K108: =DYN_cyclist!M108 -> 68 | L108: =DYN_cyclist!N108 -> 68 | M108: =DYN_cyclist!O108 -> 70 | N108: =DYN_cyclist!P108 -> 64 | O108: 68.14695639 | P108: 65.69765415 | Q108: 57.10081102 | R108: 53.82027117 | S108: 53.94467254 | T108: 61.66763775 | U108: 53.61921593 | V108: 72.75176059
A109: =DYN_cyclist!A109 -> 117 | B109: =DYN_cyclist!D109 -> 65 | C109: =DYN_cyclist!E109 -> 54 | D109: =DYN_cyclist!F109 -> 63 | E109: =DYN_cyclist!G109 -> 65 | F109: =DYN_cyclist!H109 -> 68 | G109: =DYN_cyclist!I109 -> 65 | H109: =DYN_cyclist!J109 -> 61 | I109: =DYN_cyclist!K109 -> 58 | J109: =DYN_cyclist!L109 -> 66 | K109: =DYN_cyclist!M109 -> 70 | L109: =DYN_cyclist!N109 -> 62 | M109: =DYN_cyclist!O109 -> 60 | N109: =DYN_cyclist!P109 -> 65 | O109: 55.58760235 | P109: 44.7040454 | Q109: 55.41440123 | R109: 47.95862353 | S109: 48.61437641 | T109: 36.25232221 | U109: 46.78148614 | V109: 65.87920469
A110: =DYN_cyclist!A110 -> 118 | B110: =DYN_cyclist!D110 -> 73 | C110: =DYN_cyclist!E110 -> 85 | D110: =DYN_cyclist!F110 -> 77 | E110: =DYN_cyclist!G110 -> 83 | F110: =DYN_cyclist!H110 -> 77 | G110: =DYN_cyclist!I110 -> 74 | H110: =DYN_cyclist!J110 -> 76 | I110: =DYN_cyclist!K110 -> 58 | J110: =DYN_cyclist!L110 -> 72 | K110: =DYN_cyclist!M110 -> 75 | L110: =DYN_cyclist!N110 -> 68 | M110: =DYN_cyclist!O110 -> 71 | N110: =DYN_cyclist!P110 -> 83 | O110: 77.14869212 | P110: 82.71580196 | Q110: 66.60017213 | R110: 82.89259598 | S110: 57.51108245 | T110: 82.00339242 | U110: 62.49920296 | V110: 81.69912944
A111: =DYN_cyclist!A111 -> 119 | B111: =DYN_cyclist!D111 -> 66 | C111: =DYN_cyclist!E111 -> 63 | D111: =DYN_cyclist!F111 -> 61 | E111: =DYN_cyclist!G111 -> 63 | F111: =DYN_cyclist!H111 -> 60 | G111: =DYN_cyclist!I111 -> 62 | H111: =DYN_cyclist!J111 -> 63 | I111: =DYN_cyclist!K111 -> 61 | J111: =DYN_cyclist!L111 -> 70 | K111: =DYN_cyclist!M111 -> 69 | L111: =DYN_cyclist!N111 -> 66 | M111: =DYN_cyclist!O111 -> 64 | N111: =DYN_cyclist!P111 -> 65 | O111: 54.32266755 | P111: 49.55995897 | Q111: 58.29077881 | R111: 48.89407399 | S111: 51.27614131 | T111: 46.73624087 | U111: 48.68542794 | V111: 66.83015005
A112: =DYN_cyclist!A112 -> 120 | B112: =DYN_cyclist!D112 -> 74 | C112: =DYN_cyclist!E112 -> 59 | D112: =DYN_cyclist!F112 -> 67 | E112: =DYN_cyclist!G112 -> 59 | F112: =DYN_cyclist!H112 -> 75 | G112: =DYN_cyclist!I112 -> 73 | H112: =DYN_cyclist!J112 -> 81 | I112: =DYN_cyclist!K112 -> 73 | J112: =DYN_cyclist!L112 -> 80 | K112: =DYN_cyclist!M112 -> 80 | L112: =DYN_cyclist!N112 -> 67 | M112: =DYN_cyclist!O112 -> 68 | N112: =DYN_cyclist!P112 -> 69 | O112: 68.27714482 | P112: 53.6763034 | Q112: 77.14521332 | R112: 47.80784576 | S112: 68.681368 | T112: 44.27446267 | U112: 59.52562861 | V112: 77.22792686
A113: =DYN_cyclist!A113 -> 121 | B113: =DYN_cyclist!D113 -> 65 | C113: =DYN_cyclist!E113 -> 70 | D113: =DYN_cyclist!F113 -> 67 | E113: =DYN_cyclist!G113 -> 65 | F113: =DYN_cyclist!H113 -> 62 | G113: =DYN_cyclist!I113 -> 65 | H113: =DYN_cyclist!J113 -> 67 | I113: =DYN_cyclist!K113 -> 59 | J113: =DYN_cyclist!L113 -> 50 | K113: =DYN_cyclist!M113 -> 52 | L113: =DYN_cyclist!N113 -> 57 | M113: =DYN_cyclist!O113 -> 62 | N113: =DYN_cyclist!P113 -> 66 | O113: 53.25039777 | P113: 58.1490237 | Q113: 35.07931706 | R113: 53.42539494 | S113: 47.16292545 | T113: 55.67538901 | U113: 48.27068942 | V113: 67.90672717
A114: =DYN_cyclist!A114 -> 122 | B114: =DYN_cyclist!D114 -> 71 | C114: =DYN_cyclist!E114 -> 61 | D114: =DYN_cyclist!F114 -> 67 | E114: =DYN_cyclist!G114 -> 63 | F114: =DYN_cyclist!H114 -> 68 | G114: =DYN_cyclist!I114 -> 68 | H114: =DYN_cyclist!J114 -> 64 | I114: =DYN_cyclist!K114 -> 78 | J114: =DYN_cyclist!L114 -> 60 | K114: =DYN_cyclist!M114 -> 61 | L114: =DYN_cyclist!N114 -> 75 | M114: =DYN_cyclist!O114 -> 66 | N114: =DYN_cyclist!P114 -> 63 | O114: 57.77938875 | P114: 51.62240597 | Q114: 47.08254649 | R114: 48.47412199 | S114: 69.67593039 | T114: 44.46129599 | U114: 56.32644731 | V114: 73.33843224
A115: =DYN_cyclist!A115 -> 123 | B115: =DYN_cyclist!D115 -> 70 | C115: =DYN_cyclist!E115 -> 50 | D115: =DYN_cyclist!F115 -> 56 | E115: =DYN_cyclist!G115 -> 53 | F115: =DYN_cyclist!H115 -> 67 | G115: =DYN_cyclist!I115 -> 64 | H115: =DYN_cyclist!J115 -> 70 | I115: =DYN_cyclist!K115 -> 70 | J115: =DYN_cyclist!L115 -> 70 | K115: =DYN_cyclist!M115 -> 72 | L115: =DYN_cyclist!N115 -> 59 | M115: =DYN_cyclist!O115 -> 68 | N115: =DYN_cyclist!P115 -> 59 | O115: 51.93838918 | P115: 39.40312329 | Q115: 60.6815896 | R115: 36.8056452 | S115: 59.77138799 | T115: 32.38680158 | U115: 51.82688254 | V115: 68.38068218
A116: =DYN_cyclist!A116 -> 124 | B116: =DYN_cyclist!D116 -> 67 | C116: =DYN_cyclist!E116 -> 52 | D116: =DYN_cyclist!F116 -> 56 | E116: =DYN_cyclist!G116 -> 69 | F116: =DYN_cyclist!H116 -> 67 | G116: =DYN_cyclist!I116 -> 66 | H116: =DYN_cyclist!J116 -> 58 | I116: =DYN_cyclist!K116 -> 51 | J116: =DYN_cyclist!L116 -> 59 | K116: =DYN_cyclist!M116 -> 52 | L116: =DYN_cyclist!N116 -> 55 | M116: =DYN_cyclist!O116 -> 62 | N116: =DYN_cyclist!P116 -> 68 | O116: 45.09270186 | P116: 40.60744497 | Q116: 40.96109039 | R116: 51.75023589 | S116: 40.0052867 | T116: 32.92746945 | U116: 48.11559114 | V116: 63.84299462
A117: =DYN_cyclist!A117 -> 125 | B117: =DYN_cyclist!D117 -> 71 | C117: =DYN_cyclist!E117 -> 54 | D117: =DYN_cyclist!F117 -> 63 | E117: =DYN_cyclist!G117 -> 78 | F117: =DYN_cyclist!H117 -> 72 | G117: =DYN_cyclist!I117 -> 70 | H117: =DYN_cyclist!J117 -> 65 | I117: =DYN_cyclist!K117 -> 59 | J117: =DYN_cyclist!L117 -> 61 | K117: =DYN_cyclist!M117 -> 63 | L117: =DYN_cyclist!N117 -> 66 | M117: =DYN_cyclist!O117 -> 60 | N117: =DYN_cyclist!P117 -> 76 | O117: 55.10120212 | P117: 47.44959744 | Q117: 48.91437946 | R117: 67.06664675 | S117: 50.84925038 | T117: 36.38400622 | U117: 54.85366314 | V117: 71.91618232
A118: =DYN_cyclist!A118 -> 128 | B118: =DYN_cyclist!D118 -> 77 | C118: =DYN_cyclist!E118 -> 62 | D118: =DYN_cyclist!F118 -> 66 | E118: =DYN_cyclist!G118 -> 71 | F118: =DYN_cyclist!H118 -> 71 | G118: =DYN_cyclist!I118 -> 77 | H118: =DYN_cyclist!J118 -> 70 | I118: =DYN_cyclist!K118 -> 63 | J118: =DYN_cyclist!L118 -> 64 | K118: =DYN_cyclist!M118 -> 73 | L118: =DYN_cyclist!N118 -> 71 | M118: =DYN_cyclist!O118 -> 71 | N118: =DYN_cyclist!P118 -> 71 | O118: 64.23027069 | P118: 55.96931218 | Q118: 59.14748334 | R118: 59.20018381 | S118: 59.60959529 | T118: 47.272324 | U118: 64.06774798 | V118: 70.88512722
A119: =DYN_cyclist!A119 -> 129 | B119: =DYN_cyclist!D119 -> 75 | C119: =DYN_cyclist!E119 -> 67 | D119: =DYN_cyclist!F119 -> 72 | E119: =DYN_cyclist!G119 -> 77 | F119: =DYN_cyclist!H119 -> 75 | G119: =DYN_cyclist!I119 -> 74 | H119: =DYN_cyclist!J119 -> 72 | I119: =DYN_cyclist!K119 -> 55 | J119: =DYN_cyclist!L119 -> 56 | K119: =DYN_cyclist!M119 -> 68 | L119: =DYN_cyclist!N119 -> 73 | M119: =DYN_cyclist!O119 -> 69 | N119: =DYN_cyclist!P119 -> 76 | O119: 66.45948248 | P119: 62.46139332 | Q119: 49.9078962 | R119: 69.8423073 | S119: 52.84479804 | T119: 53.55340819 | U119: 62.45742775 | V119: 74.34857541
A120: =DYN_cyclist!A120 -> 130 | B120: =DYN_cyclist!D120 -> 67 | C120: =DYN_cyclist!E120 -> 66 | D120: =DYN_cyclist!F120 -> 65 | E120: =DYN_cyclist!G120 -> 53 | F120: =DYN_cyclist!H120 -> 68 | G120: =DYN_cyclist!I120 -> 69 | H120: =DYN_cyclist!J120 -> 68 | I120: =DYN_cyclist!K120 -> 50 | J120: =DYN_cyclist!L120 -> 65 | K120: =DYN_cyclist!M120 -> 72 | L120: =DYN_cyclist!N120 -> 62 | M120: =DYN_cyclist!O120 -> 67 | N120: =DYN_cyclist!P120 -> 55 | O120: 59.91410685 | P120: 54.69570203 | Q120: 56.50562635 | R120: 40.89116652 | S120: 45.05074382 | T120: 51.59109243 | U120: 50.10027757 | V120: 68.09120814
A121: =DYN_cyclist!A121 -> 131 | B121: =DYN_cyclist!D121 -> 78 | C121: =DYN_cyclist!E121 -> 55 | D121: =DYN_cyclist!F121 -> 66 | E121: =DYN_cyclist!G121 -> 65 | F121: =DYN_cyclist!H121 -> 76 | G121: =DYN_cyclist!I121 -> 70 | H121: =DYN_cyclist!J121 -> 79 | I121: =DYN_cyclist!K121 -> 75 | J121: =DYN_cyclist!L121 -> 79 | K121: =DYN_cyclist!M121 -> 80 | L121: =DYN_cyclist!N121 -> 75 | M121: =DYN_cyclist!O121 -> 71 | N121: =DYN_cyclist!P121 -> 74 | O121: 67.13041367 | P121: 50.29150135 | Q121: 77.64563754 | R121: 52.60148414 | S121: 72.72088412 | T121: 39.47139486 | U121: 65.13452278 | V121: 77.51081524
A122: =DYN_cyclist!A122 -> 132 | B122: =DYN_cyclist!D122 -> 69 | C122: =DYN_cyclist!E122 -> 56 | D122: =DYN_cyclist!F122 -> 65 | E122: =DYN_cyclist!G122 -> 60 | F122: =DYN_cyclist!H122 -> 71 | G122: =DYN_cyclist!I122 -> 73 | H122: =DYN_cyclist!J122 -> 69 | I122: =DYN_cyclist!K122 -> 68 | J122: =DYN_cyclist!L122 -> 71 | K122: =DYN_cyclist!M122 -> 73 | L122: =DYN_cyclist!N122 -> 70 | M122: =DYN_cyclist!O122 -> 65 | N122: =DYN_cyclist!P122 -> 71 | O122: 61.6008885 | P122: 49.036159 | Q122: 62.42264211 | R122: 48.12656126 | S122: 60.19942252 | T122: 39.65094317 | U122: 52.76516219 | V122: 69.50516945
A123: =DYN_cyclist!A123 -> 133 | B123: =DYN_cyclist!D123 -> 76 | C123: =DYN_cyclist!E123 -> 59 | D123: =DYN_cyclist!F123 -> 67 | E123: =DYN_cyclist!G123 -> 64 | F123: =DYN_cyclist!H123 -> 68 | G123: =DYN_cyclist!I123 -> 74 | H123: =DYN_cyclist!J123 -> 64 | I123: =DYN_cyclist!K123 -> 65 | J123: =DYN_cyclist!L123 -> 69 | K123: =DYN_cyclist!M123 -> 74 | L123: =DYN_cyclist!N123 -> 77 | M123: =DYN_cyclist!O123 -> 60 | N123: =DYN_cyclist!P123 -> 64 | O123: 64.59414064 | P123: 52.13347384 | Q123: 63.40051342 | R123: 49.88109404 | S123: 61.25713344 | T123: 43.15412505 | U123: 62.50102154 | V123: 71.02789905
A124: =DYN_cyclist!A124 -> 134 | B124: =DYN_cyclist!D124 -> 68 | C124: =DYN_cyclist!E124 -> 66 | D124: =DYN_cyclist!F124 -> 69 | E124: =DYN_cyclist!G124 -> 71 | F124: =DYN_cyclist!H124 -> 71 | G124: =DYN_cyclist!I124 -> 69 | H124: =DYN_cyclist!J124 -> 72 | I124: =DYN_cyclist!K124 -> 56 | J124: =DYN_cyclist!L124 -> 70 | K124: =DYN_cyclist!M124 -> 72 | L124: =DYN_cyclist!N124 -> 69 | M124: =DYN_cyclist!O124 -> 56 | N124: =DYN_cyclist!P124 -> 71 | O124: 64.09761609 | P124: 58.55863454 | Q124: 61.04318413 | R124: 59.12149217 | S124: 50.69694686 | T124: 51.8318679 | U124: 52.57764135 | V124: 70.50116916
A125: =DYN_cyclist!A125 -> 135 | B125: =DYN_cyclist!D125 -> 71 | C125: =DYN_cyclist!E125 -> 64 | D125: =DYN_cyclist!F125 -> 69 | E125: =DYN_cyclist!G125 -> 63 | F125: =DYN_cyclist!H125 -> 66 | G125: =DYN_cyclist!I125 -> 73 | H125: =DYN_cyclist!J125 -> 64 | I125: =DYN_cyclist!K125 -> 65 | J125: =DYN_cyclist!L125 -> 68 | K125: =DYN_cyclist!M125 -> 72 | L125: =DYN_cyclist!N125 -> 78 | M125: =DYN_cyclist!O125 -> 69 | N125: =DYN_cyclist!P125 -> 67 | O125: 65.02658774 | P125: 56.15368165 | Q125: 59.65693571 | R125: 51.40755749 | S125: 59.38200453 | T125: 49.29071625 | U125: 56.7055418 | V125: 70.76894531
A126: =DYN_cyclist!A126 -> 136 | B126: =DYN_cyclist!D126 -> 69 | C126: =DYN_cyclist!E126 -> 70 | D126: =DYN_cyclist!F126 -> 70 | E126: =DYN_cyclist!G126 -> 63 | F126: =DYN_cyclist!H126 -> 71 | G126: =DYN_cyclist!I126 -> 70 | H126: =DYN_cyclist!J126 -> 70 | I126: =DYN_cyclist!K126 -> 58 | J126: =DYN_cyclist!L126 -> 66 | K126: =DYN_cyclist!M126 -> 64 | L126: =DYN_cyclist!N126 -> 65 | M126: =DYN_cyclist!O126 -> 68 | N126: =DYN_cyclist!P126 -> 63 | O126: 63.04421043 | P126: 61.14783388 | Q126: 53.32936059 | R126: 51.68389367 | S126: 51.20933579 | T126: 56.96349852 | U126: 53.97804632 | V126: 70.01223159
A127: =DYN_cyclist!A127 -> 137 | B127: =DYN_cyclist!D127 -> 66 | C127: =DYN_cyclist!E127 -> 72 | D127: =DYN_cyclist!F127 -> 66 | E127: =DYN_cyclist!G127 -> 69 | F127: =DYN_cyclist!H127 -> 64 | G127: =DYN_cyclist!I127 -> 69 | H127: =DYN_cyclist!J127 -> 67 | I127: =DYN_cyclist!K127 -> 52 | J127: =DYN_cyclist!L127 -> 58 | K127: =DYN_cyclist!M127 -> 58 | L127: =DYN_cyclist!N127 -> 60 | M127: =DYN_cyclist!O127 -> 58 | N127: =DYN_cyclist!P127 -> 69 | O127: 55.95895737 | P127: 60.90149536 | Q127: 43.48104444 | R127: 58.83257323 | S127: 43.73603519 | T127: 59.04344606 | U127: 49.84780771 | V127: 69.63427043
A128: =DYN_cyclist!A128 -> 138 | B128: =DYN_cyclist!D128 -> 68 | C128: =DYN_cyclist!E128 -> 62 | D128: =DYN_cyclist!F128 -> 68 | E128: =DYN_cyclist!G128 -> 61 | F128: =DYN_cyclist!H128 -> 65 | G128: =DYN_cyclist!I128 -> 68 | H128: =DYN_cyclist!J128 -> 64 | I128: =DYN_cyclist!K128 -> 60 | J128: =DYN_cyclist!L128 -> 69 | K128: =DYN_cyclist!M128 -> 71 | L128: =DYN_cyclist!N128 -> 64 | M128: =DYN_cyclist!O128 -> 66 | N128: =DYN_cyclist!P128 -> 64 | O128: 62.08733199 | P128: 52.85329899 | Q128: 59.18596029 | R128: 47.55825469 | S128: 52.54833239 | T128: 46.19215325 | U128: 51.46436305 | V128: 69.30754036
A129: =DYN_cyclist!A129 -> 139 | B129: =DYN_cyclist!D129 -> 66 | C129: =DYN_cyclist!E129 -> 72 | D129: =DYN_cyclist!F129 -> 70 | E129: =DYN_cyclist!G129 -> 67 | F129: =DYN_cyclist!H129 -> 68 | G129: =DYN_cyclist!I129 -> 72 | H129: =DYN_cyclist!J129 -> 67 | I129: =DYN_cyclist!K129 -> 57 | J129: =DYN_cyclist!L129 -> 59 | K129: =DYN_cyclist!M129 -> 68 | L129: =DYN_cyclist!N129 -> 65 | M129: =DYN_cyclist!O129 -> 63 | N129: =DYN_cyclist!P129 -> 67 | O129: 63.14229523 | P129: 63.41651636 | Q129: 49.71588065 | R129: 56.91968788 | S129: 50.10117017 | T129: 59.97888 | U129: 50.68029838 | V129: 71.20896551
A130: =DYN_cyclist!A130 -> 140 | B130: =DYN_cyclist!D130 -> 71 | C130: =DYN_cyclist!E130 -> 69 | D130: =DYN_cyclist!F130 -> 70 | E130: =DYN_cyclist!G130 -> 69 | F130: =DYN_cyclist!H130 -> 68 | G130: =DYN_cyclist!I130 -> 69 | H130: =DYN_cyclist!J130 -> 67 | I130: =DYN_cyclist!K130 -> 69 | J130: =DYN_cyclist!L130 -> 69 | K130: =DYN_cyclist!M130 -> 70 | L130: =DYN_cyclist!N130 -> 68 | M130: =DYN_cyclist!O130 -> 69 | N130: =DYN_cyclist!P130 -> 70 | O130: 65.05553292 | P130: 60.59912328 | Q130: 59.49552228 | R130: 58.29522995 | S130: 62.23366211 | T130: 55.7433533 | U130: 56.85430105 | V130: 71.06625251
A131: =DYN_cyclist!A131 -> 142 | B131: =DYN_cyclist!D131 -> 66 | C131: =DYN_cyclist!E131 -> 72 | D131: =DYN_cyclist!F131 -> 74 | E131: =DYN_cyclist!G131 -> 67 | F131: =DYN_cyclist!H131 -> 68 | G131: =DYN_cyclist!I131 -> 70 | H131: =DYN_cyclist!J131 -> 67 | I131: =DYN_cyclist!K131 -> 55 | J131: =DYN_cyclist!L131 -> 65 | K131: =DYN_cyclist!M131 -> 68 | L131: =DYN_cyclist!N131 -> 56 | M131: =DYN_cyclist!O131 -> 71 | N131: =DYN_cyclist!P131 -> 65 | O131: =((($B131*5)^2+($C131*4)^2+($D131*12)^2+($E131*0)^2+($F131*3)^2+($G131*6)^2+($H131*0)^2+($I131*0)^2+($J131*5)^2+($K131*7)^2+($L131*1)^2+($M131*2)^2)+($N131*0)^2)/2106025*91.12 -> 67.23178671 | P131: =((($B131*2)^2+($C131*14)^2+($D131*10)^2+($E131*5)^2+($F131*2)^2+($G131*7)^2+($H131*5)^2+($I131*0)^2+($J131*0)^2+($K131*3)^2+($L131*0)^2+($M131*0)^2)+($N131*0)^2)/2958326.56*90.98 -> 64.75996855 | Q131: =((($B131*5)^2+($C131*2)^2+($D131*1)^2+($E131*0)^2+($F131*2)^2+($G131*1)^2+($H131*1)^2+($I131*0)^2+($J131*10.75)^2+($K131*9)^2+($L131*0)^2+($M131*0)^2)+($N131*1)^2)/1715576.56*IF(B131>77,92,IF(B131>75,92-0.5,IF(B131>73,92-0.88,92-1.65))) -> 54.24537088 | R131: =IF(AND(E131>75,C131<76),((($B131*2)^2+($C131*6)^2+($D131*0)^2+($E131*11)^2+($F131*0)^2+($G131*3.5)^2+($H131*0)^2+($I131*0)^2+($J131*0)^2+($K131*0)^2+($L131*0)^2+($M131*0)^2)+($N131*6)^2)/1482831.25*87.08+0.75,IF(AND(E131>75,C131<80),((($B131*2)^2+($C131*6)^2+($D131*0)^2+($E131*11)^2+($F131*0)^2+($G131*3.5)^2+($H131*0)^2+($I131*0)^2+($J131*0)^2+($K131*0)^2+($L131*0)^2+($M131*0)^2)+($N131*6)^2)/1482831.25*87.08+0.5,((($B131*2)^2+($C131*6)^2+($D131*0)^2+($E131*9)^2+($F131*0)^2+($G131*3.5)^2+($H131*0)^2+($I131*0)^2+($J131*0)^2+($K131*0)^2+($L131*0)^2+($M131*0)^2)+($N131*6)^2)/1212831.25*87.08))+IF(AND(E131>81.99,C131<74),4,IF(AND(E131>80.99,C131<74),2.5,IF(AND(E131>79.99,C131<74),1.5,0))) -> 55.98752222 | S131: =((($B131*7)^2+($C131*3)^2+($D131*4)^2+($E131*0)^2+($F131*2.5)^2+($G131*2)^2+($H131*0)^2+($I131*11)^2+($J131*1)^2+($K131*5)^2+($L131*3)^2+($M131*0)^2)+($N131*0)^2)/1680031.25*91.49-IF(I131<74,1,IF(I131<75,0.8,IF(I131<76,0.7,IF(I131<77,0.6,IF(I131<77,0.4,IF(I131<78,0.3,IF(I131<79,0.2,0))))))) -> 48.57195415 | T131: =IF(AND(C131>81,D131>75,B131>70,E131>72,F131>77,G131>77),((($B131*1)^2+($C131*14.5)^2+($D131*2)^2+($E131*0)^2+($F131*1)^2+($G131*3)^2+($H131*2.5)^2+($I131*0)^2+($J131*0)^2+($K131*3)^2+($L131*1)^2+($M131*1.25)^2)+($N131*0)^2)/1693126.56*81.55+1,IF(AND(C131>75,D131<74,(C131-D131)>7.9),((($B131*1)^2+($C131*14.5)^2+($D131*2)^2+($E131*0)^2+($F131*1)^2+($G131*3)^2+($H131*2.5)^2+($I131*0)^2+($J131*0)^2+($K131*3)^2+($L131*1)^2+($M131*1.25)^2)+($N131*0)^2)/1693126.56*81.55-1.25,((($B131*1)^2+($C131*14.5)^2+($D131*2)^2+($E131*0)^2+($F131*1)^2+($G131*3)^2+($H131*2.5)^2+($I131*0)^2+($J131*0)^2+($K131*3)^2+($L131*1)^2+($M131*1.25)^2)+($N131*0)^2)/1693126.56*81.55)) -> 59.99496722 | U131: =((($B131*13)^2+($C131*4)^2+($D131*3)^2+($E131*2)^2+($F131*2)^2+($G131*2)^2+($H131*0)^2+($I131*2)^2+($J131*0)^2+($K131*0)^2+($L131*3)^2+($M131*1)^2)+($N131*0)^2)/1569500*81.55 -> 50.39052179 | V131: =IF(AND(O131>79.99,P131>79.99),((LARGE(O131:U131,1)*9)^2+(LARGE(O131:U131,2)*4.5)^2+(LARGE(O131:U131,3)*2)^2)^(1/4)*2.81072986218,IF(AND(R131>79.99,P131>79.99),((LARGE(O131:U131,1)*9)^2+(LARGE(O131:U131,2)*4.5)^2+(LARGE(O131:U131,3)*2)^2)^(1/4)*2.80272986218,IF(AND(LARGE(O131:U131,1)=Q131,Q131>79,O131>77),((LARGE(O131:U131,1)*9)^2+(LARGE(O131:U131,2)*4.5)^2+(LARGE(O131:U131,3)*2)^2)^(1/4)*2.78572986218,IF(AND(LARGE(O131:U131,1)=O131,O131>79,T131<70),((LARGE(O131:U131,1)*9)^2+(LARGE(O131:U131,2)*4.5)^2+(LARGE(O131:U131,3)*2)^2)^(1/4)*2.78572986218,IF(AND(LARGE(O131:U131,1)=O131,O131<77,T131<70,R131<70,Q131<70,P131<70,S131<72),((LARGE(O131:U131,1)*9)^2+(LARGE(O131:U131,2)*4.5)^2+(LARGE(O131:U131,3)*2)^2)^(1/4)*2.76572986218,IF(AND(LARGE(O131:U131,1)=O131,O131<77,T131<70,S131<71,R131<70,P131<68),((LARGE(O131:U131,1)*9)^2+(LARGE(O131:U131,2)*4.5)^2+(LARGE(O131:U131,3)*2)^2)^(1/4)*2.75572986218,IF(AND(LARGE(O131:U131,1)=O131,O131<78,T131<70,R131<70,S131<71),((LARGE(O131:U131,1)*9)^2+(LARGE(O131:U131,2)*4.5)^2+(LARGE(O131:U131,3)*2)^2)^(1/4)*2.78072986218,IF(AND(LARGE(O131:U131,1)=O131,O131<79,T131<70,R131<70),((LARGE(O131:U131,1)*9)^2+(LARGE(O131:U131,2)*4.5)^2+(LARGE(O131:U131,3)*2)^2)^(1/4)*2.79572986218,IF(LARGE(O131:U131,1)=Q131,((LARGE(O131:U131,1)*9)^2+(LARGE(O131:U131,2)*3.5)^2+(LARGE(O131:U131,3)*2)^2)^(1/4)*2.80572986218,(((LARGE(O131:U131,1)*9)^2+(LARGE(O131:U131,2)*4.5)^2+(LARGE(O131:U131,3)*2)^2))^(1/4)*2.79572986218+IF(AND(LARGE(O131:U131,1)=O131,R131>70),1,0)))))))))+IF(AND(LARGE(O131:U131,1)=Q131,O131<78,J131>80),((B131+J131)^2/35000),IF(AND(LARGE(O131:U131,1)=Q131,O131<78,J131>79),((B131+J131)^2/45000),IF(AND(LARGE(O131:U131,1)=Q131,O131<78,J131>78),((B131+J131)^2/65000),0)))) -> 72.2401352
A132: =DYN_cyclist!A132 -> 143 | B132: =DYN_cyclist!D132 -> 67 | C132: =DYN_cyclist!E132 -> 62 | D132: =DYN_cyclist!F132 -> 67 | E132: =DYN_cyclist!G132 -> 63 | F132: =DYN_cyclist!H132 -> 67 | G132: =DYN_cyclist!I132 -> 66 | H132: =DYN_cyclist!J132 -> 58 | I132: =DYN_cyclist!K132 -> 69 | J132: =DYN_cyclist!L132 -> 64 | K132: =DYN_cyclist!M132 -> 69 | L132: =DYN_cyclist!N132 -> 73 | M132: =DYN_cyclist!O132 -> 53 | N132: =DYN_cyclist!P132 -> 62 | O132: 59.25827562 | P132: 51.60050921 | Q132: 53.74913624 | R132: 48.07470447 | S132: 59.93906208 | T132: 45.65741273 | U132: 51.00400433 | V132: 69.12227486
A133: =DYN_cyclist!A133 -> 144 | B133: =DYN_cyclist!D133 -> 67 | C133: =DYN_cyclist!E133 -> 56 | D133: =DYN_cyclist!F133 -> 62 | E133: =DYN_cyclist!G133 -> 56 | F133: =DYN_cyclist!H133 -> 67 | G133: =DYN_cyclist!I133 -> 65 | H133: =DYN_cyclist!J133 -> 65 | I133: =DYN_cyclist!K133 -> 64 | J133: =DYN_cyclist!L133 -> 71 | K133: =DYN_cyclist!M133 -> 71 | L133: =DYN_cyclist!N133 -> 63 | M133: =DYN_cyclist!O133 -> 62 | N133: =DYN_cyclist!P133 -> 61 | O133: 56.28159449 | P133: 45.25084927 | Q133: 60.54373037 | R133: 40.96705801 | S133: 54.38572237 | T133: 38.69956651 | U133: 49.19301759 | V133: 68.12368992
A134: =DYN_cyclist!A134 -> 145 | B134: =DYN_cyclist!D134 -> 61 | C134: =DYN_cyclist!E134 -> 68 | D134: =DYN_cyclist!F134 -> 64 | E134: =DYN_cyclist!G134 -> 59 | F134: =DYN_cyclist!H134 -> 65 | G134: =DYN_cyclist!I134 -> 62 | H134: =DYN_cyclist!J134 -> 68 | I134: =DYN_cyclist!K134 -> 58 | J134: =DYN_cyclist!L134 -> 55 | K134: =DYN_cyclist!M134 -> 66 | L134: =DYN_cyclist!N134 -> 69 | M134: =DYN_cyclist!O134 -> 62 | N134: =DYN_cyclist!P134 -> 56 | O134: 53.75618132 | P134: 54.67648086 | Q134: 44.58227581 | R134: 44.75184946 | S134: 47.63481174 | T134: 53.46319152 | U134: 43.95989251 | V134: 66.07984965
A135: =DYN_cyclist!A135 -> 146 | B135: =DYN_cyclist!D135 -> 64 | C135: =DYN_cyclist!E135 -> 78 | D135: =DYN_cyclist!F135 -> 68 | E135: =DYN_cyclist!G135 -> 67 | F135: =DYN_cyclist!H135 -> 67 | G135: =DYN_cyclist!I135 -> 72 | H135: =DYN_cyclist!J135 -> 72 | I135: =DYN_cyclist!K135 -> 50 | J135: =DYN_cyclist!L135 -> 55 | K135: =DYN_cyclist!M135 -> 69 | L135: =DYN_cyclist!N135 -> 63 | M135: =DYN_cyclist!O135 -> 57 | N135: =DYN_cyclist!P135 -> 66 | O135: 61.3734806 | P135: 68.51636965 | Q135: 47.35895947 | R135: 58.82752935 | S135: 44.66285794 | T135: 67.97285448 | U135: 48.67550373 | V135: 73.92583129
A136: =DYN_cyclist!A136 -> 147 | B136: =DYN_cyclist!D136 -> 62 | C136: =DYN_cyclist!E136 -> 60 | D136: =DYN_cyclist!F136 -> 67 | E136: =DYN_cyclist!G136 -> 60 | F136: =DYN_cyclist!H136 -> 62 | G136: =DYN_cyclist!I136 -> 65 | H136: =DYN_cyclist!J136 -> 66 | I136: =DYN_cyclist!K136 -> 60 | J136: =DYN_cyclist!L136 -> 60 | K136: =DYN_cyclist!M136 -> 62 | L136: =DYN_cyclist!N136 -> 64 | M136: =DYN_cyclist!O136 -> 66 | N136: =DYN_cyclist!P136 -> 60 | O136: 55.67028433 | P136: 49.99881674 | Q136: 45.81470106 | R136: 44.36688148 | S136: 48.32030688 | T136: 43.02571627 | U136: 44.16185801 | V136: 65.31280458
A137: =DYN_cyclist!A137 -> 148 | B137: =DYN_cyclist!D137 -> 68 | C137: =DYN_cyclist!E137 -> 78 | D137: =DYN_cyclist!F137 -> 73 | E137: =DYN_cyclist!G137 -> 65 | F137: =DYN_cyclist!H137 -> 73 | G137: =DYN_cyclist!I137 -> 70 | H137: =DYN_cyclist!J137 -> 72 | I137: =DYN_cyclist!K137 -> 50 | J137: =DYN_cyclist!L137 -> 52 | K137: =DYN_cyclist!M137 -> 59 | L137: =DYN_cyclist!N137 -> 52 | M137: =DYN_cyclist!O137 -> 56 | N137: =DYN_cyclist!P137 -> 65 | O137: 63.08656818 | P137: 69.86757182 | Q137: 40.83248036 | R137: 56.85542783 | S137: 44.52998208 | T137: 68.67716236 | U137: 53.10487158 | V137: 74.59516593
A138: =DYN_cyclist!A138 -> 149 | B138: =DYN_cyclist!D138 -> 64 | C138: =DYN_cyclist!E138 -> 57 | D138: =DYN_cyclist!F138 -> 58 | E138: =DYN_cyclist!G138 -> 60 | F138: =DYN_cyclist!H138 -> 60 | G138: =DYN_cyclist!I138 -> 58 | H138: =DYN_cyclist!J138 -> 61 | I138: =DYN_cyclist!K138 -> 50 | J138: =DYN_cyclist!L138 -> 59 | K138: =DYN_cyclist!M138 -> 63 | L138: =DYN_cyclist!N138 -> 62 | M138: =DYN_cyclist!O138 -> 63 | N138: =DYN_cyclist!P138 -> 60 | O138: 47.31304405 | P138: 42.67315188 | Q138: 45.69210138 | R138: 42.77472201 | S138: 40.36180516 | T138: 38.70339867 | U138: 44.96057518 | V138: 60.678323
A139: =DYN_cyclist!A139 -> 150 | B139: =DYN_cyclist!D139 -> 71 | C139: =DYN_cyclist!E139 -> 65 | D139: =DYN_cyclist!F139 -> 72 | E139: =DYN_cyclist!G139 -> 63 | F139: =DYN_cyclist!H139 -> 74 | G139: =DYN_cyclist!I139 -> 71 | H139: =DYN_cyclist!J139 -> 68 | I139: =DYN_cyclist!K139 -> 75 | J139: =DYN_cyclist!L139 -> 63 | K139: =DYN_cyclist!M139 -> 70 | L139: =DYN_cyclist!N139 -> 68 | M139: =DYN_cyclist!O139 -> 75 | N139: =DYN_cyclist!P139 -> 69 | O139: 66.51464707 | P139: 58.26327434 | Q139: 54.77143668 | R139: 52.19074034 | S139: 68.51944739 | T139: 50.63820157 | U139: 56.83663492 | V139: 73.71987077
A140: =DYN_cyclist!A140 -> 151 | B140: =DYN_cyclist!D140 -> 64 | C140: =DYN_cyclist!E140 -> 72 | D140: =DYN_cyclist!F140 -> 68 | E140: =DYN_cyclist!G140 -> 55 | F140: =DYN_cyclist!H140 -> 64 | G140: =DYN_cyclist!I140 -> 69 | H140: =DYN_cyclist!J140 -> 69 | I140: =DYN_cyclist!K140 -> 62 | J140: =DYN_cyclist!L140 -> 56 | K140: =DYN_cyclist!M140 -> 68 | L140: =DYN_cyclist!N140 -> 75 | M140: =DYN_cyclist!O140 -> 67 | N140: =DYN_cyclist!P140 -> 57 | O140: 60.0544196 | P140: 60.91687229 | Q140: 47.07485748 | R140: 44.75366238 | S140: 53.48307867 | T140: 59.89283263 | U140: 48.57158528 | V140: 69.77377525
A141: =DYN_cyclist!A141 -> 152 | B141: =DYN_cyclist!D141 -> 67 | C141: =DYN_cyclist!E141 -> 67 | D141: =DYN_cyclist!F141 -> 63 | E141: =DYN_cyclist!G141 -> 76 | F141: =DYN_cyclist!H141 -> 69 | G141: =DYN_cyclist!I141 -> 67 | H141: =DYN_cyclist!J141 -> 69 | I141: =DYN_cyclist!K141 -> 50 | J141: =DYN_cyclist!L141 -> 50 | K141: =DYN_cyclist!M141 -> 51 | L141: =DYN_cyclist!N141 -> 64 | M141: =DYN_cyclist!O141 -> 59 | N141: =DYN_cyclist!P141 -> 76 | O141: 50.53539148 | P141: 55.98862562 | Q141: 35.16974202 | R141: 67.77823826 | S141: 41.39324042 | T141: 51.63513962 | U141: 50.74519544 | V141: 72.25855609
A142: =DYN_cyclist!A142 -> 153 | B142: =DYN_cyclist!D142 -> 68 | C142: =DYN_cyclist!E142 -> 76 | D142: =DYN_cyclist!F142 -> 71 | E142: =DYN_cyclist!G142 -> 72 | F142: =DYN_cyclist!H142 -> 72 | G142: =DYN_cyclist!I142 -> 68 | H142: =DYN_cyclist!J142 -> 71 | I142: =DYN_cyclist!K142 -> 50 | J142: =DYN_cyclist!L142 -> 56 | K142: =DYN_cyclist!M142 -> 73 | L142: =DYN_cyclist!N142 -> 62 | M142: =DYN_cyclist!O142 -> 56 | N142: =DYN_cyclist!P142 -> 72 | O142: 65.02710693 | P142: 67.83043526 | Q142: 51.26273936 | R142: 63.87262558 | S142: 47.1168001 | T142: 66.18895343 | U142: 53.3590561 | V142: 73.52278629
A143: =DYN_cyclist!A143 -> 154 | B143: =DYN_cyclist!D143 -> 73 | C143: =DYN_cyclist!E143 -> 58 | D143: =DYN_cyclist!F143 -> 59 | E143: =DYN_cyclist!G143 -> 74 | F143: =DYN_cyclist!H143 -> 67 | G143: =DYN_cyclist!I143 -> 70 | H143: =DYN_cyclist!J143 -> 67 | I143: =DYN_cyclist!K143 -> 62 | J143: =DYN_cyclist!L143 -> 61 | K143: =DYN_cyclist!M143 -> 69 | L143: =DYN_cyclist!N143 -> 68 | M143: =DYN_cyclist!O143 -> 65 | N143: =DYN_cyclist!P143 -> 73 | O143: 54.21065098 | P143: 48.55390752 | Q143: 52.5847272 | R143: 60.15638416 | S143: 54.77710714 | T143: 41.28991303 | U143: 57.48929471 | V143: 69.04715119
A144: =DYN_cyclist!A144 -> 155 | B144: =DYN_cyclist!D144 -> 65 | C144: =DYN_cyclist!E144 -> 57 | D144: =DYN_cyclist!F144 -> 63 | E144: =DYN_cyclist!G144 -> 72 | F144: =DYN_cyclist!H144 -> 65 | G144: =DYN_cyclist!I144 -> 65 | H144: =DYN_cyclist!J144 -> 66 | I144: =DYN_cyclist!K144 -> 52 | J144: =DYN_cyclist!L144 -> 53 | K144: =DYN_cyclist!M144 -> 62 | L144: =DYN_cyclist!N144 -> 67 | M144: =DYN_cyclist!O144 -> 63 | N144: =DYN_cyclist!P144 -> 70 | O144: 51.84242443 | P144: 47.59546306 | Q144: 41.54966896 | R144: 56.1413335 | S144: 43.08702646 | T144: 39.39754537 | U144: 47.35833743 | V144: 66.43086884
A145: =DYN_cyclist!A145 -> 156 | B145: =DYN_cyclist!D145 -> 60 | C145: =DYN_cyclist!E145 -> 61 | D145: =DYN_cyclist!F145 -> 62 | E145: =DYN_cyclist!G145 -> 53 | F145: =DYN_cyclist!H145 -> 64 | G145: =DYN_cyclist!I145 -> 63 | H145: =DYN_cyclist!J145 -> 62 | I145: =DYN_cyclist!K145 -> 51 | J145: =DYN_cyclist!L145 -> 57 | K145: =DYN_cyclist!M145 -> 63 | L145: =DYN_cyclist!N145 -> 70 | M145: =DYN_cyclist!O145 -> 64 | N145: =DYN_cyclist!P145 -> 53 | O145: 51.04606413 | P145: 47.392549 | Q145: 43.85297767 | R145: 37.73962379 | S145: 41.15889696 | T145: 43.93541487 | U145: 41.80784543 | V145: 62.70756358
A146: =DYN_cyclist!A146 -> 157 | B146: =DYN_cyclist!D146 -> 67 | C146: =DYN_cyclist!E146 -> 59 | D146: =DYN_cyclist!F146 -> 61 | E146: =DYN_cyclist!G146 -> 63 | F146: =DYN_cyclist!H146 -> 66 | G146: =DYN_cyclist!I146 -> 68 | H146: =DYN_cyclist!J146 -> 67 | I146: =DYN_cyclist!K146 -> 63 | J146: =DYN_cyclist!L146 -> 58 | K146: =DYN_cyclist!M146 -> 69 | L146: =DYN_cyclist!N146 -> 73 | M146: =DYN_cyclist!O146 -> 71 | N146: =DYN_cyclist!P146 -> 61 | O146: 54.182225 | P146: 48.30298667 | Q146: 49.21610432 | R146: 47.05422612 | S146: 53.84647237 | T146: 42.44984255 | U146: 50.32250717 | V146: 65.08269341
A147: =DYN_cyclist!A147 -> 158 | B147: =DYN_cyclist!D147 -> 64 | C147: =DYN_cyclist!E147 -> 73 | D147: =DYN_cyclist!F147 -> 69 | E147: =DYN_cyclist!G147 -> 70 | F147: =DYN_cyclist!H147 -> 67 | G147: =DYN_cyclist!I147 -> 69 | H147: =DYN_cyclist!J147 -> 69 | I147: =DYN_cyclist!K147 -> 61 | J147: =DYN_cyclist!L147 -> 57 | K147: =DYN_cyclist!M147 -> 66 | L147: =DYN_cyclist!N147 -> 66 | M147: =DYN_cyclist!O147 -> 62 | N147: =DYN_cyclist!P147 -> 67 | O147: 60.54891063 | P147: 63.62797999 | Q147: 46.80519214 | R147: 59.23802185 | S147: 52.01612099 | T147: 61.18069831 | U147: 48.57506655 | V147: 71.10351626
A148: =DYN_cyclist!A148 -> 159 | B148: =DYN_cyclist!D148 -> 69 | C148: =DYN_cyclist!E148 -> 65 | D148: =DYN_cyclist!F148 -> 71 | E148: =DYN_cyclist!G148 -> 62 | F148: =DYN_cyclist!H148 -> 67 | G148: =DYN_cyclist!I148 -> 70 | H148: =DYN_cyclist!J148 -> 68 | I148: =DYN_cyclist!K148 -> 50 | J148: =DYN_cyclist!L148 -> 62 | K148: =DYN_cyclist!M148 -> 67 | L148: =DYN_cyclist!N148 -> 64 | M148: =DYN_cyclist!O148 -> 61 | N148: =DYN_cyclist!P148 -> 62 | O148: 63.35797795 | P148: 57.24529038 | Q148: 51.617606 | R148: 48.88911987 | S148: 45.56423551 | T148: 50.14161702 | U148: 53.05530248 | V148: 69.67461853
A149: =DYN_cyclist!A149 -> 160 | B149: =DYN_cyclist!D149 -> 67 | C149: =DYN_cyclist!E149 -> 71 | D149: =DYN_cyclist!F149 -> 69 | E149: =DYN_cyclist!G149 -> 71 | F149: =DYN_cyclist!H149 -> 69 | G149: =DYN_cyclist!I149 -> 72 | H149: =DYN_cyclist!J149 -> 72 | I149: =DYN_cyclist!K149 -> 58 | J149: =DYN_cyclist!L149 -> 63 | K149: =DYN_cyclist!M149 -> 68 | L149: =DYN_cyclist!N149 -> 73 | M149: =DYN_cyclist!O149 -> 71 | N149: =DYN_cyclist!P149 -> 71 | O149: 63.13563222 | P149: 63.11903414 | Q149: 52.91806722 | R149: 61.2253268 | S149: 51.63693467 | T149: 58.86004754 | U149: 52.40337012 | V149: 70.34696121
A150: =DYN_cyclist!A150 -> 162 | B150: =DYN_cyclist!D150 -> 72 | C150: =DYN_cyclist!E150 -> 67 | D150: =DYN_cyclist!F150 -> 76 | E150: =DYN_cyclist!G150 -> 65 | F150: =DYN_cyclist!H150 -> 74 | G150: =DYN_cyclist!I150 -> 68 | H150: =DYN_cyclist!J150 -> 71 | I150: =DYN_cyclist!K150 -> 61 | J150: =DYN_cyclist!L150 -> 68 | K150: =DYN_cyclist!M150 -> 71 | L150: =DYN_cyclist!N150 -> 68 | M150: =DYN_cyclist!O150 -> 68 | N150: =DYN_cyclist!P150 -> 69 | O150: 70.72511124 | P150: 61.62088996 | Q150: 59.63434264 | R150: 54.03624239 | S150: 56.83694166 | T150: 53.36316417 | U150: 58.10745358 | V150: 73.40775848
A151: =DYN_cyclist!A151 -> 163 | B151: =DYN_cyclist!D151 -> 68 | C151: =DYN_cyclist!E151 -> 62 | D151: =DYN_cyclist!F151 -> 68 | E151: =DYN_cyclist!G151 -> 61 | F151: =DYN_cyclist!H151 -> 70 | G151: =DYN_cyclist!I151 -> 70 | H151: =DYN_cyclist!J151 -> 71 | I151: =DYN_cyclist!K151 -> 69 | J151: =DYN_cyclist!L151 -> 61 | K151: =DYN_cyclist!M151 -> 67 | L151: =DYN_cyclist!N151 -> 68 | M151: =DYN_cyclist!O151 -> 69 | N151: =DYN_cyclist!P151 -> 63 | O151: 60.57781255 | P151: 53.92602485 | Q151: 50.70154963 | R151: 47.47274215 | S151: 59.93904846 | T151: 46.44540957 | U151: 52.17126827 | V151: 68.74160193
A152: =DYN_cyclist!A152 -> 164 | B152: =DYN_cyclist!D152 -> 67 | C152: =DYN_cyclist!E152 -> 60 | D152: =DYN_cyclist!F152 -> 60 | E152: =DYN_cyclist!G152 -> 61 | F152: =DYN_cyclist!H152 -> 66 | G152: =DYN_cyclist!I152 -> 64 | H152: =DYN_cyclist!J152 -> 65 | I152: =DYN_cyclist!K152 -> 53 | J152: =DYN_cyclist!L152 -> 68 | K152: =DYN_cyclist!M152 -> 69 | L152: =DYN_cyclist!N152 -> 54 | M152: =DYN_cyclist!O152 -> 55 | N152: =DYN_cyclist!P152 -> 61 | O152: 53.59791304 | P152: 47.45885435 | Q152: 56.86150349 | R152: 45.45512009 | S152: 44.92669004 | T152: 43.05531688 | U152: 48.72933348 | V152: 66.02100392
A153: =DYN_cyclist!A153 -> 165 | B153: =DYN_cyclist!D153 -> 69 | C153: =DYN_cyclist!E153 -> 53 | D153: =DYN_cyclist!F153 -> 62 | E153: =DYN_cyclist!G153 -> 61 | F153: =DYN_cyclist!H153 -> 67 | G153: =DYN_cyclist!I153 -> 66 | H153: =DYN_cyclist!J153 -> 67 | I153: =DYN_cyclist!K153 -> 62 | J153: =DYN_cyclist!L153 -> 63 | K153: =DYN_cyclist!M153 -> 63 | L153: =DYN_cyclist!N153 -> 76 | M153: =DYN_cyclist!O153 -> 68 | N153: =DYN_cyclist!P153 -> 64 | O153: 53.33442101 | P153: 43.86667894 | Q153: 49.77631317 | R153: 44.68665602 | S153: 52.68708964 | T153: 35.2185136 | U153: 52.29160583 | V153: 64.59564758
A154: =DYN_cyclist!A154 -> 166 | B154: =DYN_cyclist!D154 -> 72 | C154: =DYN_cyclist!E154 -> 61 | D154: =DYN_cyclist!F154 -> 66 | E154: =DYN_cyclist!G154 -> 63 | F154: =DYN_cyclist!H154 -> 67 | G154: =DYN_cyclist!I154 -> 71 | H154: =DYN_cyclist!J154 -> 71 | I154: =DYN_cyclist!K154 -> 64 | J154: =DYN_cyclist!L154 -> 75 | K154: =DYN_cyclist!M154 -> 76 | L154: =DYN_cyclist!N154 -> 64 | M154: =DYN_cyclist!O154 -> 71 | N154: =DYN_cyclist!P154 -> 71 | O154: 64.30183323 | P154: 53.13811061 | Q154: 68.45407153 | R154: 51.65282267 | S154: 58.24554833 | T154: 45.77002327 | U154: 56.48596212 | V154: 72.41667792
A155: =DYN_cyclist!A155 -> 167 | B155: =DYN_cyclist!D155 -> 66 | C155: =DYN_cyclist!E155 -> 80 | D155: =DYN_cyclist!F155 -> 73 | E155: =DYN_cyclist!G155 -> 74 | F155: =DYN_cyclist!H155 -> 75 | G155: =DYN_cyclist!I155 -> 75 | H155: =DYN_cyclist!J155 -> 74 | I155: =DYN_cyclist!K155 -> 52 | J155: =DYN_cyclist!L155 -> 58 | K155: =DYN_cyclist!M155 -> 65 | L155: =DYN_cyclist!N155 -> 57 | M155: =DYN_cyclist!O155 -> 69 | N155: =DYN_cyclist!P155 -> 73 | O155: 66.85597525 | P155: 74.26057809 | Q155: 47.91081442 | R155: 68.36194415 | S155: 46.88858308 | T155: 72.75180781 | U155: 51.86813817 | V155: 76.90421833
A156: =DYN_cyclist!A156 -> 169 | B156: =DYN_cyclist!D156 -> 70 | C156: =DYN_cyclist!E156 -> 71 | D156: =DYN_cyclist!F156 -> 74 | E156: =DYN_cyclist!G156 -> 67 | F156: =DYN_cyclist!H156 -> 73 | G156: =DYN_cyclist!I156 -> 71 | H156: =DYN_cyclist!J156 -> 71 | I156: =DYN_cyclist!K156 -> 55 | J156: =DYN_cyclist!L156 -> 66 | K156: =DYN_cyclist!M156 -> 71 | L156: =DYN_cyclist!N156 -> 74 | M156: =DYN_cyclist!O156 -> 69 | N156: =DYN_cyclist!P156 -> 67 | O156: 69.29390388 | P156: 64.80394659 | Q156: 57.70651873 | R156: 56.58052763 | S156: 51.94587105 | T156: 59.10669015 | U156: 56.30410484 | V156: 73.09762599
A157: =DYN_cyclist!A157 -> 170 | B157: =DYN_cyclist!D157 -> 65 | C157: =DYN_cyclist!E157 -> 62 | D157: =DYN_cyclist!F157 -> 64 | E157: =DYN_cyclist!G157 -> 62 | F157: =DYN_cyclist!H157 -> 63 | G157: =DYN_cyclist!I157 -> 61 | H157: =DYN_cyclist!J157 -> 62 | I157: =DYN_cyclist!K157 -> 56 | J157: =DYN_cyclist!L157 -> 64 | K157: =DYN_cyclist!M157 -> 65 | L157: =DYN_cyclist!N157 -> 64 | M157: =DYN_cyclist!O157 -> 56 | N157: =DYN_cyclist!P157 -> 59 | O157: 54.19953153 | P157: 49.46311503 | Q157: 50.95754852 | R157: 45.77514592 | S157: 46.53515507 | T157: 45.1460384 | U157: 47.33864489 | V157: 64.7446005
A158: =DYN_cyclist!A158 -> 171 | B158: =DYN_cyclist!D158 -> 59 | C158: =DYN_cyclist!E158 -> 50 | D158: =DYN_cyclist!F158 -> 52 | E158: =DYN_cyclist!G158 -> 64 | F158: =DYN_cyclist!H158 -> 57 | G158: =DYN_cyclist!I158 -> 54 | H158: =DYN_cyclist!J158 -> 57 | I158: =DYN_cyclist!K158 -> 68 | J158: =DYN_cyclist!L158 -> 61 | K158: =DYN_cyclist!M158 -> 63 | L158: =DYN_cyclist!N158 -> 60 | M158: =DYN_cyclist!O158 -> 62 | N158: =DYN_cyclist!P158 -> 66 | O158: 41.41021688 | P158: 35.35311497 | Q158: 46.06791532 | R158: 45.10675163 | S158: 51.45074509 | T158: 30.58732076 | U158: 38.88674989 | V158: 63.46377441
A159: =DYN_cyclist!A159 -> 172 | B159: =DYN_cyclist!D159 -> 73 | C159: =DYN_cyclist!E159 -> 53 | D159: =DYN_cyclist!F159 -> 64 | E159: =DYN_cyclist!G159 -> 56 | F159: =DYN_cyclist!H159 -> 71 | G159: =DYN_cyclist!I159 -> 67 | H159: =DYN_cyclist!J159 -> 78 | I159: =DYN_cyclist!K159 -> 65 | J159: =DYN_cyclist!L159 -> 79 | K159: =DYN_cyclist!M159 -> 78 | L159: =DYN_cyclist!N159 -> 61 | M159: =DYN_cyclist!O159 -> 64 | N159: =DYN_cyclist!P159 -> 56 | O159: 62.70210346 | P159: 46.34181217 | Q159: 73.54385949 | R159: 39.08319738 | S159: 59.14567338 | T159: 36.63692237 | U159: 56.5086683 | V159: 74.97361479
A160: =DYN_cyclist!A160 -> 173 | B160: =DYN_cyclist!D160 -> 71 | C160: =DYN_cyclist!E160 -> 62 | D160: =DYN_cyclist!F160 -> 64 | E160: =DYN_cyclist!G160 -> 71 | F160: =DYN_cyclist!H160 -> 70 | G160: =DYN_cyclist!I160 -> 66 | H160: =DYN_cyclist!J160 -> 64 | I160: =DYN_cyclist!K160 -> 67 | J160: =DYN_cyclist!L160 -> 63 | K160: =DYN_cyclist!M160 -> 69 | L160: =DYN_cyclist!N160 -> 71 | M160: =DYN_cyclist!O160 -> 59 | N160: =DYN_cyclist!P160 -> 73 | O160: 57.53333306 | P160: 51.8973456 | Q160: 53.88561961 | R160: 58.30605364 | S160: 59.26911451 | T160: 45.88513841 | U160: 55.81932529 | V160: 68.79384825
A161: =DYN_cyclist!A161 -> 174 | B161: =DYN_cyclist!D161 -> 69 | C161: =DYN_cyclist!E161 -> 66 | D161: =DYN_cyclist!F161 -> 68 | E161: =DYN_cyclist!G161 -> 67 | F161: =DYN_cyclist!H161 -> 63 | G161: =DYN_cyclist!I161 -> 68 | H161: =DYN_cyclist!J161 -> 61 | I161: =DYN_cyclist!K161 -> 61 | J161: =DYN_cyclist!L161 -> 56 | K161: =DYN_cyclist!M161 -> 69 | L161: =DYN_cyclist!N161 -> 69 | M161: =DYN_cyclist!O161 -> 72 | N161: =DYN_cyclist!P161 -> 67 | O161: 60.31103228 | P161: 56.14952988 | Q161: 48.33696247 | R161: 54.40327858 | S161: 53.7312543 | T161: 51.23140277 | U161: 53.57858382 | V161: 68.22635221
A162: =DYN_cyclist!A162 -> 175 | B162: =DYN_cyclist!D162 -> 67 | C162: =DYN_cyclist!E162 -> 69 | D162: =DYN_cyclist!F162 -> 62 | E162: =DYN_cyclist!G162 -> 60 | F162: =DYN_cyclist!H162 -> 67 | G162: =DYN_cyclist!I162 -> 65 | H162: =DYN_cyclist!J162 -> 66 | I162: =DYN_cyclist!K162 -> 54 | J162: =DYN_cyclist!L162 -> 62 | K162: =DYN_cyclist!M162 -> 62 | L162: =DYN_cyclist!N162 -> 55 | M162: =DYN_cyclist!O162 -> 58 | N162: =DYN_cyclist!P162 -> 60 | O162: 53.45015847 | P162: 55.17211028 | Q162: 48.49539049 | R162: 47.55303131 | S162: 45.24925437 | T162: 54.59451084 | U162: 49.92876018 | V162: 66.40789138
A163: =DYN_cyclist!A163 -> 177 | B163: =DYN_cyclist!D163 -> 81 | C163: =DYN_cyclist!E163 -> 60 | D163: =DYN_cyclist!F163 -> 64 | E163: =DYN_cyclist!G163 -> 62 | F163: =DYN_cyclist!H163 -> 71 | G163: =DYN_cyclist!I163 -> 67 | H163: =DYN_cyclist!J163 -> 73 | I163: =DYN_cyclist!K163 -> 68 | J163: =DYN_cyclist!L163 -> 70 | K163: =DYN_cyclist!M163 -> 75 | L163: =DYN_cyclist!N163 -> 78 | M163: =DYN_cyclist!O163 -> 68 | N163: =DYN_cyclist!P163 -> 66 | O163: 62.35229508 | P163: 51.0981447 | Q163: 66.42903946 | R163: 48.75250443 | S163: 65.91019834 | T163: 44.43382971 | U163: 69.34711676 | V163: 74.20344255
A164: =DYN_cyclist!A164 -> 178 | B164: =DYN_cyclist!D164 -> 66 | C164: =DYN_cyclist!E164 -> 71 | D164: =DYN_cyclist!F164 -> 74 | E164: =DYN_cyclist!G164 -> 67 | F164: =DYN_cyclist!H164 -> 70 | G164: =DYN_cyclist!I164 -> 67 | H164: =DYN_cyclist!J164 -> 69 | I164: =DYN_cyclist!K164 -> 58 | J164: =DYN_cyclist!L164 -> 56 | K164: =DYN_cyclist!M164 -> 62 | L164: =DYN_cyclist!N164 -> 65 | M164: =DYN_cyclist!O164 -> 62 | N164: =DYN_cyclist!P164 -> 67 | O164: 63.60849008 | P164: 63.30583317 | Q164: 44.32492739 | R164: 55.93878869 | S164: 50.15257788 | T164: 58.08809878 | U164: 50.76109497 | V164: 70.50757151
A165: =DYN_cyclist!A165 -> 179 | B165: =DYN_cyclist!D165 -> 69 | C165: =DYN_cyclist!E165 -> 68 | D165: =DYN_cyclist!F165 -> 69 | E165: =DYN_cyclist!G165 -> 70 | F165: =DYN_cyclist!H165 -> 66 | G165: =DYN_cyclist!I165 -> 70 | H165: =DYN_cyclist!J165 -> 66 | I165: =DYN_cyclist!K165 -> 62 | J165: =DYN_cyclist!L165 -> 65 | K165: =DYN_cyclist!M165 -> 70 | L165: =DYN_cyclist!N165 -> 72 | M165: =DYN_cyclist!O165 -> 67 | N165: =DYN_cyclist!P165 -> 68 | O165: 63.30134231 | P165: 59.49250666 | Q165: 55.75789563 | R165: 58.0779484 | S165: 55.44016585 | T165: 54.32953228 | U165: 54.27592854 | V165: 69.97385553
A166: =DYN_cyclist!A166 -> 180 | B166: =DYN_cyclist!D166 -> 63 | C166: =DYN_cyclist!E166 -> 69 | D166: =DYN_cyclist!F166 -> 66 | E166: =DYN_cyclist!G166 -> 60 | F166: =DYN_cyclist!H166 -> 63 | G166: =DYN_cyclist!I166 -> 65 | H166: =DYN_cyclist!J166 -> 67 | I166: =DYN_cyclist!K166 -> 60 | J166: =DYN_cyclist!L166 -> 60 | K166: =DYN_cyclist!M166 -> 65 | L166: =DYN_cyclist!N166 -> 62 | M166: =DYN_cyclist!O166 -> 65 | N166: =DYN_cyclist!P166 -> 60 | O166: 56.60340955 | P166: 56.82648414 | Q166: 47.87546337 | R166: 47.40368952 | S166: 49.54473888 | T166: 54.95250266 | U166: 46.06382536 | V166: 67.43632909
A167: =DYN_cyclist!A167 -> 182 | B167: =DYN_cyclist!D167 -> 70 | C167: =DYN_cyclist!E167 -> 52 | D167: =DYN_cyclist!F167 -> 58 | E167: =DYN_cyclist!G167 -> 69 | F167: =DYN_cyclist!H167 -> 64 | G167: =DYN_cyclist!I167 -> 65 | H167: =DYN_cyclist!J167 -> 65 | I167: =DYN_cyclist!K167 -> 61 | J167: =DYN_cyclist!L167 -> 71 | K167: =DYN_cyclist!M167 -> 71 | L167: =DYN_cyclist!N167 -> 58 | M167: =DYN_cyclist!O167 -> 56 | N167: =DYN_cyclist!P167 -> 74 | O167: 53.1347901 | P167: 42.42226178 | Q167: 60.97821258 | R167: 53.95527113 | S167: 51.95119425 | T167: 34.15077251 | U167: 52.07685836 | V167: 68.15293877
A168: =DYN_cyclist!A168 -> 183 | B168: =DYN_cyclist!D168 -> 72 | C168: =DYN_cyclist!E168 -> 77 | D168: =DYN_cyclist!F168 -> 77 | E168: =DYN_cyclist!G168 -> 68 | F168: =DYN_cyclist!H168 -> 71 | G168: =DYN_cyclist!I168 -> 73 | H168: =DYN_cyclist!J168 -> 74 | I168: =DYN_cyclist!K168 -> 63 | J168: =DYN_cyclist!L168 -> 64 | K168: =DYN_cyclist!M168 -> 70 | L168: =DYN_cyclist!N168 -> 73 | M168: =DYN_cyclist!O168 -> 78 | N168: =DYN_cyclist!P168 -> 71 | O168: 73.01705923 | P168: 72.3824698 | Q168: 56.11398342 | R168: 61.42257645 | S168: 59.44050531 | T168: 68.47349526 | U168: 59.97227009 | V168: 75.95633589
A169: =DYN_cyclist!A169 -> 184 | B169: =DYN_cyclist!D169 -> 66 | C169: =DYN_cyclist!E169 -> 59 | D169: =DYN_cyclist!F169 -> 62 | E169: =DYN_cyclist!G169 -> 68 | F169: =DYN_cyclist!H169 -> 64 | G169: =DYN_cyclist!I169 -> 63 | H169: =DYN_cyclist!J169 -> 66 | I169: =DYN_cyclist!K169 -> 52 | J169: =DYN_cyclist!L169 -> 53 | K169: =DYN_cyclist!M169 -> 61 | L169: =DYN_cyclist!N169 -> 67 | M169: =DYN_cyclist!O169 -> 69 | N169: =DYN_cyclist!P169 -> 68 | O169: 50.79325888 | P169: 47.75935045 | Q169: 41.18454591 | R169: 52.58326516 | S169: 43.17425347 | T169: 41.61828017 | U169: 48.48782701 | V169: 64.63084462
A170: =DYN_cyclist!A170 -> 186 | B170: =DYN_cyclist!D170 -> 68 | C170: =DYN_cyclist!E170 -> 69 | D170: =DYN_cyclist!F170 -> 68 | E170: =DYN_cyclist!G170 -> 59 | F170: =DYN_cyclist!H170 -> 67 | G170: =DYN_cyclist!I170 -> 71 | H170: =DYN_cyclist!J170 -> 68 | I170: =DYN_cyclist!K170 -> 60 | J170: =DYN_cyclist!L170 -> 68 | K170: =DYN_cyclist!M170 -> 70 | L170: =DYN_cyclist!N170 -> 65 | M170: =DYN_cyclist!O170 -> 68 | N170: =DYN_cyclist!P170 -> 59 | O170: 63.07929944 | P170: 59.22402534 | Q170: 58.01685752 | R170: 47.3098483 | S170: 53.04226028 | T170: 55.79607929 | U170: 52.39261456 | V170: 69.84770201
A171: =DYN_cyclist!A171 -> 187 | B171: =DYN_cyclist!D171 -> 57 | C171: =DYN_cyclist!E171 -> 70 | D171: =DYN_cyclist!F171 -> 70 | E171: =DYN_cyclist!G171 -> 51 | F171: =DYN_cyclist!H171 -> 66 | G171: =DYN_cyclist!I171 -> 61 | H171: =DYN_cyclist!J171 -> 64 | I171: =DYN_cyclist!K171 -> 61 | J171: =DYN_cyclist!L171 -> 56 | K171: =DYN_cyclist!M171 -> 57 | L171: =DYN_cyclist!N171 -> 60 | M171: =DYN_cyclist!O171 -> 62 | N171: =DYN_cyclist!P171 -> 53 | O171: 56.02827005 | P171: 57.19651474 | Q171: 39.99069083 | R171: 39.25845859 | S171: 47.51123447 | T171: 55.64859705 | U171: 39.77068018 | V171: 67.55621565
A172: =DYN_cyclist!A172 -> 188 | B172: =DYN_cyclist!D172 -> 71 | C172: =DYN_cyclist!E172 -> 71 | D172: =DYN_cyclist!F172 -> 72 | E172: =DYN_cyclist!G172 -> 69 | F172: =DYN_cyclist!H172 -> 71 | G172: =DYN_cyclist!I172 -> 73 | H172: =DYN_cyclist!J172 -> 68 | I172: =DYN_cyclist!K172 -> 71 | J172: =DYN_cyclist!L172 -> 71 | K172: =DYN_cyclist!M172 -> 76 | L172: =DYN_cyclist!N172 -> 67 | M172: =DYN_cyclist!O172 -> 80 | N172: =DYN_cyclist!P172 -> 69 | O172: 70.50371736 | P172: 64.41380296 | Q172: 65.12796536 | R172: 59.15925841 | S172: 65.87071678 | T172: 59.43708927 | U172: 57.50483052 | V172: 73.81776154
A173: =DYN_cyclist!A173 -> 189 | B173: =DYN_cyclist!D173 -> 72 | C173: =DYN_cyclist!E173 -> 81 | D173: =DYN_cyclist!F173 -> 77 | E173: =DYN_cyclist!G173 -> 75 | F173: =DYN_cyclist!H173 -> 79 | G173: =DYN_cyclist!I173 -> 78 | H173: =DYN_cyclist!J173 -> 81 | I173: =DYN_cyclist!K173 -> 56 | J173: =DYN_cyclist!L173 -> 63 | K173: =DYN_cyclist!M173 -> 69 | L173: =DYN_cyclist!N173 -> 76 | M173: =DYN_cyclist!O173 -> 64 | N173: =DYN_cyclist!P173 -> 75 | O173: 74.34105259 | P173: 79.04271311 | Q173: 55.26169061 | R173: 71.05122735 | S173: 54.8571594 | T173: 75.3969725 | U173: 61.04465648 | V173: 79.17659205
A174: =DYN_cyclist!A174 -> 190 | B174: =DYN_cyclist!D174 -> 71 | C174: =DYN_cyclist!E174 -> 69 | D174: =DYN_cyclist!F174 -> 71 | E174: =DYN_cyclist!G174 -> 61 | F174: =DYN_cyclist!H174 -> 72 | G174: =DYN_cyclist!I174 -> 71 | H174: =DYN_cyclist!J174 -> 68 | I174: =DYN_cyclist!K174 -> 72 | J174: =DYN_cyclist!L174 -> 57 | K174: =DYN_cyclist!M174 -> 71 | L174: =DYN_cyclist!N174 -> 67 | M174: =DYN_cyclist!O174 -> 80 | N174: =DYN_cyclist!P174 -> 61 | O174: 65.52947244 | P174: 60.86680499 | Q174: 50.98006589 | R174: 49.44572321 | S174: 65.43885662 | T174: 56.13747515 | U174: 56.98861564 | V174: 71.60737822
A175: =DYN_cyclist!A175 -> 191 | B175: =DYN_cyclist!D175 -> 68 | C175: =DYN_cyclist!E175 -> 69 | D175: =DYN_cyclist!F175 -> 70 | E175: =DYN_cyclist!G175 -> 63 | F175: =DYN_cyclist!H175 -> 67 | G175: =DYN_cyclist!I175 -> 68 | H175: =DYN_cyclist!J175 -> 67 | I175: =DYN_cyclist!K175 -> 63 | J175: =DYN_cyclist!L175 -> 64 | K175: =DYN_cyclist!M175 -> 64 | L175: =DYN_cyclist!N175 -> 71 | M175: =DYN_cyclist!O175 -> 70 | N175: =DYN_cyclist!P175 -> 64 | O175: 61.95679744 | P175: 59.49330626 | Q175: 51.39155675 | R175: 51.37077848 | S175: 54.89996285 | T175: 55.33939971 | U175: 53.00905878 | V175: 69.3296299
A176: =DYN_cyclist!A176 -> 192 | B176: =DYN_cyclist!D176 -> 72 | C176: =DYN_cyclist!E176 -> 53 | D176: =DYN_cyclist!F176 -> 65 | E176: =DYN_cyclist!G176 -> 67 | F176: =DYN_cyclist!H176 -> 69 | G176: =DYN_cyclist!I176 -> 74 | H176: =DYN_cyclist!J176 -> 70 | I176: =DYN_cyclist!K176 -> 51 | J176: =DYN_cyclist!L176 -> 79 | K176: =DYN_cyclist!M176 -> 78 | L176: =DYN_cyclist!N176 -> 53 | M176: =DYN_cyclist!O176 -> 64 | N176: =DYN_cyclist!P176 -> 73 | O176: 64.73782816 | P176: 48.30354024 | Q176: 73.40587847 | R176: 53.44670128 | S176: 47.84278425 | T176: 36.66880782 | U176: 54.95986779 | V176: 74.95497226
A177: =DYN_cyclist!A177 -> 193 | B177: =DYN_cyclist!D177 -> 66 | C177: =DYN_cyclist!E177 -> 75 | D177: =DYN_cyclist!F177 -> 75 | E177: =DYN_cyclist!G177 -> 66 | F177: =DYN_cyclist!H177 -> 72 | G177: =DYN_cyclist!I177 -> 69 | H177: =DYN_cyclist!J177 -> 72 | I177: =DYN_cyclist!K177 -> 57 | J177: =DYN_cyclist!L177 -> 60 | K177: =DYN_cyclist!M177 -> 66 | L177: =DYN_cyclist!N177 -> 72 | M177: =DYN_cyclist!O177 -> 72 | N177: =DYN_cyclist!P177 -> 65 | O177: 67.33610186 | P177: 68.09378067 | Q177: 49.5463503 | R177: 56.23165657 | S177: 51.15911253 | T177: 64.65874089 | U177: 51.89837843 | V177: 73.7450492
A178: =DYN_cyclist!A178 -> 194 | B178: =DYN_cyclist!D178 -> 68 | C178: =DYN_cyclist!E178 -> 56 | D178: =DYN_cyclist!F178 -> 63 | E178: =DYN_cyclist!G178 -> 61 | F178: =DYN_cyclist!H178 -> 66 | G178: =DYN_cyclist!I178 -> 68 | H178: =DYN_cyclist!J178 -> 64 | I178: =DYN_cyclist!K178 -> 71 | J178: =DYN_cyclist!L178 -> 70 | K178: =DYN_cyclist!M178 -> 70 | L178: =DYN_cyclist!N178 -> 66 | M178: =DYN_cyclist!O178 -> 68 | N178: =DYN_cyclist!P178 -> 61 | O178: 57.47639455 | P178: 46.54835518 | Q178: 59.25464468 | R178: 44.75895755 | S178: 61.11347503 | T178: 38.87409359 | U178: 51.0316986 | V178: 69.72320957
A179: =DYN_cyclist!A179 -> 195 | B179: =DYN_cyclist!D179 -> 64 | C179: =DYN_cyclist!E179 -> 69 | D179: =DYN_cyclist!F179 -> 70 | E179: =DYN_cyclist!G179 -> 60 | F179: =DYN_cyclist!H179 -> 67 | G179: =DYN_cyclist!I179 -> 67 | H179: =DYN_cyclist!J179 -> 68 | I179: =DYN_cyclist!K179 -> 60 | J179: =DYN_cyclist!L179 -> 61 | K179: =DYN_cyclist!M179 -> 63 | L179: =DYN_cyclist!N179 -> 65 | M179: =DYN_cyclist!O179 -> 62 | N179: =DYN_cyclist!P179 -> 60 | O179: 60.28247649 | P179: 59.00985537 | Q179: 47.84623785 | R179: 47.67236115 | S179: 50.43691316 | T179: 55.12225836 | U179: 47.75473434 | V179: 68.53316606
A180: =DYN_cyclist!A180 -> 196 | B180: =DYN_cyclist!D180 -> 67 | C180: =DYN_cyclist!E180 -> 70 | D180: =DYN_cyclist!F180 -> 69 | E180: =DYN_cyclist!G180 -> 66 | F180: =DYN_cyclist!H180 -> 70 | G180: =DYN_cyclist!I180 -> 70 | H180: =DYN_cyclist!J180 -> 71 | I180: =DYN_cyclist!K180 -> 58 | J180: =DYN_cyclist!L180 -> 62 | K180: =DYN_cyclist!M180 -> 68 | L180: =DYN_cyclist!N180 -> 70 | M180: =DYN_cyclist!O180 -> 67 | N180: =DYN_cyclist!P180 -> 66 | O180: 62.40049378 | P180: 61.22164318 | Q180: 52.09832765 | R180: 54.85676069 | S180: 51.33620773 | T180: 57.21050539 | U180: 51.88434944 | V180: 69.74450624
A181: =DYN_cyclist!A181 -> 197 | B181: =DYN_cyclist!D181 -> 66 | C181: =DYN_cyclist!E181 -> 64 | D181: =DYN_cyclist!F181 -> 67 | E181: =DYN_cyclist!G181 -> 64 | F181: =DYN_cyclist!H181 -> 65 | G181: =DYN_cyclist!I181 -> 66 | H181: =DYN_cyclist!J181 -> 68 | I181: =DYN_cyclist!K181 -> 61 | J181: =DYN_cyclist!L181 -> 64 | K181: =DYN_cyclist!M181 -> 68 | L181: =DYN_cyclist!N181 -> 67 | M181: =DYN_cyclist!O181 -> 70 | N181: =DYN_cyclist!P181 -> 64 | O181: 59.2211531 | P181: 54.0991384 | Q181: 53.06670951 | R181: 50.07782314 | S181: 52.16669548 | T181: 48.6270552 | U181: 49.51682746 | V181: 67.49121023
A182: =DYN_cyclist!A182 -> 198 | B182: =DYN_cyclist!D182 -> 66 | C182: =DYN_cyclist!E182 -> 63 | D182: =DYN_cyclist!F182 -> 69 | E182: =DYN_cyclist!G182 -> 61 | F182: =DYN_cyclist!H182 -> 67 | G182: =DYN_cyclist!I182 -> 67 | H182: =DYN_cyclist!J182 -> 66 | I182: =DYN_cyclist!K182 -> 64 | J182: =DYN_cyclist!L182 -> 61 | K182: =DYN_cyclist!M182 -> 67 | L182: =DYN_cyclist!N182 -> 68 | M182: =DYN_cyclist!O182 -> 70 | N182: =DYN_cyclist!P182 -> 61 | O182: 60.45186423 | P182: 53.87128295 | Q182: 50.22488314 | R182: 46.71635825 | S182: 54.7932265 | T182: 47.33103453 | U182: 49.6840842 | V182: 68.13867533
A183: =DYN_cyclist!A183 -> 199 | B183: =DYN_cyclist!D183 -> 66 | C183: =DYN_cyclist!E183 -> 68 | D183: =DYN_cyclist!F183 -> 72 | E183: =DYN_cyclist!G183 -> 56 | F183: =DYN_cyclist!H183 -> 70 | G183: =DYN_cyclist!I183 -> 69 | H183: =DYN_cyclist!J183 -> 69 | I183: =DYN_cyclist!K183 -> 55 | J183: =DYN_cyclist!L183 -> 58 | K183: =DYN_cyclist!M183 -> 69 | L183: =DYN_cyclist!N183 -> 62 | M183: =DYN_cyclist!O183 -> 58 | N183: =DYN_cyclist!P183 -> 57 | O183: 64.01536677 | P183: 59.51769408 | Q183: 49.47010525 | R183: 44.0264109 | S183: 48.59335588 | T183: 54.26992467 | U183: 49.77963721 | V183: 70.21649949
A184: =DYN_cyclist!A184 -> 200 | B184: =DYN_cyclist!D184 -> 69 | C184: =DYN_cyclist!E184 -> 65 | D184: =DYN_cyclist!F184 -> 69 | E184: =DYN_cyclist!G184 -> 68 | F184: =DYN_cyclist!H184 -> 65 | G184: =DYN_cyclist!I184 -> 70 | H184: =DYN_cyclist!J184 -> 60 | I184: =DYN_cyclist!K184 -> 60 | J184: =DYN_cyclist!L184 -> 67 | K184: =DYN_cyclist!M184 -> 69 | L184: =DYN_cyclist!N184 -> 60 | M184: =DYN_cyclist!O184 -> 63 | N184: =DYN_cyclist!P184 -> 70 | O184: 62.80646188 | P184: 56.2393927 | Q184: 56.6347334 | R184: 56.15488555 | S184: 52.64101874 | T184: 49.87938088 | U184: 53.04116958 | V184: 69.42888608
A185: =DYN_cyclist!A185 -> 202 | B185: =DYN_cyclist!D185 -> 68 | C185: =DYN_cyclist!E185 -> 60 | D185: =DYN_cyclist!F185 -> 60 | E185: =DYN_cyclist!G185 -> 69 | F185: =DYN_cyclist!H185 -> 64 | G185: =DYN_cyclist!I185 -> 69 | H185: =DYN_cyclist!J185 -> 63 | I185: =DYN_cyclist!K185 -> 60 | J185: =DYN_cyclist!L185 -> 60 | K185: =DYN_cyclist!M185 -> 60 | L185: =DYN_cyclist!N185 -> 70 | M185: =DYN_cyclist!O185 -> 61 | N185: =DYN_cyclist!P185 -> 68 | O185: 51.31578651 | P185: 48.72702107 | Q185: 45.86884018 | R185: 54.46116647 | S185: 49.89145503 | T185: 42.90516146 | U185: 51.34345393 | V185: 65.65559287
A186: =DYN_cyclist!A186 -> 203 | B186: =DYN_cyclist!D186 -> 71 | C186: =DYN_cyclist!E186 -> 72 | D186: =DYN_cyclist!F186 -> 70 | E186: =DYN_cyclist!G186 -> 67 | F186: =DYN_cyclist!H186 -> 69 | G186: =DYN_cyclist!I186 -> 68 | H186: =DYN_cyclist!J186 -> 70 | I186: =DYN_cyclist!K186 -> 66 | J186: =DYN_cyclist!L186 -> 67 | K186: =DYN_cyclist!M186 -> 69 | L186: =DYN_cyclist!N186 -> 70 | M186: =DYN_cyclist!O186 -> 71 | N186: =DYN_cyclist!P186 -> 68 | O186: 64.65981895 | P186: 63.02766438 | Q186: 57.36503217 | R186: 56.9728191 | S186: 59.72030702 | T186: 60.0720197 | U186: 57.20887079 | V186: 70.96831188
A187: =DYN_cyclist!A187 -> 204 | B187: =DYN_cyclist!D187 -> 64 | C187: =DYN_cyclist!E187 -> 52 | D187: =DYN_cyclist!F187 -> 57 | E187: =DYN_cyclist!G187 -> 61 | F187: =DYN_cyclist!H187 -> 62 | G187: =DYN_cyclist!I187 -> 61 | H187: =DYN_cyclist!J187 -> 62 | I187: =DYN_cyclist!K187 -> 55 | J187: =DYN_cyclist!L187 -> 66 | K187: =DYN_cyclist!M187 -> 66 | L187: =DYN_cyclist!N187 -> 61 | M187: =DYN_cyclist!O187 -> 65 | N187: =DYN_cyclist!P187 -> 66 | O187: 48.67623672 | P187: 39.89706125 | Q187: 52.66389183 | R187: 44.33780291 | S187: 44.12894476 | T187: 33.54679432 | U187: 44.66866827 | V187: 63.45699476
A188: =DYN_cyclist!A188 -> 205 | B188: =DYN_cyclist!D188 -> 72 | C188: =DYN_cyclist!E188 -> 68 | D188: =DYN_cyclist!F188 -> 66 | E188: =DYN_cyclist!G188 -> 78 | F188: =DYN_cyclist!H188 -> 74 | G188: =DYN_cyclist!I188 -> 74 | H188: =DYN_cyclist!J188 -> 70 | I188: =DYN_cyclist!K188 -> 58 | J188: =DYN_cyclist!L188 -> 65 | K188: =DYN_cyclist!M188 -> 71 | L188: =DYN_cyclist!N188 -> 58 | M188: =DYN_cyclist!O188 -> 63 | N188: =DYN_cyclist!P188 -> 79 | O188: 62.69907482 | P188: 60.672379 | Q188: 57.27505485 | R188: 72.1085829 | S188: 52.85976019 | T188: 54.67360132 | U188: 57.4216438 | V188: 74.91225234
A189: =DYN_cyclist!A189 -> 206 | B189: =DYN_cyclist!D189 -> 67 | C189: =DYN_cyclist!E189 -> 69 | D189: =DYN_cyclist!F189 -> 67 | E189: =DYN_cyclist!G189 -> 62 | F189: =DYN_cyclist!H189 -> 68 | G189: =DYN_cyclist!I189 -> 67 | H189: =DYN_cyclist!J189 -> 64 | I189: =DYN_cyclist!K189 -> 57 | J189: =DYN_cyclist!L189 -> 60 | K189: =DYN_cyclist!M189 -> 67 | L189: =DYN_cyclist!N189 -> 61 | M189: =DYN_cyclist!O189 -> 59 | N189: =DYN_cyclist!P189 -> 61 | O189: 59.08637844 | P189: 57.73639899 | Q189: 49.83084398 | R189: 49.51701956 | S189: 49.31491537 | T189: 55.08337991 | U189: 50.76478407 | V189: 67.86016866
A190: =DYN_cyclist!A190 -> 207 | B190: =DYN_cyclist!D190 -> 70 | C190: =DYN_cyclist!E190 -> 71 | D190: =DYN_cyclist!F190 -> 72 | E190: =DYN_cyclist!G190 -> 74 | F190: =DYN_cyclist!H190 -> 74 | G190: =DYN_cyclist!I190 -> 70 | H190: =DYN_cyclist!J190 -> 71 | I190: =DYN_cyclist!K190 -> 58 | J190: =DYN_cyclist!L190 -> 63 | K190: =DYN_cyclist!M190 -> 66 | L190: =DYN_cyclist!N190 -> 67 | M190: =DYN_cyclist!O190 -> 65 | N190: =DYN_cyclist!P190 -> 74 | O190: 65.30595851 | P190: 64.28079246 | Q190: 52.48927277 | R190: 64.74778288 | S190: 52.50714904 | T190: 58.61157464 | U190: 55.95499083 | V190: 71.50830973
A191: =DYN_cyclist!A191 -> 208 | B191: =DYN_cyclist!D191 -> 65 | C191: =DYN_cyclist!E191 -> 69 | D191: =DYN_cyclist!F191 -> 66 | E191: =DYN_cyclist!G191 -> 68 | F191: =DYN_cyclist!H191 -> 66 | G191: =DYN_cyclist!I191 -> 64 | H191: =DYN_cyclist!J191 -> 65 | I191: =DYN_cyclist!K191 -> 56 | J191: =DYN_cyclist!L191 -> 63 | K191: =DYN_cyclist!M191 -> 67 | L191: =DYN_cyclist!N191 -> 63 | M191: =DYN_cyclist!O191 -> 74 | N191: =DYN_cyclist!P191 -> 68 | O191: 58.01082042 | P191: 57.36858266 | Q191: 51.69919978 | R191: 55.96583894 | S191: 47.71479593 | T191: 55.06268989 | U191: 48.60525486 | V191: 67.35524963
A192: =DYN_cyclist!A192 -> 209 | B192: =DYN_cyclist!D192 -> 69 | C192: =DYN_cyclist!E192 -> 62 | D192: =DYN_cyclist!F192 -> 68 | E192: =DYN_cyclist!G192 -> 58 | F192: =DYN_cyclist!H192 -> 72 | G192: =DYN_cyclist!I192 -> 70 | H192: =DYN_cyclist!J192 -> 69 | I192: =DYN_cyclist!K192 -> 71 | J192: =DYN_cyclist!L192 -> 68 | K192: =DYN_cyclist!M192 -> 69 | L192: =DYN_cyclist!N192 -> 54 | M192: =DYN_cyclist!O192 -> 63 | N192: =DYN_cyclist!P192 -> 65 | O192: 62.17901337 | P192: 53.56334442 | Q192: 57.5964894 | R192: 46.09757702 | S192: 61.82866302 | T192: 46.35743559 | U192: 52.57743351 | V192: 69.72098962
A193: =DYN_cyclist!A193 -> 210 | B193: =DYN_cyclist!D193 -> 70 | C193: =DYN_cyclist!E193 -> 57 | D193: =DYN_cyclist!F193 -> 63 | E193: =DYN_cyclist!G193 -> 60 | F193: =DYN_cyclist!H193 -> 65 | G193: =DYN_cyclist!I193 -> 66 | H193: =DYN_cyclist!J193 -> 63 | I193: =DYN_cyclist!K193 -> 50 | J193: =DYN_cyclist!L193 -> 61 | K193: =DYN_cyclist!M193 -> 63 | L193: =DYN_cyclist!N193 -> 68 | M193: =DYN_cyclist!O193 -> 53 | N193: =DYN_cyclist!P193 -> 61 | O193: 53.83315214 | P193: 46.39510863 | Q193: 48.44650795 | R193: 44.19088433 | S193: 43.85852332 | T193: 39.34373265 | U193: 52.94405779 | V193: 64.77559252
A194: =DYN_cyclist!A194 -> 211 | B194: =DYN_cyclist!D194 -> 69 | C194: =DYN_cyclist!E194 -> 62 | D194: =DYN_cyclist!F194 -> 70 | E194: =DYN_cyclist!G194 -> 66 | F194: =DYN_cyclist!H194 -> 68 | G194: =DYN_cyclist!I194 -> 70 | H194: =DYN_cyclist!J194 -> 67 | I194: =DYN_cyclist!K194 -> 66 | J194: =DYN_cyclist!L194 -> 70 | K194: =DYN_cyclist!M194 -> 71 | L194: =DYN_cyclist!N194 -> 70 | M194: =DYN_cyclist!O194 -> 69 | N194: =DYN_cyclist!P194 -> 67 | O194: 64.79558873 | P194: 54.97433212 | Q194: 60.36681382 | R194: 52.54914271 | S194: 58.7334723 | T194: 46.57829772 | U194: 53.62285307 | V194: 70.7272178
A195: =DYN_cyclist!A195 -> 212 | B195: =DYN_cyclist!D195 -> 68 | C195: =DYN_cyclist!E195 -> 58 | D195: =DYN_cyclist!F195 -> 60 | E195: =DYN_cyclist!G195 -> 60 | F195: =DYN_cyclist!H195 -> 70 | G195: =DYN_cyclist!I195 -> 65 | H195: =DYN_cyclist!J195 -> 76 | I195: =DYN_cyclist!K195 -> 60 | J195: =DYN_cyclist!L195 -> 78 | K195: =DYN_cyclist!M195 -> 78 | L195: =DYN_cyclist!N195 -> 60 | M195: =DYN_cyclist!O195 -> 67 | N195: =DYN_cyclist!P195 -> 70 | O195: =((($B195*5)^2+($C195*4)^2+($D195*12)^2+($E195*0)^2+($F195*3)^2+($G195*6)^2+($H195*0)^2+($I195*0)^2+($J195*5)^2+($K195*7)^2+($L195*1)^2+($M195*2)^2)+($N195*0)^2)/2106025*91.12 -> 58.66033476 | P195: =((($B195*2)^2+($C195*14)^2+($D195*10)^2+($E195*5)^2+($F195*2)^2+($G195*7)^2+($H195*5)^2+($I195*0)^2+($J195*0)^2+($K195*3)^2+($L195*0)^2+($M195*0)^2)+($N195*0)^2)/2958326.56*90.98 -> 47.77986328 | Q195: =((($B195*5)^2+($C195*2)^2+($D195*1)^2+($E195*0)^2+($F195*2)^2+($G195*1)^2+($H195*1)^2+($I195*0)^2+($J195*10.75)^2+($K195*9)^2+($L195*0)^2+($M195*0)^2)+($N195*1)^2)/1715576.56*IF(B195>77,92,IF(B195>75,92-0.5,IF(B195>73,92-0.88,92-1.65))) -> 71.78400574 | R195: =IF(AND(E195>75,C195<76),((($B195*2)^2+($C195*6)^2+($D195*0)^2+($E195*11)^2+($F195*0)^2+($G195*3.5)^2+($H195*0)^2+($I195*0)^2+($J195*0)^2+($K195*0)^2+($L195*0)^2+($M195*0)^2)+($N195*6)^2)/1482831.25*87.08+0.75,IF(AND(E195>75,C195<80),((($B195*2)^2+($C195*6)^2+($D195*0)^2+($E195*11)^2+($F195*0)^2+($G195*3.5)^2+($H195*0)^2+($I195*0)^2+($J195*0)^2+($K195*0)^2+($L195*0)^2+($M195*0)^2)+($N195*6)^2)/1482831.25*87.08+0.5,((($B195*2)^2+($C195*6)^2+($D195*0)^2+($E195*9)^2+($F195*0)^2+($G195*3.5)^2+($H195*0)^2+($I195*0)^2+($J195*0)^2+($K195*0)^2+($L195*0)^2+($M195*0)^2)+($N195*6)^2)/1212831.25*87.08))+IF(AND(E195>81.99,C195<74),4,IF(AND(E195>80.99,C195<74),2.5,IF(AND(E195>79.99,C195<74),1.5,0))) -> 47.34108084 | S195: =((($B195*7)^2+($C195*3)^2+($D195*4)^2+($E195*0)^2+($F195*2.5)^2+($G195*2)^2+($H195*0)^2+($I195*11)^2+($J195*1)^2+($K195*5)^2+($L195*3)^2+($M195*0)^2)+($N195*0)^2)/1680031.25*91.49-IF(I195<74,1,IF(I195<75,0.8,IF(I195<76,0.7,IF(I195<77,0.6,IF(I195<77,0.4,IF(I195<78,0.3,IF(I195<79,0.2,0))))))) -> 52.81260015 | T195: =IF(AND(C195>81,D195>75,B195>70,E195>72,F195>77,G195>77),((($B195*1)^2+($C195*14.5)^2+($D195*2)^2+($E195*0)^2+($F195*1)^2+($G195*3)^2+($H195*2.5)^2+($I195*0)^2+($J195*0)^2+($K195*3)^2+($L195*1)^2+($M195*1.25)^2)+($N195*0)^2)/1693126.56*81.55+1,IF(AND(C195>75,D195<74,(C195-D195)>7.9),((($B195*1)^2+($C195*14.5)^2+($D195*2)^2+($E195*0)^2+($F195*1)^2+($G195*3)^2+($H195*2.5)^2+($I195*0)^2+($J195*0)^2+($K195*3)^2+($L195*1)^2+($M195*1.25)^2)+($N195*0)^2)/1693126.56*81.55-1.25,((($B195*1)^2+($C195*14.5)^2+($D195*2)^2+($E195*0)^2+($F195*1)^2+($G195*3)^2+($H195*2.5)^2+($I195*0)^2+($J195*0)^2+($K195*3)^2+($L195*1)^2+($M195*1.25)^2)+($N195*0)^2)/1693126.56*81.55)) -> 41.9375561 | U195: =((($B195*13)^2+($C195*4)^2+($D195*3)^2+($E195*2)^2+($F195*2)^2+($G195*2)^2+($H195*0)^2+($I195*2)^2+($J195*0)^2+($K195*0)^2+($L195*3)^2+($M195*1)^2)+($N195*0)^2)/1569500*81.55 -> 50.39363934 | V195: =IF(AND(O195>79.99,P195>79.99),((LARGE(O195:U195,1)*9)^2+(LARGE(O195:U195,2)*4.5)^2+(LARGE(O195:U195,3)*2)^2)^(1/4)*2.81072986218,IF(AND(R195>79.99,P195>79.99),((LARGE(O195:U195,1)*9)^2+(LARGE(O195:U195,2)*4.5)^2+(LARGE(O195:U195,3)*2)^2)^(1/4)*2.80272986218,IF(AND(LARGE(O195:U195,1)=Q195,Q195>79,O195>77),((LARGE(O195:U195,1)*9)^2+(LARGE(O195:U195,2)*4.5)^2+(LARGE(O195:U195,3)*2)^2)^(1/4)*2.78572986218,IF(AND(LARGE(O195:U195,1)=O195,O195>79,T195<70),((LARGE(O195:U195,1)*9)^2+(LARGE(O195:U195,2)*4.5)^2+(LARGE(O195:U195,3)*2)^2)^(1/4)*2.78572986218,IF(AND(LARGE(O195:U195,1)=O195,O195<77,T195<70,R195<70,Q195<70,P195<70,S195<72),((LARGE(O195:U195,1)*9)^2+(LARGE(O195:U195,2)*4.5)^2+(LARGE(O195:U195,3)*2)^2)^(1/4)*2.76572986218,IF(AND(LARGE(O195:U195,1)=O195,O195<77,T195<70,S195<71,R195<70,P195<68),((LARGE(O195:U195,1)*9)^2+(LARGE(O195:U195,2)*4.5)^2+(LARGE(O195:U195,3)*2)^2)^(1/4)*2.75572986218,IF(AND(LARGE(O195:U195,1)=O195,O195<78,T195<70,R195<70,S195<71),((LARGE(O195:U195,1)*9)^2+(LARGE(O195:U195,2)*4.5)^2+(LARGE(O195:U195,3)*2)^2)^(1/4)*2.78072986218,IF(AND(LARGE(O195:U195,1)=O195,O195<79,T195<70,R195<70),((LARGE(O195:U195,1)*9)^2+(LARGE(O195:U195,2)*4.5)^2+(LARGE(O195:U195,3)*2)^2)^(1/4)*2.79572986218,IF(LARGE(O195:U195,1)=Q195,((LARGE(O195:U195,1)*9)^2+(LARGE(O195:U195,2)*3.5)^2+(LARGE(O195:U195,3)*2)^2)^(1/4)*2.80572986218,(((LARGE(O195:U195,1)*9)^2+(LARGE(O195:U195,2)*4.5)^2+(LARGE(O195:U195,3)*2)^2))^(1/4)*2.79572986218+IF(AND(LARGE(O195:U195,1)=O195,R195>70),1,0)))))))))+IF(AND(LARGE(O195:U195,1)=Q195,O195<78,J195>80),((B195+J195)^2/35000),IF(AND(LARGE(O195:U195,1)=Q195,O195<78,J195>79),((B195+J195)^2/45000),IF(AND(LARGE(O195:U195,1)=Q195,O195<78,J195>78),((B195+J195)^2/65000),0)))) -> 73.49053221
A196: =DYN_cyclist!A196 -> 213 | B196: =DYN_cyclist!D196 -> 67 | C196: =DYN_cyclist!E196 -> 61 | D196: =DYN_cyclist!F196 -> 64 | E196: =DYN_cyclist!G196 -> 60 | F196: =DYN_cyclist!H196 -> 68 | G196: =DYN_cyclist!I196 -> 68 | H196: =DYN_cyclist!J196 -> 67 | I196: =DYN_cyclist!K196 -> 69 | J196: =DYN_cyclist!L196 -> 66 | K196: =DYN_cyclist!M196 -> 69 | L196: =DYN_cyclist!N196 -> 65 | M196: =DYN_cyclist!O196 -> 64 | N196: =DYN_cyclist!P196 -> 62 | O196: 57.65080118 | P196: 50.65218278 | Q196: 55.3866997 | R196: 45.84649612 | S196: 59.11374777 | T196: 44.84112778 | U196: 50.27563995 | V196: 68.60552637
A197: =DYN_cyclist!A197 -> 214 | B197: =DYN_cyclist!D197 -> 68 | C197: =DYN_cyclist!E197 -> 69 | D197: =DYN_cyclist!F197 -> 71 | E197: =DYN_cyclist!G197 -> 60 | F197: =DYN_cyclist!H197 -> 68 | G197: =DYN_cyclist!I197 -> 68 | H197: =DYN_cyclist!J197 -> 65 | I197: =DYN_cyclist!K197 -> 59 | J197: =DYN_cyclist!L197 -> 64 | K197: =DYN_cyclist!M197 -> 65 | L197: =DYN_cyclist!N197 -> 63 | M197: =DYN_cyclist!O197 -> 69 | N197: =DYN_cyclist!P197 -> 61 | O197: 63.09089482 | P197: 59.49256816 | Q197: 51.94406014 | R197: 48.25549421 | S197: 51.50339171 | T197: 55.28742029 | U197: 52.41641188 | V197: 69.82739139
A198: =DYN_cyclist!A198 -> 215 | B198: =DYN_cyclist!D198 -> 67 | C198: =DYN_cyclist!E198 -> 60 | D198: =DYN_cyclist!F198 -> 62 | E198: =DYN_cyclist!G198 -> 60 | F198: =DYN_cyclist!H198 -> 66 | G198: =DYN_cyclist!I198 -> 67 | H198: =DYN_cyclist!J198 -> 64 | I198: =DYN_cyclist!K198 -> 64 | J198: =DYN_cyclist!L198 -> 70 | K198: =DYN_cyclist!M198 -> 68 | L198: =DYN_cyclist!N198 -> 60 | M198: =DYN_cyclist!O198 -> 60 | N198: =DYN_cyclist!P198 -> 60 | O198: 55.86744906 | P198: 48.57134496 | Q198: 57.97721431 | R198: 44.78432053 | S198: 53.86912662 | T198: 43.25068449 | U198: 49.51719118 | V198: 66.84170583
A199: =DYN_cyclist!A199 -> 216 | B199: =DYN_cyclist!D199 -> 66 | C199: =DYN_cyclist!E199 -> 69 | D199: =DYN_cyclist!F199 -> 69 | E199: =DYN_cyclist!G199 -> 70 | F199: =DYN_cyclist!H199 -> 64 | G199: =DYN_cyclist!I199 -> 68 | H199: =DYN_cyclist!J199 -> 65 | I199: =DYN_cyclist!K199 -> 52 | J199: =DYN_cyclist!L199 -> 55 | K199: =DYN_cyclist!M199 -> 56 | L199: =DYN_cyclist!N199 -> 55 | M199: =DYN_cyclist!O199 -> 62 | N199: =DYN_cyclist!P199 -> 68 | O199: 57.18417367 | P199: 59.23162155 | Q199: 40.34915511 | R199: 58.07299428 | S199: 43.24107261 | T199: 54.60858715 | U199: 49.44200618 | V199: 68.74362967
A200: =DYN_cyclist!A200 -> 217 | B200: =DYN_cyclist!D200 -> 75 | C200: =DYN_cyclist!E200 -> 65 | D200: =DYN_cyclist!F200 -> 79 | E200: =DYN_cyclist!G200 -> 61 | F200: =DYN_cyclist!H200 -> 82 | G200: =DYN_cyclist!I200 -> 70 | H200: =DYN_cyclist!J200 -> 71 | I200: =DYN_cyclist!K200 -> 50 | J200: =DYN_cyclist!L200 -> 73 | K200: =DYN_cyclist!M200 -> 74 | L200: =DYN_cyclist!N200 -> 74 | M200: =DYN_cyclist!O200 -> 62 | N200: =DYN_cyclist!P200 -> 61 | O200: 76.41900524 | P200: 61.81620781 | Q200: 67.11999416 | R200: 48.10399844 | S200: 51.77698529 | T200: 51.15118341 | U200: 62.29401599 | V200: 76.31772964
... 3608 more rows
